Workbook

Sheet GENERAL
B6: GENERAL
B9: VEHICLE SPECIFICATION | H9: YEAR OF TEST | J9: 2026
B10: Make
B11: Model | H11: Frontal ODB Test
B12: Tested Variant | H12: Test Lab
B13: Model Year
B14: Vehicle Category
B15: Engine Type
B16: Engine Capacity
B17: Kerb Mass (kg) | H17: Side Impact Test
B18: Hand of Drive | H18: Test Lab
B24: PROTOCOLS
D25: Protocol | H25: Version | J25: Application
B27: GENERAL | D27: ASEAN NCAP OVERALL ASSESSMENT | H27: 3 | J27: 2026-01-01
D28: ASEAN NCAP FITMENT RATING SYSTEM | H28: 2 | J28: 2026-01-01
D29: ASEAN NCAP VEHICLE SELECTION, SPECIFICATION, TESTING AND RETESTING | H29: 1
D30: ASEAN NCAP STAR RATING VALIDITY | H30: 1
D31: ASEAN NCAP ASSESSMENT PROTOCOL - HIGH VOLTAGE ELECTRIC VEHICLES | H31: 1
B33: ADULT OCCUPANT PROTECTION
D34: ASEAN NCAP ADULT OCCUPANT PROTECTION ASSESSMENT PROTOCOL | H34: 3 | J34: 2026-01-01
D36: ASEAN NCAP FRONTAL IMPACT TESTING PROTOCOL | H36: 4 | J36: 2026-01-01
D38: ASEAN NCAP SIDE IMPACT TESTING PROTOCOL | H38: 3 | J38: 2026-01-01
B42: CHILD OCCUPANT PROTECTION
D43: ASEAN NCAP CHILD OCCUPANT PROTECTION ASSESSMENT PROTOCOL | H43: 3.1 | J43: 2026-01-01
D45: ASEAN NCAP FRONTAL IMPACT TESTING PROTOCOL | H45: 4 | J45: 2026-01-01
D47: ASEAN NCAP SIDE IMPACT TESTING PROTOCOL | H47: 3 | J47: 2026-01-01
D48: ASEAN NCAP TEST PROTOCOL - KNEE MAPPING SLED TEST | H48: 1 | J48: 2026-01-01
B51: SAFETY ASSIST
D52: ASEAN NCAP ASSESSMENT PROTOCOL - SAFETY ASSIST | H52: 3 | J52: 2026-01-01
D54: ASEAN NCAP TEST PROTOCOL – AEB CAR TO CAR | H54: 1 | J54: 2026-01-01
D56: ASEAN NCAP TEST PROTOCOL - LANE SUPPORT SYSTEMS | H56: 1 | J56: 2026-01-01
B60: Motorcyclist Safety | D60: ASEAN NCAP ASSESSMENT PROTOCOL – MOTORCYCLIST SAFETY | H60: 2 | J60: 2026-01-01
D62: ASEAN NCAP TEST PROTOCOL – BLIND SPOT DETECTION | H62: 2 | J62: 2026-01-01
D64: ASEAN NCAP TEST PROTOCOL – BLIND SPOT VISUALIZATION | H64: 2 | J64: 2026-01-01
D66: ASEAN NCAP TEST PROTOCOL - ADVANCE REAR VISUALIZATION | H66: 2 | J66: 2026-01-01
D68: ASEAN NCAP TEST PROTOCOL - AUTO HIGH BEAM / ADAPTIVE DRIVING BEAM | H68: 2 | J68: 2026-01-01

Sheet OVERALL RATING
B2: Make | C2: =GENERAL!C10 -> 0
B3: Model | C3: =GENERAL!C11 -> 0
C5: AOP | F5: COP | I5: SAFETY ASSIST | L5: MOTORCYCLIST | O5: 2026 - 2030
C6: Item | D6: Point | E6: Max | F6: Item | G6: Point | H6: Max | I6: Item | J6: Point | K6: Max | L6: =I6 -> Item | M6: =J6 -> Point | N6: =K6 -> Max | O6: ASEAN NCAP
C7: ODB | D7: ='AOP Frontal ODB'!D104:G104 -> 14.079 | E7: 16 | F7: Frontal | G7: ='COP Dynamic '!D61 -> 16 | H7: 16 | I7: EBA | J7: ='SAT-EBA'!G5 -> 6 | K7: 6 | L7: BSD/BSV | M7: ='MS-BST '!G5 -> 8 | N7: 8 | O7: RATING
C8: SIDE | D8: ='AOP Side MDB '!D56:E56 -> 7 | E8: 8 | F8: Side | G8: ='COP Dynamic '!D62 -> 6 | H8: 8 | I8: SBR | J8: ='SAT-SBR'!G5 -> 6 | K8: 6 | L8: Rear View Technology | M8: ='MS-ARV'!G5 -> 3 | N8: 3 | O8: =MIN(D18:M18) -> 4
C9: HPT Evaluation | D9: ='AOP HPT'!$G$5 -> 8 | E9: 8 | F9: Installation | G9: ='COP Installation '!I28 -> 12 | H9: 12 | I9: AEB CCRs | J9: ='SAT-AEB CCRs'!G5 -> 1.25 | K9: 2.5 | L9: AHB / ADB | M9: ='MS-AHB '!G5 -> 2.94 | N9: 3
F10: Vehicle Based | G10: ='COP Vehicle '!D28 -> 2 | H10: 13 | I10: AEB CCRm & CCRb | J10: ='SAT-CCRm & CCRb '!G5 -> 5 | K10: 5 | L10: Pedestrian Protection | M10: ='MS-PED'!G5 -> 1 | N10: 2
F11: CPD | G11: ='COP CPD '!G6 -> 3 | H11: 5 | I11: Lane Support - LKA | J11: ='SAT-LKA'!G5 -> 0.75 | K11: 1.5 | L11: AEB CM | M11: ='MS-AEB CM'!G5 -> 6 | N11: 6
I12: Lane Support - LDW | J12: ='SAT-LDW'!G5 -> 0.5 | K12: 0.5 | L12: Advanced MSTs | M12: ='MS-Advanced'!F2 -> 2 | N12: 2
I13: Advanced SATs | J13: ='SAT-Advanced '!F2 -> 2 | K13: 2
B14: Score | D14: =SUM(D7:D13) -> 29.079 | E14: 32 | G14: =SUM(G7:G13) -> 39 | H14: 54 | J14: =SUM(J7:J13) -> 21.5 | K14: 23.5 | M14: =SUM(M7:M12) -> 22.94 | N14: 24
B15: Normalized Score | D15: =D14/E14 -> 0.90871875 | G15: =G14/H14 -> 0.7222222222 | J15: =J14/K14 -> 0.914893617 | M15: =M14/N14 -> 0.9558333333
B16: Weighting | D16: 0.4 | G16: 0.2 | J16: 0.2 | M16: 0.2 | O16: OVERALL SCORE
B17: Weighted Score | D17: =D15*40 -> 36.34875 | G17: =G15*20 -> 14.44444444 | J17: =J15*20 -> 18.29787234 | M17: =M15*20 -> 19.11666667 | O17: =D17+G17+J17+M17 -> 88.20773345
B18: Maximum Star Rating | D18: =IF(AND(D15>=0.8,D7>=12.5),5,IF(D15>=0.7,4,IF(D15>=0.6,3,IF(D15>=0.5,2,IF(D15>=0.4,1,IF(D15<0.4,0)))))) -> 5 | G18: =IF(G15>=0.75,5,IF(G15>=0.6,4,IF(G15>=0.5,3,IF(G15>=0.4,2,IF(G15>=0.3,1,IF(G15<0.3,0)))))) -> 4 | J18: =IF(J15>=0.75,5,IF(J15>=0.6,4,IF(J15>=0.4,3,IF(J15>=0.3,2,IF(J15>=0.2,1,IF(J15<0.2,0)))))) -> 5 | M18: =IF(M15>=0.55,5,IF(M15>=0.45,4,IF(M15>=0.4,3,IF(M15>=0.3,2,IF(M15>=0.2,1,IF(M15<0.2,0)))))) -> 5 | O18: =IF(O17>75,5,IF(O17>65,4,IF(O17>50,3,IF(O17>40,2,IF(O17>30,1,IF(O17<29.99,0)))))) -> 5

Sheet AOP Frontal ODB
B2: AOP Frontal ODB Test | D2: Driver | F2: Passenger | I2: CMM Measurement
B4: =GENERAL!C11 -> 0 | D4: Value | E4: Points | F4: Value | G4: Points | I4: Location | J4: Pre | K4: Post | L4: Value | M4: Additional Notes
B5: HEAD | I5: Steering Wheel**
C6: Steering Wheel Airbag Present? | D6: Yes | I6: Fore/aft (x) | J6: 1794.231 | K6: 1775.918 | L6: =K6-J6 -> -18.313
C7: Peak Resultant Acceleration - g | D7: 42.33 | E7: =IF(D6="Yes",IF(D7<80,4,""),"") -> 4 | F7: 38.47 | G7: =IF(D6="Yes",IF(F7<80,4,""),"") -> 4 | I7: Lateral (y) | J7: 337.959 | K7: 341.538 | L7: =(K7-J7)*-1 -> -3.579
C8: HIC15 | D8: 500 | E8: =IF(D6="Yes",IF(D7<80,"",ROUND(Sliding_Scale(D8,500,700,4,0),Round)),"") ->  | F8: 120.56 | G8: =IF(D6="Yes",IF(F7<80,"",ROUND(Sliding_Scale(F8,500,700,4,0),Round)),"") ->  | I8: Vertical (z) | J8: 1727.666 | K8: 1743.593 | L8: =K8-J8 -> 15.927
C9: Resultant Acc. 3 msec exeedence - g | D9: 37.71 | E9: =IF(D6="Yes",IF(D7<80,"",ROUND(Sliding_Scale(D9,72,80,4,0),Round)),"") ->  | F9: 37.6 | G9: =IF(D6="Yes",IF(F7<80,"",ROUND(Sliding_Scale(F9,72,80,4,0),Round)),"") ->  | I9: A-Pillar | M9: 100mm below the lowest level
C10: HIC15 | E10: =IF(D6="No",IF(D10<700,2,0),"") -> 
C11: Resultant Acc. 3 msec exceedence - g | E11: =IF(D6="No",IF(D11<80,2,0),"") -> 
B12: ECE R12 | C12: Peak resultant acceleration - g | E12: =IF(MIN(E10:E11)=2,ROUND(Sliding_Scale(D12,80,120,2,0),Round),"") ->  | G12: =IF(D6="No",IF(F12<80,4,""),"") -> 
C13: HIC15 | E13: =IF(MIN(E10:E11)=2,IF(D13<=1000,2,0),"") ->  | G13: =IF(D6="No",IF(F12<80,"",ROUND(Sliding_Scale(F13,500,700,4,0),Round)),"") -> 
C14: Resultant Acc. 3 msec exceedence - g | E14: =IF(MIN(E10:E11)=2,ROUND(Sliding_Scale(D14,65,80,2,0),Round),"") ->  | G14: =IF(D6="No",IF(F12<80,"",ROUND(Sliding_Scale(F14,72,80,4,0),Round)),"") ->  | M14: o
C15: Unstable Contact on the Airbag Modifier (-1) | D15: 0 | E15: =D15 -> 0 | F15: 0 | G15: =F15 -> 0 | I15: Fore/aft (x) | J15: 1499.635 | K15: 1504.209 | L15: =K15-J15 -> 4.574 | M15: of the side window aperture
C16: Hazardous Airbag Deployment Modifier (-1) | D16: 0 | E16: =D16 -> 0 | F16: 0 | G16: =F16 -> 0 | I16: Lateral (y) | J16: 722.818 | K16: 724.507 | L16: =(K16-J16)*-1 -> -1.689
C17: Incorrect Airbag Deployment Modifier (-1) | D17: 0 | E17: =D17 -> 0 | F17: 0 | G17: =F17 -> 0 | I17: Vertical (z) | J17: 1723.055 | K17: 1734.7 | L17: =K17-J17 -> 11.645
C18: Steering Wheel Displacement (-1) mm | E18: =MIN(ROUND(Modifier_Sliding_Scale(D19,90,110,-1,0),Round),ROUND(Modifier_Sliding_Scale(D20,72,88,-1,0),Round),ROUND(Modifier_Sliding_Scale(ABS(D21),72,88,-1,0),Round)) -> 0 | I18: Accelerator Pedal** | M18: Pedal Blocking*
C19: Fore/aft Displacement - mm | D19: =L6 -> -18.313 | E19: =IF(D19>0,"rearward",IF(D19<0,"forward","")) -> forward | M19: After 200N | N19: Value | O19: Value
C20: Vertical Displacement - mm | D20: =L8 -> 15.927 | E20: =IF(D20>0,"upward",IF(D20<0,"downward","")) -> upward | I20: Fore/aft (x) | J20: 1415.101 | K20: 1447.209 | L20: =K20-J20 -> 32.108 | M20: 1387.189 | N20: =K20-M20 -> 60.02 | O20: =IF(N20<25,L20-N20,0) -> 0
C21: Lateral Displacement - mm | D21: =L7 -> -3.579 | E21: =IF(D21>0,"left",IF(D21<0,"right","")) -> right | I21: Lateral (y) | J21: 487.307 | K21: 478.766 | L21: =(K21-J21)*-1 -> 8.541 | M21: 484.4
B22: Head assessment | E22: =MAX(IF(D6="Yes",MIN(E7:E9)+SUM(E15:E18),IF(D6="No",MIN(E10:E14)+SUM(E15:E18),0))) -> 4 | G22: =MAX(IF(D6="Yes",MIN(G7:G9)+SUM(G15:G17),IF(D6="No",MIN(G11:G14)+SUM(G15:G17),0))) -> 4 | I22: Vertical (z) | J22: 1217.227 | K22: 1207.536 | L22: =K22-J22 -> -9.691 | M22: 1179.455
I23: Brake Pedal** | M23: Pedal Blocking*
B24: NECK | M24: After 200N | N24: Value | O24: Value
C25: Shear level exceeded - kN | D25: 0.45 | E25: =ROUND(Sliding_Scale(D25,IF(D26<25,1.9-0.7*(D26/25),(IF(D26<35,1.2,IF(D26<45,1.2-0.1*(D26-35)/10,1.1)))),IF(D26<25,3.1-1.6*(D26/25),(IF(D26<35,1.5,IF(D26<45,1.5-0.4*(D26-35)/10,1.10000000000001)))),4,0),Round) -> 4 | F25: 0.89 | G25: =ROUND(Sliding_Scale(F25,IF(F26<25,1.9-0.7*(F26/25),(IF(F26<35,1.2,IF(F26<45,1.2-0.1*(F26-35)/10,1.1)))),IF(F26<25,3.1-1.6*(F26/25),(IF(F26<35,1.5,IF(F26<45,1.5-0.4*(F26-35)/10,1.10000000000001)))),4,0),Round) -> 4 | I25: Fore/aft (x) | J25: 1420.978 | K25: 1434.651 | L25: =K25-J25 -> 13.673 | M25: 1387.189 | N25: =K25-M25 -> 47.462 | O25: =IF(N25<25,L25-N25,0) -> 0
C26: duration of exceedence - ms | D26: 0 | F26: 0 | I26: Lateral (y) | J26: 359.053 | K26: 379.392 | L26: =(K26-J26)*-1 -> -20.339 | M26: 484.4
C27: Tension level exceeded - kN | D27: 1.16 | E27: =ROUND(Sliding_Scale(D27,IF(D28<35,2.7-0.4*(D28/35),(IF(D28<60,2.3-1.2*(D28-35)/25,1.1))),IF(D28<35,3.3-0.4*(D28/35),(IF(D28<60,2.9-1.8*(D28-35)/25,1.10000000000001))),4,0),Round) -> 4 | F27: 1.44 | G27: =ROUND(Sliding_Scale(F27,IF(F28<35,2.7-0.4*(F28/35),(IF(F28<60,2.3-1.2*(F28-35)/25,1.1))),IF(F28<35,3.3-0.4*(F28/35),(IF(F28<60,2.9-1.8*(F28-35)/25,1.10000000000001))),4,0),Round) -> 4 | I27: Vertical (z) | J27: 1236.593 | K27: 1206.116 | L27: =K27-J27 -> -30.477 | M27: 1179.455
C28: duration of exceedence - ms | D28: 0 | F28: 0 | I28: Clutch Pedal** | M28: Pedal Blocking*
C29: Extension - Nm | D29: 8.7 | E29: =ROUND(Sliding_Scale(D29,42,57,4,0),Round) -> 4 | F29: 7.89 | G29: =ROUND(Sliding_Scale(F29,42,57,4,0),Round) -> 4 | I29: NOT APPLICABLE | M29: After 200N | N29: Value | O29: Value
B30: Neck assessment | E30: =MIN(E25,E27,E29) -> 4 | G30: =MIN(G25,G27,G29) -> 4 | I30: Fore/aft (x) | L30: =K30-J30 -> 0 | N30: =K30-M30 -> 0 | O30: =IF(N30<25,L30-N30,0) -> 0
I31: Lateral (y) | L31: =(K31-J31)*-1 -> 0
B32: Head and Neck assessment | D32: =MIN(E22,E30) -> 4 | F32: =MIN(G22,G30) -> 4 | I32: Vertical (z) | L32: =K32-J32 -> 0
B34: CHEST | I34: Test Laboratory: | J34: JARI
C35: Compression - mm | D35: 20.01 | E35: =ROUND(Sliding_Scale(D35,22,42,4,0),Round) -> 4 | F35: 27.16 | G35: =ROUND(Sliding_Scale(F35,22,42,4,0),Round) -> 2.968 | I35: CMM Sign Convention:
C36: Viscous criterion - m/s | D36: 0.05 | E36: =ROUND(Sliding_Scale(D36,0.5,1,4,0),Round) -> 4 | F36: 0.5 | G36: =ROUND(Sliding_Scale(F36,0.5,1,4,0),Round) -> 4 | I36: Fore/aft (x) | J36: Rearward +ve | L36: Forward -ve
C37: Shoulder Belt Load - kN | D37: 5.96 | E37: =IF(D37>6,-2,0) -> 0 | F37: 6 | G37: =IF(F37>6,-2,0) -> 0 | I37: Lateral (y) | J37: Left -ve | L37: Right +ve
C38: Restraint System Integrity (-1) | D38: 0 | E38: =D38 -> 0 | F38: 0 | G38: =F38 -> 0 | I38: Vertical (z) | J38: Up +ve | L38: Down -ve
C39: Obvious Direct Loading of the Chest (-1) | D39: 0 | E39: =D39 -> 0
C40: A-Pillar Displacement (-2) mm | D40: =L15 -> 4.574 | E40: =ROUND(Modifier_Sliding_Scale(D40,100,200,-2,0),Round) -> 0 | I40: * A pedal is blocked when the forward movement of the intruded pedal under a load of 200N is less than 25mm. Between 50mm and 175mm of rearward displacement, the penalty is calculated using a sliding scale between 0 to 1 point.
C41: Integrity of Passenger Compartment (-1) | D41: 0 | E41: =D41 -> 0
B42: Chest assessment | D42: =MAX(MIN(E35:E36)+SUM(E37:E41),0) -> 4 | F42: =MAX(MIN(G35:G36)+SUM(G37:G41),0) -> 2.968
B44: KNEE, FEMUR and PELVIS
C45: Left Knee Slide - mm | D45: 0.03 | E45: =ROUND(Sliding_Scale(D45,6,15,4,0),Round) -> 4 | F45: 0.2 | G45: =ROUND(Sliding_Scale(F45,6,15,4,0),Round) -> 4 | I45: **Manufacturer should advise prior to crash test if the steering wheel column and/or any pedal (accelerator/brake/clutch) is designed to breakway under load.
C46: Left Femur Compression level exceeded - kN | D46: 0.23 | E46: =ROUND(Sliding_Scale(D46,3.8,IF(D47<11,9.07-1.51*D47/10,7.56),4,0),Round) -> 4 | F46: 0.05 | G46: =ROUND(Sliding_Scale(F46,3.8,IF(F47<11,9.07-1.51*F47/10,7.56),4,0),Round) -> 4
C47: duration of exceedence - ms | D47: 0 | F47: 0
C48: Variable Contact (-1) | D48: 0 | E48: =D48 -> 0 | F48: 0 | G48: =F48 -> 0
C49: Concentrated Loading (-1) | D49: 0 | E49: =D49 -> 0 | F49: 0 | G49: =F49 -> 0
C50: Incorrect Airbag Deployment Modifier (-1) | D50: 0 | E50: =D50 -> 0 | F50: 0 | G50: =F50 -> 0
B51: Left Knee, Femur and Pelvis assessment | E51: =MAX(MIN(E45:E46)+SUM(E48:E50),0) -> 4 | G51: =MAX(MIN(G45:G46)+SUM(G48:G50),0) -> 4
C52: Right Knee Slide - mm | D52: 1.46 | E52: =ROUND(Sliding_Scale(D52,6,15,4,0),Round) -> 4 | F52: 0.27 | G52: =ROUND(Sliding_Scale(F52,6,15,4,0),Round) -> 4
C53: Right Femur Compression level exceeded - kN | D53: 0.02 | E53: =ROUND(Sliding_Scale(D53,3.8,IF(D54<11,9.07-1.51*D54/10,7.56),4,0),Round) -> 4 | F53: 0.12 | G53: =ROUND(Sliding_Scale(F53,3.8,IF(F54<11,9.07-1.51*F54/10,7.56),4,0),Round) -> 4
C54: duration of exceedence - ms | D54: 0 | F54: 0
C55: Variable Contact (-1) | D55: 0 | E55: =D55 -> 0 | F55: 0 | G55: =F55 -> 0
C56: Concentrated Loading (-1) | D56: 0 | E56: =D56 -> 0 | F56: 0 | G56: =F56 -> 0
C57: Incorrect Airbag Deployment Modifier (-1) | D57: 0 | E57: =D57 -> 0 | F57: 0 | G57: =F57 -> 0
B58: Right Knee, Femur and Pelvis assessment | E58: =MAX(MIN(E52:E53)+SUM(E55:E57),0) -> 4 | G58: =MAX(MIN(G52:G53)+SUM(G55:G57),0) -> 4
B60: Knee, Femur and Pelvis assessment | D60: =MIN(E51,E58) -> 4 | F60: =MIN(G51,G58) -> 4
B62: LOWER LEG
C63: Left Upper Compression - kN | D63: 1.31 | E63: =ROUND(Sliding_Scale(D63,2,8,4,0),Round) -> 4 | F63: 1.56 | G63: =ROUND(Sliding_Scale(F63,2,8,4,0),Round) -> 4
C64: Left Lower Compression - kN | D64: 1.72 | E64: =ROUND(Sliding_Scale(D64,2,8,4,0),Round) -> 4 | F64: 0.95 | G64: =ROUND(Sliding_Scale(F64,2,8,4,0),Round) -> 4
C65: Left Upper Tibia Index | D65: 0.4 | E65: =ROUND(Sliding_Scale(D65,0.4,1.3,4,0),Round) -> 4 | F65: 0.6 | G65: =ROUND(Sliding_Scale(F65,0.4,1.3,4,0),Round) -> 3.111
C66: Left Lower Tibia Index | D66: 0.22 | E66: =ROUND(Sliding_Scale(D66,0.4,1.3,4,0),Round) -> 4 | F66: 0.4 | G66: =ROUND(Sliding_Scale(F66,0.4,1.3,4,0),Round) -> 4
C67: Maximum Pedal Vertical Displacement - mm | D67: =MAX(D68:D70) -> 0 | E67: =MIN(ROUND(Modifier_Sliding_Scale(D68,72,88,-1,0),Round),ROUND(Modifier_Sliding_Scale(D69,72,88,-1,0),Round),ROUND(Modifier_Sliding_Scale(D70,72,88,-1,0),Round)) -> 0
C68: Accel Vertical Displacement - mm | D68: =L22 -> -9.691 | E68: =IF(D68>0,"upward",IF(D68<0,"downward","")) -> downward | F68: Brake
C69: Brake Vertical Displacement - mm | D69: =L27 -> -30.477 | E69: =IF(D69>0,"upward",IF(D69<0,"downward","")) -> downward | F69: Clutch
C70: Clutch Vertical Displacement - mm | D70: =L32 -> 0 | E70: =IF(D70>0,"upward",IF(D70<0,"downward","")) ->  | F70: Accelerator
B71: Left Lower Leg assessment | E71: =MAX(MIN(E63:E66)+E67,0) -> 4 | G71: =MIN(G63:G66) -> 3.111
C73: Right Upper Compression - kN | D73: 1.65 | E73: =ROUND(Sliding_Scale(D73,2,8,4,0),Round) -> 4 | F73: 1.01 | G73: =ROUND(Sliding_Scale(F73,2,8,4,0),Round) -> 4
C74: Right Lower Compression - kN | D74: 2.04 | E74: =ROUND(Sliding_Scale(D74,2,8,4,0),Round) -> 3.973 | F74: 1.43 | G74: =ROUND(Sliding_Scale(F74,2,8,4,0),Round) -> 4
C75: Right Upper Tibia Index | D75: 0.36 | E75: =ROUND(Sliding_Scale(D75,0.4,1.3,4,0),Round) -> 4 | F75: 0.23 | G75: =ROUND(Sliding_Scale(F75,0.4,1.3,4,0),Round) -> 4
C76: Right Lower Tibia Index | D76: 0.22 | E76: =ROUND(Sliding_Scale(D76,0.4,1.3,4,0),Round) -> 4 | F76: 0.38 | G76: =ROUND(Sliding_Scale(F76,0.4,1.3,4,0),Round) -> 4
C77: Maximum Pedal Vertical Displacement - mm | D77: =MAX(D78:D80) -> 0 | E77: =MIN(ROUND(Modifier_Sliding_Scale(D78,72,88,-1,0),Round),ROUND(Modifier_Sliding_Scale(D79,72,88,-1,0),Round),ROUND(Modifier_Sliding_Scale(D80,72,88,-1,0),Round)) -> 0
C78: Accel Vertical Displacement - mm | D78: =L22 -> -9.691 | E78: =IF(D78>0,"upward",IF(D78<0,"downward","")) -> downward
C79: Brake Vertical Displacement - mm | D79: =L27 -> -30.477 | E79: =IF(D79>0,"upward",IF(D79<0,"downward","")) -> downward
C80: Clutch Vertical Displacement - mm | D80: =L32 -> 0 | E80: =IF(D80>0,"upward",IF(D80<0,"downward","")) -> 
B81: Right Lower Leg assessment | E81: =MAX(MIN(E73:E76)+E77,0) -> 3.973 | G81: =MIN(G73:G76) -> 4
B83: FOOT and ANKLE
C84: Maximum Pedal Horizontal Displacement - mm | D84: =MAX(D85:D87) -> 32.108 | E84: =MIN(ROUND(Sliding_Scale(D85,100,200,4,0),Round),ROUND(Sliding_Scale(D86,100,200,4,0),Round),ROUND(Sliding_Scale(D87,100,200,4,0),Round)) -> 4
C85: Accel Horizontal Displacement - mm | D85: =L20 -> 32.108 | E85: =IF(D85>0,"rearward",IF(D85<0,"forward","")) -> rearward | F85: Brake
C86: Brake Horizontal Displacement - mm | D86: =L25 -> 13.673 | E86: =IF(D86>0,"rearward",IF(D86<0,"forward","")) -> rearward | F86: Clutch
C87: Clutch Horizontal Displacement - mm | D87: =L30 -> 0 | E87: =IF(D87>0,"rearward",IF(D87<0,"forward","")) ->  | F87: Accelerator
C88: Footwell Rupture (-1) | D88: 0 | E88: =D88 -> 0
C89: Pedal Blocking (-1) | D89: =MAX(O20,O25,O30) -> 0 | E89: =ROUND(Sliding_Scale(D89,50,175,0,-1),Round) -> 0
B90: Foot and Ankle assessment | E90: =MAX(E84+E88+E89,0) -> 4
B92: Lower Leg, Foot and Ankle assessment | D92: =MIN(E71,E81,E90) -> 3.973 | F92: =MIN(G71,G81) -> 3.111
B94: SUMMARY
C95: Head and Neck Assessment | D95: =D32 -> 4 | F95: =F32 -> 4
C96: Chest Assessment | D96: =D42 -> 4 | F96: =F42 -> 2.968
C97: Knee, Femur and Pelvis Assessment | D97: =D60 -> 4 | F97: =F60 -> 4
C98: Lower Leg, Foot and Ankle Assessment | D98: =D92 -> 3.973 | F98: =F92 -> 3.111
B100: Door Opening | D100: 0
B102: TOTAL | D102: =SUM(D95:E98) -> 15.973 | F102: =SUM(F95:G98) -> 14.079
B104: TOTAL FRONTAL ODB | D104: =MAX(IF(OR(E7=0,E8=0,E9=0,G7=0,G8=0,G9=0,E25=0,E27=0,E29=0,G25=0,G27=0,G29=0,E35=0,E36=0,G35=0,G36=0),0,MIN(D95,F95)+MIN(D96,F96)+MIN(D97,F97)+MIN(D98,F98)+D100),0) -> 14.079

Sheet AOP Side MDB
B2: Side MDB Test | D2: Driver
B4: =GENERAL!C11 -> 0 | D4: Value | E4: Points
B5: HEAD
C6: Peak resultant acceleration - g | D6: 2
C7: HIC15 | D7: 3 | E7: =ROUND(Sliding_Scale(D7,500,700,4,0),Round) -> 4
C8: Resultant Acc. 3 msec exeedence - g | D8: 3 | E8: =ROUND(Sliding_Scale(D8,72,80,4,0),Round) -> 4
C9: Incorrect airbag deployment modifier (-1) | D9: -1 | E9: =D9 -> -1
B10: Head assessment | D10: =MAX(MIN(E7:E8)+E9,0) -> 3
B12: CHEST
C14: Lateral compression - mm
C16: Top | D16: 20 | E16: =ROUND(Sliding_Scale(D16,28,50,4,0),Round) -> 4
C17: Middle | D17: 21 | E17: =ROUND(Sliding_Scale(D17,28,50,4,0),Round) -> 4
C18: Bottom | D18: 2 | E18: =ROUND(Sliding_Scale(D18,28,50,4,0),Round) -> 4
B19: Chest rib assessment | E19: =MIN(E16:E18) -> 4
C20: Shoulder Force modifier (-4) | E20: =IF(D21>=3,-4,0) -> 0
C21: Shoulder Fy - kN | D21: 2.9
C22: Viscous Criterion modifier (-4) | E22: =IF(OR(D23>=1,D24>=1,D25>=1),-4,0) -> 0
C23: Top rib Viscous Criterion - m/s | D23: 0.9
C24: Middle rib Viscous Criterion - m/s | D24: 0.9
C25: Bottom rib Viscous Criterion - m/s | D25: 0.9
C26: Incorrect airbag deployment modifier (-1) | D26: -1 | E26: =D26 -> -1
B27: Chest assessment | D27: =MAX(MIN(E16:E18)+SUM(E20,E22,E26),0) -> 3
B29: ABDOMEN
C30: Lateral compression - mm
C31: Top | D31: 2 | E31: =ROUND(Sliding_Scale(D31,47,65,4,0),Round) -> 4
C32: Bottom | D32: 2 | E32: =ROUND(Sliding_Scale(D32,47,65,4,0),Round) -> 4
B33: Abdomen rib assessment | D33: =MIN(E31:E32) -> 4
C34: Viscous Criterion modifier (-4) | E34: =IF(OR(D35>=1,D36>=1),-4,0) -> 0
C35: Top rib Viscous Criterion - m/s | D35: 0.2
C36: Bottom rib Viscous Criterion - m/s | D36: 0.2
C37: Incorrect airbag deployment modifier (-1) | D37: 0 | E37: =D37 -> 0
B38: Abdomen assessment | D38: =MAX(MIN(E31:E32)+SUM(E34,E37),0) -> 4
B40: PELVIS
C41: Pubic Symphysis force - kN | D41: 1.2 | E41: =ROUND(Sliding_Scale(D41,1.7,2.8,4,0),Round) -> 4
C42: Incorrect airbag deployment modifier (-1) | D42: 0 | E42: =D42 -> 0
B43: Pelvis assessment | D43: =MAX(E41+E42,0) -> 4
B45: SUMMARY
C46: Head assessment | D46: =D10 -> 3
C47: Chest assessment | D47: =D27 -> 3
C48: Abdomen assessment | D48: =D38 -> 4
C49: Pelvis assessment | D49: =D43 -> 4
B50: DUMMY SCORE | D50: =SUM(D46:E49) -> 14
B52: Door Opening | D52: 0
B54: TOTAL | D54: =SUM(D46:E49,D52) -> 14
B56: TOTAL SIDE MDB | D56: =ROUND(IF(OR(E7=0,E8=0,E16=0,E17=0,E18=0,E31=0,E32=0,E41=0),0,(D50+D52)/16*8),Round) -> 7
B60: LOADCELL DATA
B61: Back Plate kN
B62: Fx | C62: Max
C63: Min
B64: Fy | C64: Max
C65: Min
B66: Back Plate Nm
B67: My | C67: Max
C68: Min
B69: Mz | C69: Max
C70: Min
B71: Spine kN
B72: Fx | C72: Max
C73: Min
B74: Fy | C74: Max
C75: Min
B76: Spine Nm
B77: Mx | C77: Max
C78: Min
B79: My | C79: Max
C80: Min
B81: Shoulder kN
B82: Fx | C82: Max
C83: Min
B84: Fy | C84: Max
C85: Min
B86: Fz | C86: Max
C87: Min
B88: Femur kN (struck side)
B89: Fx | C89: Max
C90: Min
B91: Fy | C91: Max
C92: Min
B93: Fz | C93: Max
C94: Min
B95: Femur Nm (struck side)
B96: Mx | C96: Max
C97: Min
B98: My | C98: Max
C99: Min
B100: Mz | C100: Max
C101: Min

Sheet AOP HPT
B2: Fitment Rating System for Head Protection Technology
B4: COUNTRY | D4: FITMENT TYPE | E4: α x CS | F4: CS | G4: CTFS
B5: Brunei | E5: =IF(AND(C5="Yes",D5="Option A"),F5*1,IF(AND(C5="Yes",D5="Option B"),F5*0.5,IF(AND(C5="Yes",D5="Option C"),0,0))) -> 0 | F5: =IF(C5="Yes",2,0) -> 0 | G5: =(SUM(E5:E14)/SUM(F5:F14))*G15 -> 8
B6: Singapore | E6: =IF(AND(C6="Yes",D6="Option A"),F6*1,IF(AND(C6="Yes",D6="Option B"),F6*0.5,IF(AND(C6="Yes",D6="Option C"),0,0))) -> 0 | F6: =IF(C6="Yes",2,0) -> 0
B7: Malaysia | C7: Yes | D7: Option A | E7: 3 | F7: =IF(C7="Yes",3,0) -> 3
B8: Thailand | E8: 0 | F8: =IF(C8="Yes",3,0) -> 0
B9: Indonesia | E9: 0 | F9: =IF(C9="Yes",3,0) -> 0
B10: The Philippines | E10: 0 | F10: =IF(C10="Yes",2,0) -> 0
B11: Vietnam | E11: 0 | F11: =IF(C11="Yes",2,0) -> 0
B12: Laos | E12: 0 | F12: =IF(C12="Yes",1,0) -> 0
B13: Cambodia | E13: 0 | F13: =IF(C13="Yes",1,0) -> 0
B14: Myanmar | E14: 0 | F14: =IF(C14="Yes",1,0) -> 0
F15: TFS | G15: 8
D16: Pre-Requisite UN R135 staring 2023
B17: Fitment Type | D17: Details | G17: Fitment Rating Score, α
B18: Option A | D18: Vehicle model is equipped with HPT as standard equipment | G18: 1
B19: Option B | D19: Vehicle model is equipped with HPT as optional equipment | G19: 0.5
B20: Option C | D20: Vehicle model is not equipped with HPT | G20: 0

Sheet COP Dynamic
B2: Child Occupant Protection | D2: Q6 | F2: Q10
D4: Value | E4: Points | F4: Value | G4: Points
B5: CRS DETAILS
C6: Child restraint
C7: CRS make and model
C8: Installation method | D8: ISOFIX
C9: Type of CRS | D9: Highback booster | F9: Highback booster
C10: Approved under UN ECE | D10: R129.03 | F10: R129.03
C11: Available to the general public at dealers | D11: Yes | F11: Yes
C12: Recommended by vehicle manufacturer | D12: No | F12: No
B14: FRONTAL
C15: Dummy restrained throughout impact?
C16: Belt slipping of shoulder? | D16: No | F16: No
C17: Submarining or upward movement in rebound? | D17: No | F17: No
C18: CRS anchorage to vehicle failure? | D18: No | F18: No
C19: Head
C20: Evidence of hard contact | D20: Yes | F20: Yes
C21: HIC15 | D21: 300 | E21: =IF(AND(D21<700,D20="No"),"",ROUND(IF(D21>700,0,IF(D21<500,4,4-4*((500-D21)/(500-700)))),Round)) -> 4 | F21: 300 | G21: =IF(AND(F21<700,F20="No"),"",ROUND(IF(F21>700,0,IF(F21<500,4,4-4*((500-F21)/(500-700)))),Round)) -> 4
C22: Head Resultant 3msec - g | D22: 21 | E22: =ROUND(IF(D22>80,0,IF(D22<60,4,4-4*((60-D22)/(60-80)))),Round) -> 4 | F22: 21 | G22: =ROUND(IF(F22>80,0,IF(F22<60,4,4-4*((60-F22)/(60-80)))),Round) -> 4
C23: Head Excursion (-2/-4) - mm | D23: 200 | E23: =IF(D23>=550,-4,0) -> 0 | F23: 300 | G23: =IF(F23>=550,-4,IF(F23>=450,-2,0)) -> 0
B24: Head assessment | E24: =MAX(MIN(E21:E22)+E23,0) -> 4 | G24: =MAX(MIN(G21:G22)+G23,0) -> 4
C26: Upper Neck
C27: Belt interaction? | D27: Yes | F27: Yes
C28: Tension (Upper neck Fz) | D28: 1.7 | E28: =ROUND(IF(D28>2.62,0,IF(D28<1.7,2,2-2*((1.7-D28)/(1.7-2.62)))),Round) -> 2 | F28: 1.7 | G28: =ROUND(IF(F28>2.62,0,IF(F28<1.7,2,2-2*((1.7-F28)/(1.7-2.62)))),Round) -> 2
C29: Extension (My) | D29: 20 | E29: =IF(D20="Yes",IF(D29<36,2,0),"") -> 2 | F29: 47 | G29: =IF(F20="Yes",IF(F29<49,2,0),"") -> 2
B30: Upper Neck assessment | E30: =MAX(MIN(E28:E29),0) -> 2 | G30: =MAX(MIN(G28:G29),0) -> 2
C32: Chest (T4)
C33: Chest Resultant 3msec - g | D33: 60 | F33: 40 | G33: =ROUND(IF(F33>55,0,IF(F33<41,2,2-2*((41-F33)/(41-55)))),Round) -> 2
C34: Upper chest deflection (resultant) - mm | D34: 20
C35: Lower chest deflection (resultant) - mm | D35: 30
C36: Chest Deflection - mm | D36: 20 | E36: =ROUND(IF(D36>42,0,IF(D36<30,2,2-2*((30-D36)/(30-42)))),Round) -> 2 | F36: 30 | G36: =IF(F36>=56,-2,0) -> 0
B37: Chest assessment | E37: =E36 -> 2 | G37: =MAX(MIN(SUM(G33:G36)),0) -> 2
B38: Front assessment | D38: =IF(OR(D16="Yes",D17="Yes",D18="Yes",D21>800,D22>80),0,MAX(SUM(E24,E30,E37)+IF(D16="Partial",-4,0),0)) -> 8 | F38: =IF(OR(F16="Yes",F17="Yes",F18="Yes",F21>800,F22>80),0,MAX(SUM(G24,G30,G37)+IF(F16="Partial",-4,0),0)) -> 8
B40: SIDE
C41: Dummy restrained throughout impact? | D41: Yes | F41: Yes
C42: CRS anchorage to vehicle failure? | D42: No | F42: No
C43: Head
C44: Bottoming out or contact with interior? | D44: Yes | F44: Yes
C45: HIC15 | D45: 500 | E45: =IF(AND(D45<700,D44="No"),"",ROUND(IF(D45>700,0,IF(D45<500,2,2-2*((500-D45)/(500-700)))),Round)) -> 2 | F45: 500 | G45: =IF(AND(F45<700,D44="No"),"",ROUND(IF(F45>700,0,IF(F45<500,2,2-2*((500-F45)/(500-700)))),Round)) -> 2
C46: Head Resultant 3msec - g | D46: 50 | E46: =ROUND(IF(D46>80,0,IF(D46<60,2,2-2*((60-D46)/(60-80)))),Round) -> 2 | F46: 50 | G46: =ROUND(IF(F46>80,0,IF(F46<60,2,2-2*((60-F46)/(60-80)))),Round) -> 2
B47: Head assessment | E47: =MAX(MIN(E45:E46),0) -> 2 | G47: =MAX(MIN(G45:G46),0) -> 2
C49: Neck
C50: Resultant Force (Upper neck) | D50: 2.2 | E50: =IF(D50="",0,IF(D50>=2.4,0,1)) -> 1 | F50: 2.1 | G50: =IF(F50="",0,IF(F50>=2.2,0,1)) -> 1
C51: Chest
C52: Chest Resultant 3msec - g | D52: 67 | E52: =IF(D52="",0,IF(D52>=67,0,1)) -> 0 | F52: 67 | G52: =IF(F52="",0,IF(F52>=67,0,1)) -> 0
B53: Side assessment | D53: =IF(OR(D41="No",D42="Yes",D45>800,D46>80),0,SUM(E47,E50,E52)) -> 3 | F53: =IF(OR(F41="No",F42="Yes",F45>800,F46>80),0,SUM(G47,G50,G52)) -> 3
B55: SUMMARY
C56: Front assessment | D56: =D38 -> 8 | F56: =F38 -> 8
C57: Side assessment | D57: =D53 -> 3 | F57: =F53 -> 3
B59: TOTAL | D59: =ROUND(SUM(D56:E57),Round) -> 11 | F59: =ROUND(SUM(F56:G57),Round) -> 11
B61: Total Front Asessment | D61: =SUM(D56,F56) -> 16
B62: Total Side Asessment | D62: =SUM(D57,F57) -> 6
B67: DUMMY MEASUREMENTS | D67: Frontal | E67: Side | F67: Frontal | G67: Side
B68: Head
B69: Ax | C69: Max
C70: Min
B71: Ay | C71: Max
C72: Min
B73: Az | C73: Max
C74: Min
B75: Neck
B76: Fx | C76: Max
C77: Min
B78: Fy | C78: Max
C79: Min
B80: Fz | C80: Max
C81: Min
B82: Mx | C82: Max
C83: Min
B84: My | C84: Max
C85: Min
B86: Mz | C86: Max
C87: Min
B88: Shoulder
B89: Fx | C89: Max
C90: Min
B91: Fy | C91: Max
C92: Min
B93: Fz | C93: Max
C94: Min
B95: T1
B96: Ay | C96: Max
B97: Chest
B98: Ax | C98: Max
C99: Min
B100: Ay | C100: Max
C101: Min
B102: Az | C102: Max
C103: Min
B104: Dchest | C104: Max
C105: Min
B106: LO | C106: Max
C107: Min
B108: UP | C108: Max
C109: Min
B110: Lumbar Spine (lower)
B111: Fx | C111: Max
C112: Min
B113: Fy | C113: Max
C114: Min
B115: Fz | C115: Max
C116: Min
B117: Mx | C117: Max
C118: Min
B119: My | C119: Max
C120: Min
B121: Mz | C121: Max
C122: Min
B123: Pelvis-Sacrum
B124: Ax | C124: Max
C125: Min
B126: Ay | C126: Max
C127: Min
B128: Az | C128: Max
C129: Min
B130: Pelvis-Pubis
B131: Fy | C131: Max
C132: Min

Sheet COP Installation
B2: CRS Installation Assessment | I2: Seating Position | P2: SCORING
I3: Front | J3: 2nd row | M3: 3rd row
I4: Pass | J4: Left | K4: Centre | L4: Right | M4: Left | N4: Centre | O4: Right | P4: Pass | Q4: Fail | R4: Exempt | S4: Score
B5: Reference List | C5: Category | D5: CRS | G5: Direction | H5: Interface
C6: <85cm | D6: Joie i-Gemm 3 | G6: Rwd | H6: B _ _ _ | I6: Pass | J6: Pass | K6: Pass | L6: Pass | M6: N/A | N6: N/A | O6: N/A | P6: =COUNTIF(I6:O6,"Pass") -> 4 | Q6: =COUNTIF(I6:O6,"Fail") -> 0 | R6: =COUNTIF(I6:O6,"Exempt") -> 0 | S6: =IF(AND(P6=0,Q6=0),"Exempt",(P6/(P6+Q6))) -> 1
C7: <85cm | D7: Joie i-Gemm 3 +i-base 2 | G7: Rwd | H7: _ I L _ | I7: Exempt | J7: Pass | K7: Exempt | L7: Pass | M7: N/A | N7: N/A | O7: N/A | P7: =COUNTIF(I7:O7,"Pass") -> 2 | Q7: =COUNTIF(I7:O7,"Fail") -> 0 | R7: =COUNTIF(I7:O7,"Exempt") -> 2 | S7: =IF(AND(P7=0,Q7=0),"Exempt",(P7/(P7+Q7))) -> 1
C8: 40-105 cm | D8: Joie Steadi | G8: Rwd | H8: B _ _ _ | I8: Pass | J8: Pass | K8: Pass | L8: Pass | M8: N/A | N8: N/A | O8: N/A | P8: 4 | Q8: 0 | R8: 0 | S8: 1
C9: 76-105 cm | D9: Joie Steadi | G9: Fwd | H9: B _ _ _ | I9: Pass | J9: Pass | K9: Pass | L9: Pass | M9: N/A | N9: N/A | O9: N/A | P9: 4 | Q9: 0 | R9: 0 | S9: 1
C10: 76-150 cm | D10: Joie Elevate | G10: Fwd | H10: B _ _ _ | I10: Pass | J10: Pass | K10: Pass | L10: Pass | M10: N/A | N10: N/A | O10: N/A | P10: 4 | Q10: 0 | R10: 0 | S10: 1
C11: 40-105 cm | D11: Nuna Todl Next + base next | G11: Rwd / Fwd | H11: _ I L _ | I11: Exempt | J11: Pass | K11: Exempt | L11: Pass | M11: N/A | N11: N/A | O11: N/A | P11: 2 | Q11: 0 | R11: 2 | S11: 1
C12: 40-105 cm | D12: Recaro Salia 125 | G12: Rwd / Fwd | H12: _ I L _ | I12: Exempt | J12: Pass | K12: Exempt | L12: Pass | M12: N/A | N12: N/A | O12: N/A | P12: 2 | Q12: 0 | R12: 2 | S12: =IF(AND(P12=0,Q12=0),"Exempt",(P12/(P12+Q12))) -> 1
C13: 40-105 cm | D13: Chicco Seat 3 Fit I-Size Air | G13: Rwd / Fwd | H13: _ I L _ | I13: Exempt | J13: Pass | K13: Exempt | L13: Pass | M13: N/A | N13: N/A | O13: N/A | P13: 2 | Q13: 0 | R13: 2 | S13: =IF(AND(P13=0,Q13=0),"Exempt",(P13/(P13+Q13))) -> 1
C14: 40-125 cm | D14: Joie i-Spin Grow/Multiway | G14: Rwd / Fwd | H14: _ I _ S | I14: Exempt | J14: Pass | K14: Exempt | L14: Pass | M14: N/A | N14: N/A | O14: N/A | P14: 2 | Q14: 0 | R14: 2 | S14: =IF(AND(P14=0,Q14=0),"Exempt",(P14/(P14+Q14))) -> 1
C15: 100-150 cm | D15: Cozy N Safe Augusta i-Size | G15: Fwd | H15: B I _ _ | I15: Exempt | J15: Pass | K15: Exempt | L15: Pass | M15: N/A | N15: N/A | O15: N/A | P15: 2 | Q15: 0 | R15: 2 | S15: 1
C16: 100-150 cm | D16: Nuna AACE Lx | G16: Fwd | H16: B I _ _ | I16: Exempt | J16: Pass | K16: Exempt | L16: Pass | M16: N/A | N16: N/A | O16: N/A | P16: 2 | Q16: 0 | R16: 2 | S16: 1
B17: OEM | C17: <85 cm | D17: XXXX | I17: Pass | J17: Pass | K17: Exempt | L17: Pass | M17: N/A | N17: N/A | O17: N/A | P17: 3 | Q17: 0 | R17: 1 | S17: 1
C18: 76 - 105 cm | D18: XXXX | I18: Pass | J18: Pass | K18: Exempt | L18: Pass | M18: N/A | N18: N/A | O18: N/A | P18: 3 | Q18: 0 | R18: 1 | S18: 1
C19: Q 6 | D19: XXXX | I19: Pass | J19: Pass | K19: Exempt | L19: Pass | M19: N/A | N19: N/A | O19: N/A | P19: 3 | Q19: 0 | R19: 1 | S19: 1
C20: Q 10 | D20: XXXX | I20: Pass | J20: Pass | K20: Exempt | L20: Pass | M20: N/A | N20: N/A | O20: N/A | P20: 3 | Q20: 0 | R20: 1 | S20: 1
B23: SUMMARY
C24: Reference List assessment ( Max 10 points) | I24: =(SUM(S6:S16)/(11-COUNTIF(S6:S16,"Exempt")))*10 -> 10
C25: OEM assessment (Max 2 Points) | I25: =(SUM(S17:S20)/(4-COUNTIF(S17:S20,"Exempt")))*2 -> 2
B28: TOTAL INSTALLATION ASSESSMENT | I28: =SUM(I24:S25) -> 12

Sheet COP Vehicle
B2: Vehicle based assessment
D4: Value | E4: Points
B5: VEHICLE BASED ASSESSMENT
C6: Provision of Three-point Seat Belts | D6: Fail | E6: =IF(D6 = "Pass",1,0) -> 0
C8: Gabarit Installation
C9: 2nd row outboard seats | D9: Fail | E9: =IF(D9 = "Pass",1,0) -> 0
C10: All passenger seats | D10: Fail | E10: =IF(D10 = "Pass",1,0) -> 0
C12: Two Simultaneous Use Seating Positions
C13: CRS covering Groups 0 to III | D13: Fail | E13: =IF(D13 = "Pass",1,0) -> 0
C14: i-Size CRS | D14: Fail | E14: =IF(D14 = "Pass",1,0) -> 0
C16: ISOFIX Usability
C17: Two or more ISOFIX and/or i-Size seating positions
C18: Presence in the car and approve according to UNE ECE R14 | D18: Pass | E18: =IF(D18 = "Pass",1,0) -> 1
C19: Awareness of the existecence and location of anchorage and top tether | D19: Pass | E19: =IF(D19 = "Pass",1,0) -> 1
C21: Two or more Largest ISOFIX Positions
C22: Simultaneous use with ISO/R3 | D22: Fail | E22: =IF(D22 = "Pass",1,0) -> 0
C24: Passenger Airbag Warning Marking and Disabling
C25: Warning Marking | D25: Fail | E25: =IF(D25 = "Pass",2,0) -> 0
C26: Automatic airbag disabling switch | D26: N/A | E26: =IF(D26 = "Pass",3,0) -> 0
B28: TOTAL VEHICLE BASED ASSESSMENT | D28: =(E6+E9+E10+E13+E14+E18+E19+E22+E25+E26) -> 2

Sheet COP CPD
B3: Child Presence Detection
B5: COUNTRY | D5: FITMENT TYPE | E5: α x CS x CPD Type | F5: CS | G5: CTFS
B6: Brunei | C6: Yes | D6: Option D | E6: =IF(AND(C6="Yes",D6="Option A"),F6*1,IF(AND(C6="Yes",D6="Option B"),F6*0.9,IF(AND(C6="Yes",D6="Option C"),F6*0.8,IF(AND(C6="Yes",D6="Option D"),F6*0.6,IF(AND(C6="Yes",D6="Option E"),F6*0.5,IF(AND(C6="Yes",D6="Option F"),F6*0.25,IF(AND(C6="Yes",D6="Option G"),0,0))))))) -> 1.2 | F6: =IF(C6="Yes",2,0) -> 2 | G6: =(SUM(E6:E15)/SUM(F6:F15))*G16 -> 3
B7: Singapore | C7: Yes | D7: Option D | E7: =IF(AND(C7="Yes",D7="Option A"),F7*1,IF(AND(C7="Yes",D7="Option B"),F7*0.9,IF(AND(C7="Yes",D7="Option C"),F7*0.8,IF(AND(C7="Yes",D7="Option D"),F7*0.6,IF(AND(C7="Yes",D7="Option E"),F7*0.5,IF(AND(C7="Yes",D7="Option F"),F7*0.25,IF(AND(C7="Yes",D7="Option G"),0,0))))))) -> 1.2 | F7: =IF(C7="Yes",2,0) -> 2
B8: Malaysia | C8: Yes | D8: Option D | E8: 1.8 | F8: =IF(C8="Yes",3,0) -> 3
B9: Thailand | C9: Yes | D9: Option D | E9: 1.8 | F9: =IF(C9="Yes",3,0) -> 3
B10: Indonesia | C10: Yes | D10: Option D | E10: 1.8 | F10: =IF(C10="Yes",3,0) -> 3
B11: The Philippines | C11: Yes | D11: Option D | E11: 1.2 | F11: =IF(C11="Yes",2,0) -> 2
B12: Vietnam | C12: Yes | D12: Option D | E12: 1.2 | F12: =IF(C12="Yes",2,0) -> 2
B13: Laos | C13: Yes | D13: Option D | E13: 0.6 | F13: =IF(C13="Yes",1,0) -> 1
B14: Cambodia | C14: Yes | D14: Option D | E14: 0.6 | F14: =IF(C14="Yes",1,0) -> 1
B15: Myanmar | C15: Yes | D15: Option D | E15: 0.6 | F15: =IF(C15="Yes",1,0) -> 1
F16: TFS | G16: 5
B18: Fitment Type | D18: Details | G18: Fitment Rating Score, α
B19: Option A | D19: Vehicle model is equipped with Classification 1 and Classification 2 as standard equipment. | G19: 1
B20: Option B | D20: Vehicle model is equipped with Classification 1 and Classification 2 as optional equipment and Alert as optional equipment. | G20: 0.9
B21: Option C | D21: Vehicle model is equipped with Classification 2 as standard equipment. | G21: 0.8
B22: Option D | D22: Vehicle model is equipped with Classification 2 as optional equipment and Alert as optional equipment. | G22: 0.6
B23: Option E | D23: Vehicle model is equipped with Alert as standard equipment. | G23: 0.5
B24: Option F | D24: Vehicle model is equipped with Alert as optional equipment. | G24: 0.25
B25: Option G | D25: Vehicle model is not equipped with CPD | G25: 0

Sheet SAT-EBA
B2: Fitment Rating System for Effective Braking and Avoidance
B4: COUNTRY | D4: FITMENT TYPE | E4: α x CS | F4: CS | G4: CTFS
B5: Brunei | E5: =IF(AND(C5="Yes",D5="Option A"),F5*1,IF(AND(C5="Yes",D5="Option B"),F5*0.5,IF(AND(C5="Yes",D5="Option C"),F5*0.375,IF(AND(C5="Yes",D5="Option D"),F5*0.25,IF(AND(C5="Yes",D5="Option E"),F5*0.125,IF(AND(C5="Yes",D5="Option F"),0,0)))))) -> 0 | F5: =IF(C5="Yes",2,0) -> 0 | G5: =(SUM(E5:E14)/SUM(F5:F14))*G15 -> 6
B6: Singapore | E6: =IF(AND(C6="Yes",D6="Option A"),F6*1,IF(AND(C6="Yes",D6="Option B"),F6*0.5,IF(AND(C6="Yes",D6="Option C"),F6*0.375,IF(AND(C6="Yes",D6="Option D"),F6*0.25,IF(AND(C6="Yes",D6="Option E"),F6*0.125,IF(AND(C6="Yes",D6="Option F"),0,0)))))) -> 0 | F6: =IF(C6="Yes",2,0) -> 0
B7: Malaysia | C7: Yes | D7: Option A | E7: =IF(AND(C7="Yes",D7="Option A"),F7*1,IF(AND(C7="Yes",D7="Option B"),F7*0.5,IF(AND(C7="Yes",D7="Option C"),F7*0.375,IF(AND(C7="Yes",D7="Option D"),F7*0.25,IF(AND(C7="Yes",D7="Option E"),F7*0.125,IF(AND(C7="Yes",D7="Option F"),0,0)))))) -> 3 | F7: =IF(C7="Yes",3,0) -> 3
B8: Thailand | E8: 0 | F8: =IF(C8="Yes",3,0) -> 0
B9: Indonesia | E9: 0 | F9: =IF(C9="Yes",3,0) -> 0
B10: The Philippines | E10: 0 | F10: =IF(C10="Yes",2,0) -> 0
B11: Vietnam | E11: 0 | F11: =IF(C11="Yes",2,0) -> 0
B12: Laos | E12: 0 | F12: =IF(C12="Yes",1,0) -> 0
B13: Cambodia | E13: 0 | F13: =IF(C13="Yes",1,0) -> 0
B14: Myanmar | E14: 0 | F14: =IF(C14="Yes",1,0) -> 0
F15: TFS | G15: 6
B17: Fitment Type | D17: Details | G17: Fitment Rating Score, α
B18: Option A | D18: Vehicle model is equipped with ESC as standard equipment | G18: 1
B19: Option B | D19: Vehicle model is equipped with ESC as optional equipment but ABS as standard equipment | G19: 0.5
B20: Option C | D20: Vehicle model is not equipped with ESC but equipped with ABS as standard equipment | G20: 0.375
B21: Option D | D21: Vehicle model is equipped with both ESC and ABS as optional equipment | G21: 0.25
B22: Option E | D22: Vehicle model is not equipped with ESC but equipped with ABS as optional equpment | G22: 0.125
B23: Option F | D23: Vehicle model is not equipped with either ESC or ABS | G23: 0

Sheet SAT-SBR
B2: Fitment Rating System for Seatbelt Reminders
B4: COUNTRY | D4: FITMENT TYPE | E4: α x CS | F4: CS | G4: CTFS
B5: Brunei | E5: =IF(AND(C5="Yes",D5="Option A"),F5*1,IF(AND(C5="Yes",D5="Option B"),F5*0.75,IF(AND(C5="Yes",D5="Option C"),F5*0.625,IF(AND(C5="Yes",D5="Option D"),F5*0.5,IF(AND(C5="Yes",D5="Option E"),F5*0.25,IF(AND(C5="Yes",D5="Option F"),0,0)))))) -> 0 | F5: =IF(C5="Yes",2,0) -> 0 | G5: =(SUM(E5:E14)/SUM(F5:F14))*G15 -> 6
B6: Singapore | E6: =IF(AND(C6="Yes",D6="Option A"),F6*1,IF(AND(C6="Yes",D6="Option B"),F6*0.75,IF(AND(C6="Yes",D6="Option C"),F6*0.625,IF(AND(C6="Yes",D6="Option D"),F6*0.5,IF(AND(C6="Yes",D6="Option E"),F6*0.25,IF(AND(C6="Yes",D6="Option F"),0,0)))))) -> 0 | F6: =IF(C6="Yes",2,0) -> 0
B7: Malaysia | C7: Yes | D7: Option A | E7: 3 | F7: =IF(C7="Yes",3,0) -> 3
B8: Thailand | E8: 0 | F8: =IF(C8="Yes",3,0) -> 0
B9: Indonesia | E9: 0 | F9: =IF(C9="Yes",3,0) -> 0
B10: The Philippines | E10: 0 | F10: =IF(C10="Yes",2,0) -> 0
B11: Vietnam | E11: 0 | F11: =IF(C11="Yes",2,0) -> 0
B12: Laos | E12: 0 | F12: =IF(C12="Yes",1,0) -> 0
B13: Cambodia | E13: 0 | F13: =IF(C13="Yes",1,0) -> 0
B14: Myanmar | E14: 0 | F14: =IF(C14="Yes",1,0) -> 0
F15: TFS | G15: 6
B17: Fitment Type | D17: Details | G17: Fitment Rating Score, α
B18: Option A | D18: Vehicle model is equipped with SBR for driver, front passenger and rear passengers with seats occupant detection as standard equipment | G18: 1
B19: Option B | D19: Vehicle model is equipped with SBR for driver, front passenger and rear passengers as standard equipment | G19: 0.75
B20: Option C | D20: Vehicle model is equipped with SBR for driver and front passenger as standard equipment but rear passengers as optional equipment | G20: 0.625
B21: Option D | D21: Vehicle model is equipped with SBR for driver and front passenger only as standard equipment | G21: 0.5
B22: Option E | D22: Vehicle model is equipped with SBR for driver only as standard equipment | G22: 0.25
B23: Option F | D23: Vehicle model is not equipped with SBR | G23: 0

Sheet SAT-AEB CCRs
B2: Fitment Rating System for AEB City
B4: COUNTRY | D4: FITMENT TYPE | E4: α x CS | F4: CS | G4: CTFS
B5: Brunei | E5: =IF(AND(C5="Yes",D5="Option A"),F5*1,IF(AND(C5="Yes",D5="Option B"),F5*0.5,IF(AND(C5="Yes",D5="Option C"),F5*0,0))) -> 0 | F5: =IF(C5="Yes",2,0) -> 0 | G5: =(SUM(E5:E14)/SUM(F5:F14))*G15*F36 -> 1.25
B6: Singapore | E6: 0 | F6: =IF(C6="Yes",2,0) -> 0
B7: Malaysia | C7: Yes | D7: Option B | E7: 1.5 | F7: =IF(C7="Yes",3,0) -> 3
B8: Thailand | E8: 0 | F8: =IF(C8="Yes",3,0) -> 0
B9: Indonesia | E9: 0 | F9: =IF(C9="Yes",3,0) -> 0
B10: The Philippines | E10: 0 | F10: =IF(C10="Yes",2,0) -> 0
B11: Vietnam | E11: 0 | F11: =IF(C11="Yes",2,0) -> 0
B12: Laos | E12: 0 | F12: =IF(C12="Yes",1,0) -> 0
B13: Cambodia | E13: 0 | F13: =IF(C13="Yes",1,0) -> 0
B14: Myanmar | E14: 0 | F14: =IF(C14="Yes",1,0) -> 0
F15: TFS | G15: 2.5
B17: Fitment Type | D17: Details | G17: Fitment Rating Score, α
B18: Option A | D18: Vehicle model is equipped with AEB City as standard equipment | G18: 1
B19: Option B | D19: Vehicle model is equipped with AEB City as optional equipment | G19: 0.5
B20: Option C | D20: Vehicle model is not equipped with AEB City | G20: 0
B23: Test speed(km/h) | C23: Point | D23: Vrel_threshold (km/h) | E23: Vrel_Impact (km/h) | F23: Score (Test Speed)
B24: 10 | C24: 1 | D24: 0 | E24: 0 | F24: =MIN((B24-E24)/(B24-D24),1)*C24 -> 1
B25: 15 | C25: 2 | D25: 0 | E25: 0 | F25: 2
B26: 20 | C26: 2 | D26: 0 | E26: 0 | F26: 2
B27: 25 | C27: 2 | D27: 0 | E27: 0 | F27: 2
B28: 30 | C28: 2 | D28: 0 | E28: 0 | F28: 2
B29: 35 | C29: 2 | D29: 0 | E29: 0 | F29: 2
B30: 40 | C30: 1 | D30: 0 | E30: 0 | F30: 1
B31: 45 | C31: 1 | D31: 15 | E31: 0 | F31: 1
B32: 50 | C32: 1 | D32: 25 | E32: 0 | F32: 1
B33: 55 | C33: 1 | D33: 30 | E33: 0 | F33: 1
B34: 60 | C34: 1 | D34: 35 | E34: 0 | F34: 1
B35: Total | C35: =SUM(C24:C34) -> 16 | F35: =SUM(F24:F34) -> 16
E36: Normalized Score | F36: =F35/C35 -> 1
E37: AEB City Score | F37: =F36*2.5 -> 2.5

Sheet SAT-CCRm & CCRb
B2: Fitment Rating System for AEB Inter-urban
B4: COUNTRY | D4: FITMENT TYPE | E4: α x CS | F4: CS | G4: CTFS
B5: Brunei | E5: =IF(AND(C5="Yes",D5="Option A"),F5*1,IF(AND(C5="Yes",D5="Option B"),F5*0.5,IF(AND(C5="Yes",D5="Option C"),F5*0,0))) -> 0 | F5: =IF(C5="Yes",2,0) -> 0 | G5: =(SUM(E5:E14)/SUM(F5:F14))*G15*H32 -> 5
B6: Singapore | E6: =IF(AND(C6="Yes",D6="Option A"),F6*1,IF(AND(C6="Yes",D6="Option B"),F6*0.5,IF(AND(C6="Yes",D6="Option C"),F6*0,0))) -> 0 | F6: =IF(C6="Yes",2,0) -> 0
B7: Malaysia | C7: Yes | D7: Option A | E7: 3 | F7: =IF(C7="Yes",3,0) -> 3
B8: Thailand | E8: 0 | F8: =IF(C8="Yes",3,0) -> 0
B9: Indonesia | E9: 0 | F9: =IF(C9="Yes",3,0) -> 0
B10: The Philippines | E10: 0 | F10: =IF(C10="Yes",2,0) -> 0
B11: Vietnam | E11: 0 | F11: =IF(C11="Yes",2,0) -> 0
B12: Laos | E12: 0 | F12: =IF(C12="Yes",1,0) -> 0
B13: Cambodia | E13: 0 | F13: =IF(C13="Yes",1,0) -> 0
B14: Myanmar | E14: 0 | F14: =IF(C14="Yes",1,0) -> 0
F15: TFS | G15: 5
B17: Fitment Type | D17: Details | G17: Fitment Rating Score, α
B18: Option A | D18: Vehicle model is equipped with AEB Inter-urban as standard equipment | G18: 1
B19: Option B | D19: Vehicle model is equipped with AEB Inter-urban as optional equipment | G19: 0.5
B20: Option C | D20: Vehicle model is not equipped with AEB Inter-urban | G20: 0
B22: CCRM
B23: Test speed(km/h) | C23: Point | D23: Vrel_Test (km/h) | E23: Vimpact (km/h) | F23: Vrel_threshold (km/h) | G23: Vrel_Impact (km/h) | H23: Score (Test Speed)
B24: 30 | C24: 1 | D24: 10 | E24: 20 | F24: 0 | G24: =IF(E24>B24-D24,E24-(B24-D24),0) -> 0 | H24: =(D24-G24)/(D24-F24)*C24 -> 1
B25: 35 | C25: 1 | D25: 15 | E25: 20 | F25: 0 | G25: =IF(E25>B25-D25,E25-(B25-D25),0) -> 0 | H25: =(D25-G25)/(D25-F25)*C25 -> 1
B26: 40 | C26: 1 | D26: 20 | E26: 20 | F26: 0 | G26: 0 | H26: 1
B27: 45 | C27: 1 | D27: 25 | E27: 20 | F27: 0 | G27: 0 | H27: 1
B28: 50 | C28: 1 | D28: 30 | E28: 20 | F28: 0 | G28: 0 | H28: 1
B29: 55 | C29: 1 | D29: 35 | E29: 20 | F29: 0 | G29: 0 | H29: 1
B30: 60 | C30: 1 | D30: 40 | E30: 20 | F30: 0 | G30: =IF(E30>B30-D30,E30-(B30-D30),0) -> 0 | H30: 1
B31: Total | C31: 7 | H31: =SUM(H24:H30) -> 7
F32: Normalized Score | H32: =H31/C31 -> 1
B35: CCRb
B36: Test speed(km/h) | C36: Point | D36: Distance, Deceleration | E36: Vimpact (km/h) | F36: Vrel_Impact (km/h) | G36: Score (Test Speed)
B37: 50 | C37: 1 | D37: 12m, 2m/s2 | E37: 0 | F37: 0 | G37: =((B37-F37)/B37)*C37 -> 1
B38: 50 | C38: 1 | D38: 12m, 6m/s2 | E38: 0 | F38: 0 | G38: =((B38-F38)/B38)*C38 -> 1
B39: 50 | C39: 1 | D39: 40m, 2m/s2 | E39: 0 | F39: 0 | G39: =((B39-F39)/B39)*C39 -> 1
B40: 50 | C40: 1 | D40: 40m, 6m/s2 | E40: 0 | F40: 0 | G40: =((B40-F40)/B40)*C40 -> 1
B41: Total | C41: =SUM(C37:C40) -> 4 | G41: =SUM(G37:G40) -> 4
D43: Type of AEB Inter Urban | E43: CCRm | F43: CCRb | G43: Total Points
D44: Points | E44: =H31 -> 7 | F44: =G41 -> 4 | G44: =E44+F44 -> 11
D45: Total Normalize Score, % | E45: =(G44/(C31+C41))*100 -> 100
D46: Total Score | E46: =5*(E45/100) -> 5

Sheet SAT-LKA
B2: Fitment Rating System for LKA
B4: COUNTRY | D4: FITMENT TYPE | E4: α x CS | F4: CS | G4: CTFS
B5: Brunei | E5: =IF(AND(C5="Yes",D5="Option A"),F5*1,IF(AND(C5="Yes",D5="Option B"),F5*0.5,IF(AND(C5="Yes",D5="Option C"),F5*0,0))) -> 0 | F5: =IF(C5="Yes",2,0) -> 0 | G5: =(SUM(E5:E14)/SUM(F5:F14))*G15*G27 -> 0.75
B6: Singapore | E6: 0 | F6: =IF(C6="Yes",2,0) -> 0
B7: Malaysia | C7: Yes | D7: Option B | E7: =IF(AND(C7="Yes",D7="Option A"),F7*1,IF(AND(C7="Yes",D7="Option B"),F7*0.5,IF(AND(C7="Yes",D7="Option C"),F7*0,0))) -> 1.5 | F7: =IF(C7="Yes",3,0) -> 3
B8: Thailand | E8: 0 | F8: =IF(C8="Yes",3,0) -> 0
B9: Indonesia | E9: 0 | F9: =IF(C9="Yes",3,0) -> 0
B10: The Philippines | E10: 0 | F10: =IF(C10="Yes",2,0) -> 0
B11: Vietnam | E11: 0 | F11: =IF(C11="Yes",2,0) -> 0
B12: Laos | E12: 0 | F12: =IF(C12="Yes",1,0) -> 0
B13: Cambodia | E13: 0 | F13: =IF(C13="Yes",1,0) -> 0
B14: Myanmar | E14: 0 | F14: =IF(C14="Yes",1,0) -> 0
F15: TFS | G15: 1.5
B17: Fitment Type | D17: Details | G17: Fitment Rating Score, α
B18: Option A | D18: Vehicle model is equipped with LKA as standard equipment | G18: 1
B19: Option B | D19: Vehicle model is equipped with LKA as optional equipment | G19: 0.5
B20: Option C | D20: Vehicle model is not equipped with LKA | G20: 0
B24: Line | D24: Scenario | F24: Result | G24: Normalized Score
B25: Dashed Line | D25: Single lane marking | F25: Pass | G25: =IF(AND(F25="Pass",F26="Pass"),0.5,0) -> 0.5
B26: Solid Line | D26: Single lane marking | F26: Pass | G26: =IF(AND(F26="Pass",F25="Pass"),0.5,0) -> 0.5
F27: Total Score | G27: =SUM(G25:H26) -> 1

Sheet SAT-LDW
B2: Fitment Rating System for LDW
B4: COUNTRY | D4: FITMENT TYPE | E4: α x CS | F4: CS | G4: CTFS
B5: Brunei | E5: =IF(AND(C5="Yes",D5="Option A"),F5*1,IF(AND(C5="Yes",D5="Option B"),F5*0.5,IF(AND(C5="Yes",D5="Option C"),F5*0,0))) -> 0 | F5: =IF(C5="Yes",2,0) -> 0 | G5: =(SUM(E5:E14)/SUM(F5:F14))*G15*G25 -> 0.5
B6: Singapore | E6: =IF(AND(C6="Yes",D6="Option A"),F6*1,IF(AND(C6="Yes",D6="Option B"),F6*0.5,IF(AND(C6="Yes",D6="Option C"),F6*0,0))) -> 0 | F6: =IF(C6="Yes",2,0) -> 0
B7: Malaysia | C7: Yes | D7: Option A | E7: 3 | F7: =IF(C7="Yes",3,0) -> 3
B8: Thailand | E8: 0 | F8: =IF(C8="Yes",3,0) -> 0
B9: Indonesia | E9: 0 | F9: =IF(C9="Yes",3,0) -> 0
B10: The Philippines | E10: 0 | F10: =IF(C10="Yes",2,0) -> 0
B11: Vietnam | E11: 0 | F11: =IF(C11="Yes",2,0) -> 0
B12: Laos | E12: 0 | F12: =IF(C12="Yes",1,0) -> 0
B13: Cambodia | E13: 0 | F13: =IF(C13="Yes",1,0) -> 0
B14: Myanmar | E14: 0 | F14: =IF(C14="Yes",1,0) -> 0
F15: TFS | G15: 0.5
B17: Fitment Type | D17: Details | G17: Fitment Rating Score, α
B18: Option A | D18: Vehicle model is equipped with LDW as standard equipment | G18: 1
B19: Option B | D19: Vehicle model is equipped with LDW as optional equipment | G19: 0.5
B20: Option C | D20: Vehicle model is not equipped with LDW | G20: 0
B22: Line | D22: Scenario | F22: Result | G22: Normalized Score
B23: Dashed Line | D23: Single lane marking | F23: Pass | G23: =IF(AND(F23="Pass",F24="Pass"),0.5,0) -> 0.5
B24: Solid Line | D24: Single lane marking | F24: Pass | G24: =IF(AND(F24="Pass",F23="Pass"),0.5,0) -> 0.5
F25: Total Score | G25: =SUM(G23:H24) -> 1

Sheet SAT-Advanced
B2: FRS Total Score for Advanced SATs | F2: =IF(SUM(G8,G28,G48,G68)>2,2,SUM(G8,G28,G48,G68)) -> 2
B5: Fitment Rating System for AEB Pedestrian
B7: COUNTRY | D7: FITMENT TYPE | E7: α x CS | F7: CS | G7: CTFS
B8: Brunei | E8: =IF(AND(C8="Yes",D8="Option A"),F8*1,IF(AND(C8="Yes",D8="Option B"),F8*0,0)) -> 0 | F8: =IF(C8="Yes",2,0) -> 0 | G8: =(SUM(E8:E17)/SUM(F8:F17))*G18 -> 1
B9: Singapore | E9: 0 | F9: =IF(C9="Yes",2,0) -> 0
B10: Malaysia | C10: Yes | D10: Option A | E10: 3 | F10: =IF(C10="Yes",3,0) -> 3
B11: Thailand | E11: 0 | F11: =IF(C11="Yes",3,0) -> 0
B12: Indonesia | E12: 0 | F12: =IF(C12="Yes",3,0) -> 0
B13: The Philippines | E13: 0 | F13: =IF(C13="Yes",2,0) -> 0
B14: Vietnam | E14: 0 | F14: =IF(C14="Yes",2,0) -> 0
B15: Laos | E15: 0 | F15: =IF(C15="Yes",1,0) -> 0
B16: Cambodia | E16: 0 | F16: =IF(C16="Yes",1,0) -> 0
B17: Myanmar | E17: 0 | F17: =IF(C17="Yes",1,0) -> 0
F18: TFS | G18: 1
B20: Fitment Type | D20: Details | G20: Fitment Rating Score, α
B21: Option A | D21: Vehicle model is equipped with AEB Pedestrian as standard or optional equipment | G21: 1
B22: Option B | D22: Vehicle model is not equipped with AEB Pedestrian | G22: 0
B25: Fitment Rating System for Multi Collision Brake
B27: COUNTRY | D27: FITMENT TYPE | E27: α x CS | F27: CS | G27: CTFS
B28: Brunei | E28: =IF(AND(C28="Yes",D28="Option A"),F28*1,IF(AND(C28="Yes",D28="Option B"),F28*0,0)) -> 0 | F28: =IF(C28="Yes",2,0) -> 0 | G28: =(SUM(E28:E37)/SUM(F28:F37))*G38 -> 1
B29: Singapore | E29: =IF(AND(C29="Yes",D29="Option A"),F29*1,IF(AND(C29="Yes",D29="Option B"),F29*0,0)) -> 0 | F29: =IF(C29="Yes",2,0) -> 0
B30: Malaysia | C30: Yes | D30: Option A | E30: 3 | F30: =IF(C30="Yes",3,0) -> 3
B31: Thailand | E31: 0 | F31: =IF(C31="Yes",3,0) -> 0
B32: Indonesia | E32: 0 | F32: =IF(C32="Yes",3,0) -> 0
B33: The Philippines | E33: 0 | F33: =IF(C33="Yes",2,0) -> 0
B34: Vietnam | E34: 0 | F34: =IF(C34="Yes",2,0) -> 0
B35: Laos | E35: 0 | F35: =IF(C35="Yes",1,0) -> 0
B36: Cambodia | E36: 0 | F36: =IF(C36="Yes",1,0) -> 0
B37: Myanmar | E37: 0 | F37: =IF(C37="Yes",1,0) -> 0
F38: TFS | G38: 1
B40: Fitment Type | D40: Details | G40: Fitment Rating Score, α
B41: Option A | D41: Vehicle model is equipped with MCB as standard or optional equipment | G41: 1
B42: Option B | D42: Vehicle model is not equipped with MCB | G42: 0
B45: Fitment Rating System for Speed Assistance System
B47: COUNTRY | D47: FITMENT TYPE | E47: α x CS | F47: CS | G47: CTFS
B48: Brunei | E48: =IF(AND(C48="Yes",D48="Option A"),F48*1,IF(AND(C48="Yes",D48="Option B"),F48*0,0)) -> 0 | F48: =IF(C48="Yes",2,0) -> 0 | G48: =(SUM(E48:E57)/SUM(F48:F57))*G58 -> 0
B49: Singapore | E49: =IF(AND(C49="Yes",D49="Option A"),F49*1,IF(AND(C49="Yes",D49="Option B"),F49*0,0)) -> 0 | F49: =IF(C49="Yes",2,0) -> 0
B50: Malaysia | C50: Yes | D50: Option B | E50: 0 | F50: =IF(C50="Yes",3,0) -> 3
B51: Thailand | E51: 0 | F51: =IF(C51="Yes",3,0) -> 0
B52: Indonesia | E52: 0 | F52: =IF(C52="Yes",3,0) -> 0
B53: The Philippines | E53: 0 | F53: =IF(C53="Yes",2,0) -> 0
B54: Vietnam | E54: 0 | F54: =IF(C54="Yes",2,0) -> 0
B55: Laos | E55: 0 | F55: =IF(C55="Yes",1,0) -> 0
B56: Cambodia | E56: 0 | F56: =IF(C56="Yes",1,0) -> 0
B57: Myanmar | E57: 0 | F57: =IF(C57="Yes",1,0) -> 0
F58: TFS | G58: 1
B60: Fitment Type | D60: Details | G60: Fitment Rating Score, α
B61: Option A | D61: Vehicle model is equipped with SA System as standard or optional equipment | G61: 1
B62: Option B | D62: Vehicle model is not equipped with SA System | G62: 0
B65: Fitment Rating System for Driver State Monitoring
B67: COUNTRY | D67: FITMENT TYPE | E67: α x CS | F67: CS | G67: CTFS
B68: Brunei | E68: =IF(AND(C68="Yes",D68="Option A"),F68*1,IF(AND(C68="Yes",D68="Option B"),F68*0,0)) -> 0 | F68: =IF(C68="Yes",2,0) -> 0 | G68: =(SUM(E68:E77)/SUM(F68:F77))*G78 -> 0
B69: Singapore | E69: =IF(AND(C69="Yes",D69="Option A"),F69*1,IF(AND(C69="Yes",D69="Option B"),F69*0,0)) -> 0 | F69: =IF(C69="Yes",2,0) -> 0
B70: Malaysia | C70: Yes | D70: Option B | E70: 0 | F70: =IF(C70="Yes",3,0) -> 3
B71: Thailand | E71: 0 | F71: =IF(C71="Yes",3,0) -> 0
B72: Indonesia | E72: 0 | F72: =IF(C72="Yes",3,0) -> 0
B73: The Philippines | E73: 0 | F73: =IF(C73="Yes",2,0) -> 0
B74: Vietnam | E74: 0 | F74: =IF(C74="Yes",2,0) -> 0
B75: Laos | E75: 0 | F75: =IF(C75="Yes",1,0) -> 0
B76: Cambodia | E76: 0 | F76: =IF(C76="Yes",1,0) -> 0
B77: Myanmar | E77: 0 | F77: =IF(C77="Yes",1,0) -> 0
F78: TFS | G78: 1
B80: Fitment Type | D80: Details | G80: Fitment Rating Score, α
B81: Option A | D81: Vehicle model is equipped with DSM as standard or optional equipment | G81: 1
B82: Option B | D82: Vehicle model is not equipped with DSM | G82: 0

Sheet MS-BST
B2: Fitment Rating System for Blind Spot Technology (BSD/BSV)
B4: COUNTRY | D4: FITMENT TYPE | E4: α x CS | F4: CS | G4: CTFS
B5: Brunei | E5: =IF(AND(C5="Yes",D5="Option A"),F5*1,IF(AND(C5="Yes",D5="Option B"),F5*0.5,IF(AND(C5="Yes",D5="Option C"),F5*0.5,IF(AND(C5="Yes",D5="Option D"),F5*0.25,IF(AND(C5="Yes",D5="Option E"),0,0))))) -> 0 | F5: =IF(C5="Yes",2,0) -> 0 | G5: =(SUM(E5:E14)/SUM(F5:F14))*G15 -> 8
B6: Singapore | E6: =IF(AND(C6="Yes",D6="Option A"),F6*1,IF(AND(C6="Yes",D6="Option B"),F6*0.5,IF(AND(C6="Yes",D6="Option C"),F6*0.5,IF(AND(C6="Yes",D6="Option D"),F6*0.25,IF(AND(C6="Yes",D6="Option E"),0,0))))) -> 0 | F6: =IF(C6="Yes",2,0) -> 0
B7: Malaysia | C7: Yes | D7: Option A | E7: 3 | F7: =IF(C7="Yes",3,0) -> 3
B8: Thailand | E8: 0 | F8: =IF(C8="Yes",3,0) -> 0
B9: Indonesia | E9: 0 | F9: =IF(C9="Yes",3,0) -> 0
B10: The Philippines | E10: 0 | F10: =IF(C10="Yes",2,0) -> 0
B11: Vietnam | E11: 0 | F11: =IF(C11="Yes",2,0) -> 0
B12: Laos | E12: 0 | F12: =IF(C12="Yes",1,0) -> 0
B13: Cambodia | E13: 0 | F13: =IF(C13="Yes",1,0) -> 0
B14: Myanmar | E14: 0 | F14: =IF(C14="Yes",1,0) -> 0
F15: TFS | G15: 8
B17: Fitment Type | D17: Details | G17: Fitment Rating Score, α
B18: Option A | D18: Vehicle model is equipped with BST for both nearside and offside as standard equipment | G18: 1
B19: Option B | D19: Vehicle model is equipped with BST for both nearside and offside as optional equipment | G19: 0.5
B20: Option C | D20: Vehicle model is equipped with BST for one side only as standard equipment | G20: 0.5
B21: Option D | D21: Vehicle model is equipped with BST for one side only as optional equipment | G21: 0.25
B22: Option E | D22: Vehicle model is not equipped with BST | G22: 0
B25: BST Assessment
B26: Position | C26: Type of Assessment | E26: Result | F26: OVERALL RESULT
B27: Driver Side | C27: 1 | D27: Must give warning | E27: Pass | F27: =IF(AND(E27="Pass",E28="Pass",E29="Pass",E30="Pass"), "PASS","FAIL") -> PASS
C28: 2 | D28: Must give warning | E28: Pass
C29: 3 | D29: Must give warning | E29: Pass
C30: False signal | E30: Pass
B31: Passenger Side | C31: 1 | D31: Must give warning | E31: Fail | F31: =IF(AND(E31="Pass",E32="Pass",E33="Pass",E34="Pass"), "PASS","FAIL") -> FAIL
C32: 2 | D32: Must give warning | E32: Pass
C33: 3 | D33: Must give warning | E33: Pass
C34: False signal | E34: Pass

Sheet MS-ARV
B2: Fitment Rating System for Advanced Rear Visualization
B4: COUNTRY | D4: FITMENT TYPE | E4: α x CS | F4: CS | G4: CTFS
B5: Brunei | E5: =IF(AND(C5="Yes",D5="Option A"),F5*1,IF(AND(C5="Yes",D5="Option B"),F5*0.5,IF(AND(C5="Yes",D5="Option C"),F5*0,0))) -> 0 | F5: =IF(C5="Yes",2,0) -> 0 | G5: =(SUM(E5:E14)/SUM(F5:F14))*G15*G31 -> 3
B6: Singapore | E6: =IF(AND(C6="Yes",D6="Option A"),F6*1,IF(AND(C6="Yes",D6="Option B"),F6*0.5,IF(AND(C6="Yes",D6="Option C"),F6*0,0))) -> 0 | F6: =IF(C6="Yes",2,0) -> 0
B7: Malaysia | C7: Yes | D7: Option A | E7: 3 | F7: =IF(C7="Yes",3,0) -> 3
B8: Thailand | E8: 0 | F8: =IF(C8="Yes",3,0) -> 0
B9: Indonesia | E9: 0 | F9: =IF(C9="Yes",3,0) -> 0
B10: The Philippines | E10: 0 | F10: =IF(C10="Yes",2,0) -> 0
B11: Vietnam | E11: 0 | F11: =IF(C11="Yes",2,0) -> 0
B12: Laos | E12: 0 | F12: =IF(C12="Yes",1,0) -> 0
B13: Cambodia | E13: 0 | F13: =IF(C13="Yes",1,0) -> 0
B14: Myanmar | E14: 0 | F14: =IF(C14="Yes",1,0) -> 0
F15: TFS | G15: 3
B17: Fitment Type | D17: Details | G17: Fitment Rating Score, α
B18: Option A | D18: Vehicle model is equipped with ARV as standard equipment | G18: 1
B19: Option B | D19: Vehicle model is equipped with ARV as optional equipment | G19: 0.5
B20: Option C | D20: Vehicle model is not equipped with ARV | G20: 0
B22: Functional | C22: Criteria | E22: Asessment | G22: Scoring
B23: Rearward Visibility | C23: Proximity Visibility | E23: Larger than inside mirror | G23: =IF(E23="Larger than inside mirror",0.5,0) -> 0.5
C24: Field of view expansion | E24: Over 3m | G24: =IF(E24="Over 3m",0.5,IF(E24="Expanded",0.3,0)) -> 0.5
C25: Long Distance Visibility (20m) | E25: Over 5.25m | G25: =IF(E25="Over 5.25m",0.5,IF(E25="Over 3.50m",0.4,IF(E25="Over 1.75m",0.3,0))) -> 0.5
C26: Long Distance Visibility(30m) | E26: Over 5.25m | G26: =IF(E26="Over 5.25m",0.5,IF(E26="Over 3.50m",0.4,IF(E26="Over 1.75m",0.3,0))) -> 0.5
B27: Night Adaptation | C27: Visibility | E27: Pass | G27: =IF(E27="Pass",1.5,1) -> 1.5
B28: Environment Adaptation | C28: Glare | E28: Pass | G28: =IF(E28="Pass",0.5,0) -> 0.5
C29: Weathear | E29: Pass | G29: =IF(E29="Pass",0.5,0) -> 0.5
E30: ARV System Score | G30: =SUM(G23:H26)*G27+(SUM(G28:H29)) -> 4
E31: Normalize Score | G31: =G30/4 -> 1

Sheet MS-AHB
B2: Fitment Rating System for Automatic High Beam (AHB) | M2: Performance Evaluation for Automatic High Beam (AHB)
B4: COUNTRY | D4: FITMENT TYPE | E4: α x CS | F4: CS | G4: CTFS | M4: Test Condition
B5: Brunei | C5: Yes | D5: Option B | E5: =IF(AND(C5="Yes",D5="Option A"),F5*1,IF(AND(C5="Yes",D5="Option B"),F5*0.8,IF(AND(C5="Yes",D5="Option C"),F5*0.667,IF(AND(C5="Yes",D5="Option D"),F5*0.584,IF(AND(C5="Yes",D5="Option E"),F5*0.5,IF(AND(C5="Yes",D5="Option F"),F5*0.333,0)))))) -> 1.6 | F5: =IF(C5="Yes",2,0) -> 2 | G5: =(SUM(E5:E14)/SUM(F5:F14))*G15*H32 -> 2.94 | M5: Ambient temperature (oC) | P5: 40 | S5: (5°C - 40°C)
B6: Singapore | C6: Yes | D6: Option A | E6: 2 | F6: =IF(C6="Yes",2,0) -> 2 | M6: Road illumination (lux) | P6: 15 | S6: (≥ 15 lux)
B7: Malaysia | C7: Yes | D7: Option A | E7: 3 | F7: =IF(C7="Yes",3,0) -> 3 | M7: Road without illumination (lux) | P7: 4 | S7: (<5 lux)
B8: Thailand | C8: Yes | D8: Option A | E8: 3 | F8: =IF(C8="Yes",3,0) -> 3 | M8: ’Automatic switching type’ (Yes/No) | P8: Yes
B9: Indonesia | C9: Yes | D9: Option A | E9: 3 | F9: =IF(C9="Yes",3,0) -> 3
B10: The Philippines | C10: Yes | D10: Option A | E10: 2 | F10: =IF(C10="Yes",2,0) -> 2 | M10: Operation Speed Assessment
B11: Vietnam | C11: Yes | D11: Option A | E11: 2 | F11: =IF(C11="Yes",2,0) -> 2 | M11: Requirement | N11: Activated Start Speed (km/h) | Q11: Performance Acceptability
B12: Laos | C12: Yes | D12: Option A | E12: 1 | F12: =IF(C12="Yes",1,0) -> 1 | N12: (< 50 km/h) | Q12: (Yes/No)
B13: Cambodia | C13: Yes | D13: Option A | E13: 1 | F13: =IF(C13="Yes",1,0) -> 1 | N13: Run 1 | O13: Run 2 | P13: Run 3 | Q13: VUT | R13: Oncoming | S13: VUT | T13: Preceding
B14: Myanmar | C14: Yes | D14: Option A | E14: 1 | F14: =IF(C14="Yes",1,0) -> 1 | M14: URBAN ROADa
F15: TFS | G15: 3 | M15: With illumination
M16: Low to High Beam1 | Q16: Yes | R16: Yes | S16: Yes | T16: Yes | W16: Yes
B17: Fitment Type | C17: Details | G17: Fitment Rating Score, α | M17: RESULT | N17: =IF(AND(N16<50,O16<50,P16<50),"PASS","FAIL") -> PASS | Q17: =IF(Q16="Yes","PASS","FAIL") -> PASS | W17: No
B18: Option A | C18: Vehicle model is equipped with ADB as standard equipment | G18: 1 | M18: High to Low Beam2 | N18: 45 | Q18: Yes | R18: Yes | S18: Yes | T18: Yes
B19: Option B | C19: Vehicle model is equipped with ADB as optional equipment but AHB as standard equipment | G19: 0.8 | M19: RESULT | N19: =IF(AND(N18<50,O18<50,P18<50),"PASS","FAIL") -> PASS | Q19: =IF(AND(Q18="Yes",R18="Yes",S18="Yes",T18="Yes"),"PASS","FAIL") -> PASS
B20: Option C | C20: Vehicle model is not equipped with ADB but equipped with AHB as standard equipment | G20: 0.667 | M20: Without illumination
B21: Option D | C21: Vehicle model is equipped with ADB as optional and AHB as optional equipment | G21: 0.584 | M21: Low to High Beam1 | Q21: Yes | R21: Yes | S21: Yes | T21: Yes
B22: Option E | C22: Vehicle model is equipped with ADB as optional equipment and not equipped with AHB | G22: 0.5 | M22: RESULT | N22: =IF(AND(N21<50,O21<50,P21<50),"PASS","FAIL") -> PASS | Q22: =IF(Q21="Yes","PASS","FAIL") -> PASS
B23: Option F | C23: Vehicle model is not equipped with ADB but equipped with AHB as optional equipment | G23: 0.333 | M23: High to Low Beam2 | Q23: Yes | R23: Yes | S23: Yes | T23: Yes
B24: Option G | C24: Vehicle model is not equipped with either AHB or ADB | G24: 0 | M24: RESULT | N24: =IF(AND(N23<50,O23<50,P23<50),"PASS","FAIL") -> PASS | Q24: =IF(AND(Q23="Yes",R23="Yes",S23="Yes",T23="Yes"),"PASS","FAIL") -> PASS
M25: COUNTRY ROADb
M26: Low to High Beam1 | Q26: Yes | R26: Yes | S26: Yes | T26: Yes
B27: Test | D27: Headlight | E27: Activated Speed or Distance | F27: Status | G27: Result | H27: Score | M27: RESULT | N27: =IF(AND(N26<50,O26<50,P26<50),"PASS","FAIL") -> PASS | Q27: =IF(Q26="Yes","PASS","FAIL") -> PASS
B28: Operational Speed | D28: Low to High Beam and Vice Versa | E28: < 50 km/h | F28: Auto switching | G28: =IF(AND(N17="PASS", Q17="PASS", N19="PASS", Q19="PASS", N22="PASS", Q22="PASS", N24="PASS", Q24="PASS", N27="PASS", Q27="PASS", N29="PASS", Q29="PASS"), "Pass", "Fail") -> Pass | H28: =IF(G28="Pass",1,0) -> 1 | M28: High to Low Beam2 | Q28: Yes | R28: Yes | S28: Yes | T28: Yes
B29: Illuminance measurement | D29: High Beam | E29: 100 meters | F29: 5 Lux (Min) | G29: =IF(AND(S37="PASS",S38="PASS",S39="PASS",S40="PASS"),"Pass","Fail") -> Pass | H29: =IF(G29="Pass",1,0) -> 1 | M29: RESULT | N29: =IF(AND(N28<50,O28<50,P28<50),"PASS","FAIL") -> PASS | Q29: =IF(AND(Q28="Yes",R28="Yes",S28="Yes",T28="Yes"),"PASS","FAIL") -> PASS
B30: ADB Functioning | G30: 0 | H30: 1 | M30: 1 Must automatically switching at < 50 km/h | P30: a Detect oncoming/preceding vehicle at < 50 km/h
F31: AHB/ADB System Score | H31: =SUM(H28:H30) -> 3 | M31: 2 Detect oncoming/preceding vehicle at < 50 km/h | P31: b Detect oncoming/preceding vehicle at < 50 km/h
F32: Normalized Score | H32: =H31/3 -> 1
M35: Illuminance Evaluation
M36: Position | N36: Distance (m) 1 | P36: Height (cm) 2 | R36: Measurement (lux) | S36: RESULT
M37: A | N37: 100 | P37: 25 | R37: 5 | S37: =IF(R37>4,"PASS","FAIL") -> PASS
P38: 110 | R38: 5 | S38: =IF(R38>4,"PASS","FAIL") -> PASS
M39: B | N39: 100 | P39: 25 | R39: 5 | S39: =IF(R39>4,"PASS","FAIL") -> PASS
P40: 110 | R40: 5 | S40: =IF(R40>4,"PASS","FAIL") -> PASS
M41: 1 Measured from the ground
M42: 2 Measured from the VUT leading edge

Sheet MS-PED
B2: Fitment Rating System for Pedestrian Protection
B4: COUNTRY | D4: FITMENT TYPE | E4: α x CS | F4: CS | G4: CTFS
B5: Brunei | E5: =IF(AND(C5="Yes",D5="Option A"),F5*1,IF(AND(C5="Yes",D5="Option B"),F5*0.5,IF(AND(C5="Yes",D5="Option C"),F5*0,0))) -> 0 | F5: =IF(C5="Yes",2,0) -> 0 | G5: =(SUM(E5:E14)/SUM(F5:F14))*G15 -> 1
B6: Singapore | E6: =IF(AND(C6="Yes",D6="Option A"),F6*1,IF(AND(C6="Yes",D6="Option B"),F6*0.5,IF(AND(C6="Yes",D6="Option C"),F6*0,0))) -> 0 | F6: =IF(C6="Yes",2,0) -> 0
B7: Malaysia | C7: Yes | D7: Option B | E7: 1.5 | F7: =IF(C7="Yes",3,0) -> 3
B8: Thailand | E8: 0 | F8: =IF(C8="Yes",3,0) -> 0
B9: Indonesia | E9: 0 | F9: =IF(C9="Yes",3,0) -> 0
B10: The Philippines | E10: 0 | F10: =IF(C10="Yes",2,0) -> 0
B11: Vietnam | E11: 0 | F11: =IF(C11="Yes",2,0) -> 0
B12: Laos | E12: 0 | F12: =IF(C12="Yes",1,0) -> 0
B13: Cambodia | E13: 0 | F13: =IF(C13="Yes",1,0) -> 0
B14: Myanmar | E14: 0 | F14: =IF(C14="Yes",1,0) -> 0
F15: TFS | G15: 2
B16: Valid Until 31st December 2027
B17: Fitment Type | D17: Details | G17: Fitment Rating Score, α
B18: Option A | D18: Vehicle model meets Pedestrian Protection (UNR 127-3) | G18: 1
B19: Option B | D19: Vehicle model meets Pedestrian Protection (UNR 127-2) | G19: 0.5
B20: Option C | D20: Vehicle model does not meet Pedestrian Protection (UNR 127) | G20: 0

Sheet MS-AEB CM
B2: Fitment Rating System for AEB Car to Motorcyclist
B4: COUNTRY | D4: FITMENT TYPE | E4: α x CS | F4: CS | G4: CTFS
B5: Brunei | E5: =IF(AND(C5="Yes",D5="Option A"),F5*1,IF(AND(C5="Yes",D5="Option B"),F5*0.5,IF(AND(C5="Yes",D5="Option C"),F5*0,0))) -> 0 | F5: =IF(C5="Yes",2,0) -> 0 | G5: =(SUM(E5:E14)/SUM(F5:F14))*G15*C101 -> 6
B6: Singapore | E6: =IF(AND(C6="Yes",D6="Option A"),F6*1,IF(AND(C6="Yes",D6="Option B"),F6*0.5,IF(AND(C6="Yes",D6="Option C"),F6*0,0))) -> 0 | F6: =IF(C6="Yes",2,0) -> 0
B7: Malaysia | C7: Yes | D7: Option A | E7: 3 | F7: =IF(C7="Yes",3,0) -> 3
B8: Thailand | E8: 0 | F8: =IF(C8="Yes",3,0) -> 0
B9: Indonesia | E9: 0 | F9: =IF(C9="Yes",3,0) -> 0
B10: The Philippines | E10: 0 | F10: =IF(C10="Yes",2,0) -> 0
B11: Vietnam | E11: 0 | F11: =IF(C11="Yes",2,0) -> 0
B12: Laos | E12: 0 | F12: =IF(C12="Yes",1,0) -> 0
B13: Cambodia | E13: 0 | F13: =IF(C13="Yes",1,0) -> 0
B14: Myanmar | E14: 0 | F14: =IF(C14="Yes",1,0) -> 0
F15: TFS | G15: 6
B17: Fitment Type | D17: Details | G17: Fitment Rating Score, α
B18: Option A | D18: Vehicle model is equipped with AEB CM as standard equipment | G18: 1
B19: Option B | D19: Vehicle model is equipped with AEB CM as optional equipment | G19: 0.5
B20: Option C | D20: Vehicle model is not equipped with AEB CM | G20: 0
B23: CMRm (50%) | C23: 30km/h | G23: 45 km/h | K23: 60 km/h
C24: AEB | E24: FCW | G24: AEB | I24: FCW | K24: AEB | M24: FCW
B25: Test speed (km/h) | C25: Vimpact (km/h) | D25: Points | E25: Vimpact (km/h) | F25: Points | G25: Vimpact (km/h) | H25: Points | I25: Vimpact (km/h) | J25: Points | K25: Vimpact (km/h) | L25: Points | M25: Vimpact (km/h) | N25: Points
B26: 40 | C26: 0 | D26: =IF(C26="",0,IF(C26=0,1,0)) -> 1 | E26: 0 | F26: =IF(E26="",0,IF(E26=0,1,0)) -> 1
B27: 45 | C27: 0 | D27: =IF(C27="",0,IF(C27=0,1,0)) -> 1 | E27: 0 | F27: 1
B28: 50 | C28: 0 | D28: 1 | E28: 0 | F28: 1
B29: 55 | C29: 0 | D29: 1 | E29: 0 | F29: 1 | G29: 0 | H29: =IF(G29="",0,IF(G29=0,1,0)) -> 1 | I29: 0 | J29: =IF(I29="",0,IF(I29=0,1,0)) -> 1
B30: 60 | C30: 0 | D30: 1 | E30: 0 | F30: 1 | G30: 0 | H30: 1 | I30: 0 | J30: 1
B31: 65 | E31: 0 | F31: 1 | I31: 0 | J31: 1
B32: 70 | E32: 0 | F32: 1 | I32: 0 | J32: 1 | M32: 0 | N32: =IF(M32="",0,IF(M32=0,1,0)) -> 1
B33: 75 | E33: 0 | F33: 1 | I33: 0 | J33: 1 | M33: 0 | N33: 1
B34: 80 | E34: 0 | F34: 1 | I34: 0 | J34: 1 | M34: 0 | N34: 1
B35: Result | C35: =SUM(D26:D30) -> 5 | E35: =SUM(F26:F34) -> 9 | G35: =SUM(H29:H30) -> 2 | I35: =SUM(J29:J34) -> 6 | M35: =SUM(N32:N34) -> 3
B38: CMRm (25%) | C38: 30km/h | E38: 45 km/h | G38: 60 km/h
C39: FCW | E39: FCW | G39: FCW
B40: Test speed (km/h) | C40: Vimpact (km/h) | D40: Points | E40: Vimpact (km/h) | F40: Points | G40: Vimpact (km/h) | H40: Points
B41: 40 | C41: 0 | D41: =IF(C41="",0,IF(C41=0,1,0)) -> 1
B42: 45 | C42: 0 | D42: =IF(C42="",0,IF(C42=0,1,0)) -> 1
B43: 50 | C43: 0 | D43: 1
B44: 55 | C44: 0 | D44: 1 | E44: 0 | F44: =IF(E44="",0,IF(E44=0,1,0)) -> 1
B45: 60 | C45: 0 | D45: 1 | E45: 0 | F45: 1
B46: 65 | C46: 0 | D46: =IF(C46="",0,IF(C46=0,1,0)) -> 1 | E46: 0 | F46: 1
B47: 70 | C47: 0 | D47: =IF(C47="",0,IF(C47=0,1,0)) -> 1 | E47: 0 | F47: 1 | G47: 0 | H47: =IF(G47="",0,IF(G47=0,1,0)) -> 1
B48: 75 | C48: 0 | D48: 1 | E48: 0 | F48: 1 | G48: 0 | H48: 1
B49: 80 | C49: 0 | D49: 1 | E49: 0 | F49: 1 | G49: 0 | H49: 1
B50: Result | C50: =SUM(D41:D49) -> 9 | E50: =SUM(F44:F49) -> 6 | G50: =SUM(H47:H49) -> 3
B53: CMFtap | C53: 30km/h | E53: 45 km/h | G53: 60 km/h
B55: Test speed (km/h) | C55: Vimpact (km/h) | D55: Points | E55: Vimpact (km/h) | F55: Points | G55: Vimpact (km/h) | H55: Points
B56: 10 | C56: 0 | D56: =IF(C56="",0,IF(C56=0,1,0)) -> 1 | E56: 0 | F56: =IF(E56="",0,IF(E56=0,1,0)) -> 1 | G56: 0 | H56: =IF(G56="",0,IF(G56=0,1,0)) -> 1
B57: 20 | C57: 0 | D57: =IF(C57="",0,IF(C57=0,1,0)) -> 1 | E57: 0 | F57: 1 | G57: 0 | H57: 1
B58: Result | C58: =SUM(D56:D57) -> 2 | E58: =SUM(F56:F57) -> 2 | G58: =SUM(H56:H57) -> 2
B61: CMCrossing (Nearside) | C61: 20km/h | F61: CMCrossing (Farside) | G61: 20km/h
B63: Test speed (km/h) | C63: Vimpact (km/h) | D63: Points | F63: Test speed (km/h) | G63: Vimpact (km/h) | H63: Points
B64: 20 | C64: 0 | D64: =IF(C64="",0,IF(C64=0,1,0)) -> 1 | F64: 20 | G64: 0 | H64: =IF(G64="",0,IF(G64=0,1,0)) -> 1
B65: 25 | C65: 0 | D65: =IF(C65="",0,IF(C65=0,1,0)) -> 1 | F65: 25 | G65: 0 | H65: =IF(G65="",0,IF(G65=0,1,0)) -> 1
B66: 30 | C66: 0 | D66: 1 | F66: 30 | G66: 0 | H66: 1
B67: 35 | C67: 0 | D67: 1 | F67: 35 | G67: 0 | H67: 1
B68: 40 | C68: 0 | D68: 1 | F68: 40 | G68: 0 | H68: 1
B69: 45 | C69: 0 | D69: 1 | F69: 45 | G69: 0 | H69: 1
B70: 50 | C70: 0 | D70: 1 | F70: 50 | G70: 0 | H70: 1
B71: 55 | C71: 0 | D71: 1 | F71: 55 | G71: 0 | H71: 1
B72: 60 | C72: 0 | D72: 1 | F72: 60 | G72: 0 | H72: 1
B73: Result | C73: =SUM(D64:D72) -> 9 | F73: Result | G73: =SUM(H64:H72) -> 9
B76: CMOncoming | C76: VUT @ 72 km/h & AMT @ 60 km/h
B78: VUT speed direction
B79: 0.2 | C79: PASS
B80: 0.3 | C80: PASS
B81: 0.4 | C81: PASS
B82: 0.5 | C82: PASS
B83: 0.6 | C83: PASS
B84: Result | C84: =IF(COUNTIF(C79:D83,"Pass")=5,1,0) -> 1
B87: Summary
B89: Test scenario | C89: Test type | D89: Total | E89: Points
B90: CMRm (50%) | C90: AEB | D90: =C35+G35 -> 7 | E90: =(D90+D91+D92)/43*1.5 -> 1.5
C91: FCW | D91: =E35+I35+M35 -> 18
B92: CMRm (25%) | C92: FCW | D92: =C50+E50+G50 -> 18
B94: CMFtap | C94: AEB | D94: =C58+E58+G58 -> 6 | E94: =D94/6*1.5 -> 1.5
B96: CMCrossing | C96: AEB | D96: =C73+G73 -> 18 | E96: =D96/18*1.5 -> 1.5
B98: CMOncoming | C98: LSS | D98: =C84 -> 1 | E98: =D98*1.5 -> 1.5
B100: AEB CM Score | C100: =SUM(E90:E99) -> 6
B101: Normalized Score | C101: =C100/6 -> 1

Sheet MS-Advanced
B2: FRS Total Score for Advanced MSTs | F2: =IF(SUM(G8,G28,G48,G68,G88)>2,2,SUM(G8,G28,G48,G68,G88)) -> 2
B5: Fitment Rating System for RCTA/RCTB
B7: COUNTRY | D7: FITMENT TYPE | E7: α x CS | F7: CS | G7: CTFS
B8: Brunei | E8: =IF(AND(C8="Yes",D8="Option A"),F8*1,IF(AND(C8="Yes",D8="Option B"),F8*0,0)) -> 0 | F8: =IF(C8="Yes",2,0) -> 0 | G8: =(SUM(E8:E17)/SUM(F8:F17))*G18 -> 1
B9: Singapore | E9: =IF(AND(C9="Yes",D9="Option A"),F9*1,IF(AND(C9="Yes",D9="Option B"),F9*0,0)) -> 0 | F9: =IF(C9="Yes",2,0) -> 0
B10: Malaysia | C10: Yes | D10: Option A | E10: 3 | F10: =IF(C10="Yes",3,0) -> 3
B11: Thailand | E11: 0 | F11: =IF(C11="Yes",3,0) -> 0
B12: Indonesia | E12: 0 | F12: =IF(C12="Yes",3,0) -> 0
B13: The Philippines | E13: 0 | F13: =IF(C13="Yes",2,0) -> 0
B14: Vietnam | E14: 0 | F14: =IF(C14="Yes",2,0) -> 0
B15: Laos | E15: 0 | F15: =IF(C15="Yes",1,0) -> 0
B16: Cambodia | E16: 0 | F16: =IF(C16="Yes",1,0) -> 0
B17: Myanmar | E17: 0 | F17: =IF(C17="Yes",1,0) -> 0
F18: TFS | G18: 1
B20: Fitment Type | D20: Details | G20: Fitment Rating Score, α
B21: Option A | D21: Vehicle model is equipped with RCTA/RCTB as standard or optional equipment | G21: 1
B22: Option B | D22: Vehicle model is not equipped with RCTA/RCTB | G22: 0
B25: Fitment Rating System for Head Protection
B27: COUNTRY | D27: FITMENT TYPE | E27: α x CS | F27: CS | G27: CTFS
B28: Brunei | E28: =IF(AND(C28="Yes",D28="Option A"),F28*1,IF(AND(C28="Yes",D28="Option B"),F28*0,0)) -> 0 | F28: =IF(C28="Yes",2,0) -> 0 | G28: =(SUM(E28:E37)/SUM(F28:F37))*G38 -> 1
B29: Singapore | E29: =IF(AND(C29="Yes",D29="Option A"),F29*1,IF(AND(C29="Yes",D29="Option B"),F29*0,0)) -> 0 | F29: =IF(C29="Yes",2,0) -> 0
B30: Malaysia | C30: Yes | D30: Option A | E30: 3 | F30: =IF(C30="Yes",3,0) -> 3
B31: Thailand | E31: 0 | F31: =IF(C31="Yes",3,0) -> 0
B32: Indonesia | E32: 0 | F32: =IF(C32="Yes",3,0) -> 0
B33: The Philippines | E33: 0 | F33: =IF(C33="Yes",2,0) -> 0
B34: Vietnam | E34: 0 | F34: =IF(C34="Yes",2,0) -> 0
B35: Laos | E35: 0 | F35: =IF(C35="Yes",1,0) -> 0
B36: Cambodia | E36: 0 | F36: =IF(C36="Yes",1,0) -> 0
B37: Myanmar | E37: 0 | F37: =IF(C37="Yes",1,0) -> 0
F38: TFS | G38: 1
B40: Fitment Type | D40: Details | G40: Fitment Rating Score, α
B41: Option A | D41: Vehicle model is equipped with Head Protection as standard or optional equipment | G41: 1
B42: Option B | D42: Vehicle model is not equipped with Head Protection | G42: 0
B45: Fitment Rating System for XXX
B47: COUNTRY | D47: FITMENT TYPE | E47: α x CS | F47: CS | G47: CTFS
B48: Brunei | E48: =IF(AND(C48="Yes",D48="Option A"),F48*1,IF(AND(C48="Yes",D48="Option B"),F48*0,0)) -> 0 | F48: =IF(C48="Yes",2,0) -> 0 | G48: =(SUM(E48:E57)/SUM(F48:F57))*G58 -> 1
B49: Singapore | E49: =IF(AND(C49="Yes",D49="Option A"),F49*1,IF(AND(C49="Yes",D49="Option B"),F49*0,0)) -> 0 | F49: =IF(C49="Yes",2,0) -> 0
B50: Malaysia | C50: Yes | D50: Option A | E50: 3 | F50: =IF(C50="Yes",3,0) -> 3
B51: Thailand | E51: 0 | F51: =IF(C51="Yes",3,0) -> 0
B52: Indonesia | E52: 0 | F52: =IF(C52="Yes",3,0) -> 0
B53: The Philippines | E53: 0 | F53: =IF(C53="Yes",2,0) -> 0
B54: Vietnam | E54: 0 | F54: =IF(C54="Yes",2,0) -> 0
B55: Laos | E55: 0 | F55: =IF(C55="Yes",1,0) -> 0
B56: Cambodia | E56: 0 | F56: =IF(C56="Yes",1,0) -> 0
B57: Myanmar | E57: 0 | F57: =IF(C57="Yes",1,0) -> 0
F58: TFS | G58: 1
B60: Fitment Type | D60: Details | G60: Fitment Rating Score, α
B61: Option A | D61: Vehicle model is equipped with XXX as standard or optional equipment | G61: 1
B62: Option B | D62: Vehicle model is not equipped with XXX | G62: 0
B65: Fitment Rating System for XXX
B67: COUNTRY | D67: FITMENT TYPE | E67: α x CS | F67: CS | G67: CTFS
B68: Brunei | E68: =IF(AND(C68="Yes",D68="Option A"),F68*1,IF(AND(C68="Yes",D68="Option B"),F68*0,0)) -> 0 | F68: =IF(C68="Yes",2,0) -> 0 | G68: =(SUM(E68:E77)/SUM(F68:F77))*G78 -> 0
B69: Singapore | E69: =IF(AND(C69="Yes",D69="Option A"),F69*1,IF(AND(C69="Yes",D69="Option B"),F69*0,0)) -> 0 | F69: =IF(C69="Yes",2,0) -> 0
B70: Malaysia | C70: Yes | E70: 0 | F70: =IF(C70="Yes",3,0) -> 3
B71: Thailand | E71: 0 | F71: =IF(C71="Yes",3,0) -> 0
B72: Indonesia | E72: 0 | F72: =IF(C72="Yes",3,0) -> 0
B73: The Philippines | E73: 0 | F73: =IF(C73="Yes",2,0) -> 0
B74: Vietnam | E74: 0 | F74: =IF(C74="Yes",2,0) -> 0
B75: Laos | E75: 0 | F75: =IF(C75="Yes",1,0) -> 0
B76: Cambodia | E76: 0 | F76: =IF(C76="Yes",1,0) -> 0
B77: Myanmar | E77: 0 | F77: =IF(C77="Yes",1,0) -> 0
F78: TFS | G78: 1
B80: Fitment Type | D80: Details | G80: Fitment Rating Score, α
B81: Option A | D81: Vehicle model is equipped with XXX as standard or optional equipment | G81: 1
B82: Option B | D82: Vehicle model is not equipped with XXX | G82: 0
B85: Fitment Rating System for XXX
B87: COUNTRY | D87: FITMENT TYPE | E87: α x CS | F87: CS | G87: CTFS
B88: Brunei | E88: =IF(AND(C88="Yes",D88="Option A"),F88*1,IF(AND(C88="Yes",D88="Option B"),F88*0,0)) -> 0 | F88: =IF(C88="Yes",2,0) -> 0 | G88: =(SUM(E88:E97)/SUM(F88:F97))*G98 -> 0
B89: Singapore | E89: =IF(AND(C89="Yes",D89="Option A"),F89*1,IF(AND(C89="Yes",D89="Option B"),F89*0,0)) -> 0 | F89: =IF(C89="Yes",2,0) -> 0
B90: Malaysia | C90: Yes | E90: 0 | F90: =IF(C90="Yes",3,0) -> 3
B91: Thailand | E91: 0 | F91: =IF(C91="Yes",3,0) -> 0
B92: Indonesia | E92: 0 | F92: =IF(C92="Yes",3,0) -> 0
B93: The Philippines | E93: 0 | F93: =IF(C93="Yes",2,0) -> 0
B94: Vietnam | E94: 0 | F94: =IF(C94="Yes",2,0) -> 0
B95: Laos | E95: 0 | F95: =IF(C95="Yes",1,0) -> 0
B96: Cambodia | E96: 0 | F96: =IF(C96="Yes",1,0) -> 0
B97: Myanmar | E97: 0 | F97: =IF(C97="Yes",1,0) -> 0
F98: TFS | G98: 1
B100: Fitment Type | D100: Details | G100: Fitment Rating Score, α
B101: Option A | D101: Vehicle model is equipped with XXX as standard or optional equipment | G101: 1
B102: Option B | D102: Vehicle model is not equipped with XXX | G102: 0

Sheet Rating Requirements (hidden)
A1: 3 | B1: 2012 | G1: 2013 | L1: 2014 | Q1: 2015 | V1: 2016
B2: AOP | C2: COP | D2: PP | E2: SA | F2: TOT | G2: AOP | H2: COP | I2: PP | J2: SA | K2: TOT | L2: AOP | M2: COP | N2: PP | O2: SA | P2: TOT | Q2: AOP | R2: COP | S2: PP | T2: SA | U2: TOT | V2: AOP | W2: COP | X2: PP | Y2: SA | Z2: TOT
A3: 5 stars | B3: 80 | C3: 75 | D3: 60 | E3: 60 | F3: 80 | G3: 80 | H3: 60 | I3: 60 | J3: 65 | K3: 80 | L3: 80 | M3: 75 | N3: 60 | O3: 65 | P3: 75 | Q3: 80 | R3: 75 | S3: 65 | T3: 70 | U3: 75
A4: 4 stars | B4: 70 | C4: 60 | D4: 50 | E4: 40 | F4: 70 | G4: 70 | H4: 60 | I4: 50 | J4: 55 | K4: 70 | L4: 70 | M4: 60 | N4: 50 | O4: 55 | P4: 65 | Q4: 70 | R4: 60 | S4: 50 | T4: 60 | U4: 65
A5: 3 stars | B5: 40 | C5: 30 | D5: 25 | E5: 25 | F5: 60 | G5: 40 | H5: 30 | I5: 25 | J5: 30 | K5: 60 | L5: 50 | M5: 30 | N5: 40 | O5: 30 | P5: 50 | Q5: 50 | R5: 30 | S5: 40 | T5: 40 | U5: 50
A6: 2 stars | B6: 30 | C6: 25 | D6: 15 | E6: 15 | F6: 55 | G6: 30 | H6: 25 | I6: 15 | J6: 20 | K6: 55 | L6: 30 | M6: 25 | N6: 20 | O6: 20 | P6: 40 | Q6: 30 | R6: 25 | S6: 20 | T6: 20 | U6: 40
A7: 1 star | B7: 20 | C7: 15 | D7: 10 | E7: 5 | F7: 45 | G7: 20 | H7: 15 | I7: 10 | J7: 10 | K7: 45 | L7: 20 | M7: 15 | N7: 10 | O7: 10 | P7: 30 | Q7: 20 | R7: 15 | S7: 10 | T7: 10 | U7: 30
A8: Weighting | B8: 50 | C8: 20 | D8: 20 | E8: 10 | G8: 50 | H8: 20 | I8: 20 | J8: 10 | L8: 40 | M8: 20 | N8: 20 | O8: 20 | Q8: 40 | R8: 20 | S8: 20 | T8: 20
A9: Max points | B9: 36 | C9: 49 | D9: 36 | E9: 7 | G9: 36 | H9: 49 | I9: 36 | J9: 9 | L9: 38 | M9: 49 | N9: 36 | O9: 13 | Q9: 38 | R9: 49 | S9: 36 | T9: 13

Sheet Database Reference (hidden)
A1: ValueStructure_Key | B1: Parent_Key | C1: ValueName | D1: Description | E1: Label | F1: XMLtag | G1: ValueFunction | H1: Sort | I1: DATABASE_ID | AA1: N/A | AB1: 0 | AC1: N/A | AD1: 0 | AE1: Belt | AF1: 1
A2: 581 | B2: 697 | C2: POLE TEST PERFORMED | F2: Yes | G2: Database Reference'!$K$483 | H2: 50 | I2: =COUNTIF($A$2:$A$3487,A2) -> 1 | AA2: D Green | AB2: 1 | AC2: Exempt | AD2: 1 | AE2: iSize | AF2: 3
A3: 100 | B3: 611 | C3: UNROUNDED ADULT OCCUPANT SCORE | F3: =#REF! ->  | G3: Database Reference'!$K$2 | H3: 10 | I3: 1 | AA3: Green | AB3: 2 | AC3: Pass | AD3: 2 | AE3: ISOFIX | AF3: 2
A4: 101 | B4: 100 | C4: FRONTAL IMPACT SCORE | F4: =#REF! ->  | G4: Database Reference'!$K$3 | H4: 10 | I4: 1 | AA4: Yellow | AB4: 3 | AC4: P Fail | AD4: 3 | AE4: N/A | AF4: 0
A5: 102 | B5: 101 | C5: HEAD AND NECK BODY REGION SCORE | F5: =MIN(F6,F24) -> 4 | H5: 10 | I5: 1 | AA5: Orange | AB5: 4 | AC5: Fail | AD5: 4
A6: 103 | B6: 102 | C6: DRIVER HEAD/NECK SCORE | F6: ='AOP Frontal ODB'!D32 -> 4 | G6: Database Reference'!$K$5 | H6: 10 | I6: 1 | AA6: Brown | AB6: 5
A7: 104 | B7: 103 | C7: DRIVER HEAD SCORE | F7: ='AOP Frontal ODB'!E22 -> 4 | G7: Database Reference'!$K$6 | H7: 10 | I7: 1 | AA7: Red | AB7: 6
A8: 105 | B8: 104 | C8: HIC36 | F8: ='AOP Frontal ODB'!D8 -> 500 | G8: Database Reference'!$K$7 | H8: 10 | I8: 1 | AA8: D Red | AB8: 7
A9: 106 | B9: 104 | C9: Resultant Acc. 3 msec exeedence | F9: ='AOP Frontal ODB'!D9 -> 37.71 | G9: Database Reference'!$K$8 | H9: 20 | I9: 1 | AA9: Blue | AB9: 8
A10: 107 | B10: 104 | C10: Honeycomb crush | F10: ='AOP Frontal ODB'!D11 -> 0 | G10: Database Reference'!$K$9 | H10: 30 | I10: 1
A11: 108 | B11: 104 | C11: HIC36 | D11: Honeycomb crush | F11: ='AOP Frontal ODB'!D13 -> 0 | G11: Database Reference'!$K$10 | H11: 40 | I11: 1
A12: 109 | B12: 104 | C12: Resultant peak Acc. | D12: Honeycomb crush | F12: ='AOP Frontal ODB'!D12 -> 0 | G12: Database Reference'!$K$11 | H12: 50 | I12: 1
A13: 110 | B13: 104 | C13: Resultant Acc. 3 msec exeedence | D13: Honeycomb crush | F13: ='AOP Frontal ODB'!D14 -> 0 | G13: Database Reference'!$K$12 | H13: 60 | I13: 1
A14: 111 | B14: 104 | C14: Displacement top end of steering column H (-1-0 points) | F14: ='AOP Frontal ODB'!D19 -> -18.313 | G14: Database Reference'!$K$13 | H14: 70 | I14: 1
A15: 112 | B15: 104 | C15: Displacement top end of steering column V (-1-0 points) | F15: ='AOP Frontal ODB'!D20 -> 15.927 | G15: Database Reference'!$K$14 | H15: 80 | I15: 1
A16: 113 | B16: 104 | C16: Displacement top end of steering column L (-1-0 points) | F16: ='AOP Frontal ODB'!D21 -> -3.579 | G16: Database Reference'!$K$15 | H16: 90 | I16: 1
A17: 114 | B17: 104 | C17: Unstable airbag or bottoming out(-1-0 points) | F17: 0 | G17: Database Reference'!$K$16 | H17: 100 | I17: 1
A18: 115 | B18: 103 | C18: DRIVER NECK SCORE | F18: ='AOP Frontal ODB'!E30 -> 4 | G18: Database Reference'!$K$17 | H18: 20 | I18: 1
A19: 116 | B19: 115 | C19: Shear level exceeded - kN | F19: ='AOP Frontal ODB'!D25 -> 0.45 | G19: Database Reference'!$K$18 | H19: 10 | I19: 1
A20: 117 | B20: 115 | C20: Dr duration of shear exceedence | F20: ='AOP Frontal ODB'!D26 -> 0 | G20: Database Reference'!$K$19 | H20: 20 | I20: 1
A21: 118 | B21: 115 | C21: Dr Tension level exceeded - kN | F21: ='AOP Frontal ODB'!D27 -> 1.16 | G21: Database Reference'!$K$20 | H21: 30 | I21: 1
A22: 119 | B22: 115 | C22: Dr duration of tension exceedence - ms | F22: ='AOP Frontal ODB'!D28 -> 0 | G22: Database Reference'!$K$21 | H22: 40 | I22: 1
A23: 120 | B23: 115 | C23: Dr Extension My - Nm | F23: ='AOP Frontal ODB'!D29 -> 8.7 | G23: Database Reference'!$K$22 | H23: 50 | I23: 1
A24: 121 | B24: 102 | C24: PASSENGER HEAD/NECK SCORE | F24: ='AOP Frontal ODB'!F32 -> 4 | G24: Database Reference'!$K$23 | H24: 20 | I24: 1
A25: 122 | B25: 121 | C25: PASSENGER HEAD SCORE | F25: ='AOP Frontal ODB'!G22 -> 4 | G25: Database Reference'!$K$24 | H25: 10 | I25: 1
A26: 123 | B26: 122 | C26: Pass HIC36 | F26: ='AOP Frontal ODB'!F8 -> 120.56 | G26: Database Reference'!$K$25 | H26: 10 | I26: 1
A27: 124 | B27: 122 | C27: Pass Resultant Acc. 3 msec exeedence | F27: ='AOP Frontal ODB'!F9 -> 37.6 | G27: Database Reference'!$K$26 | H27: 20 | I27: 1
A28: 125 | B28: 122 | C28: Pass Unstable airbag or bottoming out(-1-0 points) | F28: 0 | G28: Database Reference'!$K$27 | H28: 30 | I28: 1
A29: 126 | B29: 121 | C29: PASSENGER NECK SCORE | F29: ='AOP Frontal ODB'!G30 -> 4 | G29: Database Reference'!$K$28 | H29: 10 | I29: 1
A30: 127 | B30: 126 | C30: Shear level exceeded - kN | F30: ='AOP Frontal ODB'!F25 -> 0.89 | G30: Database Reference'!$K$29 | H30: 10 | I30: 1
A31: 128 | B31: 126 | C31: Pass duration of shear exceedence | F31: ='AOP Frontal ODB'!F26 -> 0 | G31: Database Reference'!$K$30 | H31: 20 | I31: 1
A32: 129 | B32: 126 | C32: Tension level exceeded - kN | F32: ='AOP Frontal ODB'!F27 -> 1.44 | G32: Database Reference'!$K$31 | H32: 30 | I32: 1
A33: 130 | B33: 126 | C33: Duration of tension exceedence | F33: ='AOP Frontal ODB'!F28 -> 0 | G33: Database Reference'!$K$32 | H33: 40 | I33: 1
A34: 131 | B34: 126 | C34: Extension My - Nm | F34: ='AOP Frontal ODB'!F29 -> 7.89 | G34: Database Reference'!$K$33 | H34: 50 | I34: 1
A35: 132 | B35: 101 | C35: CHEST SCORE | F35: =MIN(F36,F42) -> 2.968 | H35: 20 | I35: 1
A36: 133 | B36: 132 | C36: DRIVER CHEST SCORE | D36: SumDrChestAssessment | F36: ='AOP Frontal ODB'!D42 -> 4 | G36: Database Reference'!$K$35 | H36: 10 | I36: 1
A37: 134 | B37: 133 | C37: Compression | F37: ='AOP Frontal ODB'!D35 -> 20.01 | G37: Database Reference'!$K$36 | H37: 10 | I37: 1
A38: 135 | B38: 133 | C38: viscous criterion | F38: ='AOP Frontal ODB'!D36 -> 0.05 | G38: Database Reference'!$K$37 | H38: 20 | I38: 1
A39: 136 | B39: 133 | C39: A Pillar Displacement | F39: ='AOP Frontal ODB'!D40 -> 4.574 | G39: Database Reference'!$K$38 | H39: 30 | I39: 1
A40: 137 | B40: 133 | C40: Steering wheel contact (-1) | F40: ='AOP Frontal ODB'!D39 -> 0 | G40: Database Reference'!$K$39 | H40: 40 | I40: 1
A41: 138 | B41: 133 | C41: Unstable passenger compartment (-1) | F41: ='AOP Frontal ODB'!D41 -> 0 | G41: Database Reference'!$K$40 | H41: 50 | I41: 1
A42: 139 | B42: 132 | C42: PASSENGER CHEST SCORE | F42: ='AOP Frontal ODB'!F42 -> 2.968 | G42: Database Reference'!$K$41 | H42: 20 | I42: 1
A43: 140 | B43: 139 | C43: Compression | F43: ='AOP Frontal ODB'!F35 -> 27.16 | G43: Database Reference'!$K$42 | H43: 10 | I43: 1
A44: 141 | B44: 139 | C44: viscous criterion | F44: ='AOP Frontal ODB'!F36 -> 0.5 | G44: Database Reference'!$K$43 | H44: 20 | I44: 1
A45: 142 | B45: 101 | C45: KNEE/FEMUR/PELVIS BODY REGION SCORE | F45: =MIN('AOP Frontal ODB'!D97,'AOP Frontal ODB'!F97) -> 4 | H45: 20 | I45: 1
A46: 143 | B46: 142 | C46: DRIVER KNEE/FEMUR/PELVIS SCORE | F46: ='AOP Frontal ODB'!D60 -> 4 | G46: Database Reference'!$K$45 | H46: 10 | I46: 1
A47: 144 | B47: 143 | C47: DRIVER LEFT KNEE/FEMUR/PELVIS SCORE | F47: ='AOP Frontal ODB'!E51 -> 4 | G47: Database Reference'!$K$46 | H47: 10 | I47: 1
A48: 145 | B48: 144 | C48: Left Knee Slide - mm | F48: ='AOP Frontal ODB'!D45 -> 0.03 | G48: Database Reference'!$K$47 | H48: 10 | I48: 1
A49: 146 | B49: 144 | C49: Left Femur Compression level exceeded - kN | F49: ='AOP Frontal ODB'!D46 -> 0.23 | G49: Database Reference'!$K$48 | H49: 20 | I49: 1
A50: 147 | B50: 144 | C50: Duration of femur exceedence | F50: ='AOP Frontal ODB'!D47 -> 0 | G50: Database Reference'!$K$49 | H50: 30 | I50: 1
A51: 148 | B51: 144 | C51: Left Knee Variable contact (-1) | F51: ='AOP Frontal ODB'!D48 -> 0 | G51: Database Reference'!$K$50 | H51: 40 | I51: 1
A52: 149 | B52: 144 | C52: Left Knee Concentrated loading (-1) | F52: ='AOP Frontal ODB'!D49 -> 0 | G52: Database Reference'!$K$51 | H52: 50 | I52: 1
A53: 150 | B53: 143 | C53: DRIVER RIGTH KNEE/FEMUR/PELVIS SCORE | F53: ='AOP Frontal ODB'!E58 -> 4 | G53: Database Reference'!$K$52 | H53: 20 | I53: 1
A54: 151 | B54: 150 | C54: Right Knee Slide - mm | F54: ='AOP Frontal ODB'!D52 -> 1.46 | G54: Database Reference'!$K$53 | H54: 10 | I54: 1
A55: 152 | B55: 150 | C55: Right Femur Compression level exceeded - kN | F55: ='AOP Frontal ODB'!D53 -> 0.02 | G55: Database Reference'!$K$54 | H55: 20 | I55: 1
A56: 153 | B56: 150 | C56: Duration of femur exceedence | F56: ='AOP Frontal ODB'!D54 -> 0 | G56: Database Reference'!$K$55 | H56: 30 | I56: 1
A57: 154 | B57: 150 | C57: Right Variable contact (-1) | F57: ='AOP Frontal ODB'!D55 -> 0 | G57: Database Reference'!$K$56 | H57: 40 | I57: 1
A58: 155 | B58: 150 | C58: Right Concentrated loading (-1) | F58: ='AOP Frontal ODB'!D56 -> 0 | G58: Database Reference'!$K$57 | H58: 50 | I58: 1
A59: 156 | B59: 142 | C59: PASSENGER KNEE/FEMUR/PELVIS SCORE | F59: ='AOP Frontal ODB'!F60 -> 4 | G59: Database Reference'!$K$58 | H59: 20 | I59: 1
A60: 157 | B60: 156 | C60: PASSENGER LEFT KNEE/FEMUR/PELVIS SCORE | F60: ='AOP Frontal ODB'!G51 -> 4 | G60: Database Reference'!$K$59 | H60: 10 | I60: 1
A61: 158 | B61: 157 | C61: Pass Left Knee Slide - mm | F61: ='AOP Frontal ODB'!F52 -> 0.27 | G61: Database Reference'!$K$60 | H61: 10 | I61: 1
A62: 159 | B62: 157 | C62: Pass Left Femur Compression level exceeded - kN | F62: ='AOP Frontal ODB'!F53 -> 0.12 | G62: Database Reference'!$K$61 | H62: 20 | I62: 1
A63: 160 | B63: 157 | C63: Duration of femur exceedence | F63: ='AOP Frontal ODB'!F54 -> 0 | G63: Database Reference'!$K$62 | H63: 30 | I63: 1
A64: 161 | B64: 157 | C64: Left Knee Variable contact (-1) | F64: ='AOP Frontal ODB'!F55 -> 0 | G64: Database Reference'!$K$63 | H64: 40 | I64: 1
A65: 162 | B65: 157 | C65: Left Knee Concentrated loading (-1) | F65: ='AOP Frontal ODB'!F56 -> 0 | G65: Database Reference'!$K$64 | H65: 50 | I65: 1
A66: 163 | B66: 156 | C66: PASSENGER RIGHT KNEE/FEMUR/PELVIS SCORE | F66: ='AOP Frontal ODB'!G58 -> 4 | G66: Database Reference'!$K$65 | H66: 20 | I66: =COUNTIF($A$2:$A$3487,A66) -> 1
A67: 164 | B67: 163 | C67: Right Knee Slide - mm | F67: ='AOP Frontal ODB'!F52 -> 0.27 | G67: Database Reference'!$K$66 | H67: 10 | I67: 1
A68: 165 | B68: 163 | C68: Right Femur Compression level exceeded - kN | F68: ='AOP Frontal ODB'!F53 -> 0.12 | G68: Database Reference'!$K$67 | H68: 20 | I68: 1
A69: 166 | B69: 163 | C69: Duration of femur exceedence | F69: ='AOP Frontal ODB'!F54 -> 0 | G69: Database Reference'!$K$68 | H69: 30 | I69: 1
A70: 167 | B70: 163 | C70: Right Variable contact (-1) | F70: ='AOP Frontal ODB'!F55 -> 0 | G70: Database Reference'!$K$69 | H70: 40 | I70: 1
A71: 168 | B71: 163 | C71: Right Concentrated loading (-1) | F71: ='AOP Frontal ODB'!F56 -> 0 | G71: Database Reference'!$K$70 | H71: 50 | I71: 1
A72: 169 | B72: 101 | C72: LOWER LEG, FOOT AND ANKLE BODY REGION SCORE | F72: =MIN('Database Reference'!F73,'Database Reference'!F86) -> 3.111 | H72: 30 | I72: 1
A73: 170 | B73: 169 | C73: DRIVER LOWER LEG, FOOT AND ANKLE SCORE | F73: ='AOP Frontal ODB'!D92 -> 3.973 | G73: Database Reference'!$K$72 | H73: 10 | I73: 1
A74: 171 | B74: 170 | C74: DRIVER LEFT LOWER LEG SCORE | F74: ='AOP Frontal ODB'!E71 -> 4 | G74: Database Reference'!$K$73 | H74: 10 | I74: 1
A75: 172 | B75: 171 | C75: Left compression Fz - kN | F75: ='AOP Frontal ODB'!D63 -> 1.31 | G75: Database Reference'!$K$74 | H75: 10 | I75: 1
A76: 173 | B76: 171 | C76: Left Upper Tibia Index | F76: ='AOP Frontal ODB'!D65 -> 0.4 | G76: Database Reference'!$K$75 | H76: 20 | I76: 1
A77: 174 | B77: 171 | C77: Left Lower Tibia Index | F77: ='AOP Frontal ODB'!D66 -> 0.22 | G77: Database Reference'!$K$76 | H77: 30 | I77: 1
A78: 175 | B78: 170 | C78: DRIVER RIGHT LOWER LEG SCORE | F78: ='AOP Frontal ODB'!E81 -> 3.973 | G78: Database Reference'!$K$77 | H78: 20 | I78: 1
A79: 176 | B79: 175 | C79: Right compression Fz - kN | F79: ='AOP Frontal ODB'!D74 -> 2.04 | G79: Database Reference'!$K$78 | H79: 10 | I79: 1
A80: 177 | B80: 175 | C80: Right Upper Tibia Index | F80: ='AOP Frontal ODB'!D75 -> 0.36 | G80: Database Reference'!$K$79 | H80: 20 | I80: 1
A81: 178 | B81: 175 | C81: Right Lower Tibia Index | F81: ='AOP Frontal ODB'!D76 -> 0.22 | G81: Database Reference'!$K$80 | H81: 30 | I81: 1
A82: 179 | B82: 170 | C82: DRIVER FOOT AND ANKLE SCORE | F82: ='AOP Frontal ODB'!E90 -> 4 | G82: Database Reference'!$K$81 | H82: 30 | I82: 1
A83: 180 | B83: 179 | C83: Pedal horizontal displacement - mm | F83: ='AOP Frontal ODB'!D84 -> 32.108 | G83: Database Reference'!$K$82 | H83: 10 | I83: 1
A84: 181 | B84: 179 | C84: Footwell Rupture (-1) | F84: ='AOP Frontal ODB'!D88 -> 0 | G84: Database Reference'!$K$83 | H84: 20 | I84: 1
A85: 182 | B85: 179 | C85: Pedal Blocking (-1) | F85: ='AOP Frontal ODB'!D89 -> 0 | G85: Database Reference'!$K$84 | H85: 30 | I85: 1
A86: 183 | B86: 169 | C86: PASSENGER LOWER LEG SCORE | F86: ='AOP Frontal ODB'!F92 -> 3.111 | G86: Database Reference'!$K$85 | H86: 20 | I86: 1
A87: 184 | B87: 183 | C87: PASSENGER LEFT LOWER LEG SCORE | F87: ='AOP Frontal ODB'!G71 -> 3.111 | G87: Database Reference'!$K$86 | H87: 10 | I87: 1
A88: 185 | B88: 184 | C88: Left compression Fz - kN | F88: ='AOP Frontal ODB'!F63 -> 1.56 | G88: Database Reference'!$K$87 | H88: 10 | I88: 1
A89: 186 | B89: 184 | C89: Left Upper Tibia Index | F89: ='AOP Frontal ODB'!F65 -> 0.6 | G89: Database Reference'!$K$88 | H89: 20 | I89: 1
A90: 187 | B90: 184 | C90: Left Lower Tibia Index | F90: ='AOP Frontal ODB'!F66 -> 0.4 | G90: Database Reference'!$K$89 | H90: 30 | I90: 1
A91: 188 | B91: 183 | C91: PASSENGER RIGHT LOWER LEG SCORE | F91: ='AOP Frontal ODB'!G81 -> 4 | G91: Database Reference'!$K$90 | H91: 20 | I91: 1
A92: 189 | B92: 188 | C92: Right compression Fz - kN | F92: ='AOP Frontal ODB'!F74 -> 1.43 | G92: Database Reference'!$K$91 | H92: 10 | I92: 1
A93: 190 | B93: 188 | C93: Right Upper Tibia Index | F93: ='AOP Frontal ODB'!F75 -> 0.23 | G93: Database Reference'!$K$92 | H93: 20 | I93: 1
A94: 191 | B94: 188 | C94: Right Lower Tibia Index | F94: ='AOP Frontal ODB'!F76 -> 0.38 | G94: Database Reference'!$K$93 | H94: 30 | I94: 1
A95: 192 | B95: 101 | C95: DOOR OPENING IN FRONTAL IMPACT | D95: Modifier | F95: ='AOP Frontal ODB'!D100 -> 0 | G95: Database Reference'!$K$94 | H95: 40 | I95: 1
A96: 193 | B96: 740 | C96: SIDE IMPACT SCORE | F96: =#REF! ->  | G96: Database Reference'!$K$95 | H96: 20 | I96: 1
A97: 194 | B97: 193 | C97: HEAD BODY REGION SCORE | F97: =#REF! ->  | G97: Database Reference'!$K$96 | H97: 10 | I97: 1
A98: 195 | B98: 194 | C98: Peak resultant acceleration - g | F98: =#REF! ->  | G98: Database Reference'!$K$97 | H98: 10 | I98: 1
A99: 196 | B99: 194 | C99: HIC36 | F99: =#REF! ->  | G99: Database Reference'!$K$98 | H99: 20 | I99: 1
A100: 197 | B100: 194 | C100: Resultant Acc. 3 msec exceedence - g | F100: =#REF! ->  | G100: Database Reference'!$K$99 | H100: 30 | I100: 1
A101: 198 | B101: 194 | C101: Incorrect airbag deployment (-1) | F101: =#REF! ->  | H101: 40 | I101: 1
A102: 199 | B102: 193 | C102: CHEST BODY REGION SCORE | F102: =#REF! ->  | G102: Database Reference'!$K$101 | H102: 20 | I102: 1
A103: 200 | B103: 199 | C103: TOP RIB SCORE | F103: =#REF! ->  | G103: Database Reference'!$K$102 | H103: 10 | I103: 1
A104: 201 | B104: 200 | C104: Top rib Compression - mm | F104: =#REF! ->  | G104: Database Reference'!$K$103 | H104: 10 | I104: 1
A105: 202 | B105: 200 | C105: Top rib Viscous Criterion - m/s | F105: =#REF! ->  | G105: Database Reference'!$K$104 | H105: 20 | I105: 1
A106: 203 | B106: 199 | C106: MID RIB SCORE | F106: =#REF! ->  | G106: Database Reference'!$K$105 | H106: 10 | I106: 1
A107: 204 | B107: 203 | C107: Mid rib Compression - mm | F107: =#REF! ->  | G107: Database Reference'!$K$106 | H107: 10 | I107: 1
A108: 205 | B108: 203 | C108: Mid rib Viscous Criterion - m/s | F108: =#REF! ->  | G108: Database Reference'!$K$107 | H108: 20 | I108: 1
A109: 206 | B109: 199 | C109: BOTTOM RIB SCORE | F109: =#REF! ->  | G109: Database Reference'!$K$108 | H109: 30 | I109: 1
A110: 207 | B110: 206 | C110: Bottom rib Compression - mm | F110: =#REF! ->  | G110: Database Reference'!$K$109 | H110: 10 | I110: 1
A111: 208 | B111: 206 | C111: Bottom rib Viscous Criterion - m/s | F111: =#REF! ->  | G111: Database Reference'!$K$110 | H111: 20 | I111: 1
A112: 209 | B112: 199 | C112: T12 Modifier | F112: =#REF! ->  | G112: Database Reference'!$K$111 | H112: 40 | I112: 1
A113: 210 | B113: 199 | C113: Backplate Load Modifier | F113: =#REF! ->  | G113: Database Reference'!$K$112 | H113: 50 | I113: 1
A114: 211 | B114: 199 | C114: Incorrect airbag deployment | F114: =#REF! ->  | H114: 60 | I114: 1
A115: 212 | B115: 193 | C115: ABDOMEN BODY REGION SCORE | F115: =#REF! ->  | G115: Database Reference'!$K$114 | H115: 30 | I115: 1
A116: 213 | B116: 212 | C116: Peak lateral force - kN | F116: =#REF! ->  | G116: Database Reference'!$K$115 | H116: 10 | I116: 1
A117: 214 | B117: 212 | C117: Peak lateral force - kN | F117: =#REF! ->  | G117: Database Reference'!$K$116 | H117: 20 | I117: 1
A118: 215 | B118: 212 | C118: Peak lateral force - kN | F118: =#REF! ->  | G118: Database Reference'!$K$117 | H118: 30 | I118: 1
A119: 216 | B119: 212 | C119: Incorrect airbag deployment (-1) | D119: Not used | H119: 40 | I119: 1
A120: 217 | B120: 193 | C120: PELVIS BODY REGION SCORE | F120: =#REF! ->  | G120: Database Reference'!$K$119 | H120: 40 | I120: 1
A121: 218 | B121: 217 | C121: Pubic Symphysis force - kN | F121: =#REF! ->  | G121: Database Reference'!$K$120 | H121: 10 | I121: 1
A122: 219 | B122: 193 | C122: INCORRECT AIRBAG DEPLOYMENT | F122: =#REF! ->  | H122: 50 | I122: 1
A123: 220 | B123: 193 | C123: DOORS OPENING IN SIDE IMPACT | F123: =#REF! ->  | G123: Database Reference'!$K$122 | H123: 60 | I123: 1
A124: 221 | B124: 741 | C124: POLE TEST SCORE | F124: =#REF! ->  | G124: Database Reference'!$K$123 | H124: 30 | I124: 1
A125: 222 | B125: 221 | C125: HEAD BODY REGION SCORE | F125: =#REF! ->  | G125: Database Reference'!$K$124 | H125: 10 | I125: 1
A126: 223 | B126: 222 | C126: Peak resultant acceleration - g | F126: =#REF! ->  | G126: Database Reference'!$K$125 | H126: 10 | I126: 1
A127: 224 | B127: 222 | C127: HIC36 | F127: =#REF! ->  | G127: Database Reference'!$K$126 | H127: 20 | I127: 1
A128: 225 | B128: 222 | C128: Resultant Acc. 3 msec exceedence - g | F128: =#REF! ->  | G128: Database Reference'!$K$127 | H128: 30 | I128: 1
A129: 226 | B129: 222 | C129: Incorrect airbag deployment (-1) | F129: =#REF! ->  | H129: 40 | I129: 1
A130: 227 | B130: 221 | C130: CHEST BODY REGION SCORE | F130: =#REF! ->  | G130: Database Reference'!$K$129 | H130: 20 | I130: =COUNTIF($A$2:$A$3487,A130) -> 1
A131: 228 | B131: 227 | C131: TOP RIB SCORE | F131: =#REF! ->  | G131: Database Reference'!$K$130 | H131: 10 | I131: 1
A132: 229 | B132: 228 | C132: Top rib Compression - mm | F132: =#REF! ->  | G132: Database Reference'!$K$131 | H132: 10 | I132: 1
A133: 230 | B133: 228 | C133: Top rib Viscous Criterion - m/s | F133: =#REF! ->  | G133: Database Reference'!$K$132 | H133: 20 | I133: 1
A134: 231 | B134: 227 | C134: MID RIB SCORE | F134: =#REF! ->  | G134: Database Reference'!$K$133 | H134: 20 | I134: 1
A135: 232 | B135: 231 | C135: Mid rib Compression - mm | F135: =#REF! ->  | G135: Database Reference'!$K$134 | H135: 10 | I135: 1
A136: 233 | B136: 231 | C136: Mid rib Viscous Criterion - m/s | F136: =#REF! ->  | G136: Database Reference'!$K$135 | H136: 20 | I136: 1
A137: 234 | B137: 227 | C137: BOTTOM RIB SCORE | F137: =#REF! ->  | G137: Database Reference'!$K$136 | H137: 30 | I137: 1
A138: 235 | B138: 234 | C138: Bottom rib Compression - mm | F138: =#REF! ->  | G138: Database Reference'!$K$137 | H138: 10 | I138: 1
A139: 236 | B139: 234 | C139: Bottom rib Viscous Criterion - m/s | F139: =#REF! ->  | G139: Database Reference'!$K$138 | H139: 20 | I139: 1
A140: 237 | B140: 227 | C140: T12 MODIFIER | F140: =#REF! ->  | G140: Database Reference'!$K$139 | H140: 40 | I140: 1
A141: 238 | B141: 227 | C141: BACKPLATE LOAD MODIFER | F141: =#REF! ->  | G141: Database Reference'!$K$140 | H141: 50 | I141: 1
A142: 239 | B142: 227 | C142: INCORRECT AIRBAG DEPLOYMENT | F142: =#REF! ->  | H142: 60 | I142: 1
A143: 240 | B143: 221 | C143: ABDOMEN BODY REGION SCORE | F143: =#REF! ->  | G143: Database Reference'!$K$142 | H143: 30 | I143: 1
A144: 241 | B144: 240 | C144: Front Peak lateral force - kN | F144: =#REF! ->  | G144: Database Reference'!$K$143 | H144: 10 | I144: 1
A145: 242 | B145: 240 | C145: Mid Peak lateral force - kN | F145: =#REF! ->  | G145: Database Reference'!$K$144 | H145: 20 | I145: 1
A146: 243 | B146: 240 | C146: Rear Peak lateral force - kN | F146: =#REF! ->  | G146: Database Reference'!$K$145 | H146: 30 | I146: 1
A147: 244 | B147: 240 | C147: Incorrect airbag deployment (-1) | D147: Not used | H147: 40 | I147: 1
A148: 245 | B148: 221 | C148: PELVIS BODY REGION SCORE | F148: =#REF! ->  | G148: Database Reference'!$K$147 | H148: 40 | I148: 1
A149: 246 | B149: 245 | C149: Pubic Symphysis force - kN | F149: =#REF! ->  | G149: Database Reference'!$K$148 | H149: 10 | I149: 1
A150: 247 | B150: 221 | C150: INCORRECT AIRBAG DEPLOYMENT | F150: =#REF! ->  | G150: Database Reference'!$K$149 | H150: 50 | I150: 1
A151: 248 | B151: 221 | C151: DOORS OPENING IN POLE IMPACT | F151: =#REF! ->  | G151: Database Reference'!$K$150 | H151: 60 | I151: 1
A152: 249 | B152: 697 | C152: SBR POINTS | F152: =#REF! ->  | G152: Database Reference'!$K$151 | H152: 60 | I152: 1
A153: 250 | B153: 612 | C153: UNROUNDED CHILD PROTECTION SCORE | F153: =#REF! ->  | G153: Database Reference'!$K$152 | H153: 20 | I153: 1
A154: 251 | B154: 250 | C154: CRS Dynamic Test Rating | F154: =#REF! ->  | H154: 10 | I154: 1
A155: 252 | B155: 251 | C155: P1.5 Dynamic Score | F155: =SUM(#REF!) ->  | G155: Database Reference'!$K$154 | H155: 10 | I155: 1
A156: 253 | B156: 252 | C156: Forward facing Head Score | F156: =#REF! ->  | H156: 10 | I156: 1
A157: 254 | B157: 252 | C157: Excursion Score | F157: =#REF! ->  | H157: 20 | I157: 1
A158: 255 | B158: 252 | C158: Hard contact Score (head contact not on car) | H158: 30 | I158: 1
A159: 256 | B159: 252 | C159: Rearward facing Head Score | F159: =#REF! ->  | H159: 40 | I159: 1
A160: 257 | B160: 252 | C160: Score if no contact with car nor head compressive load | F160: =#REF! ->  | H160: 50 | I160: 1
A161: 258 | B161: 252 | C161: Score for Neck Tension (Head Vertical Acceleration) | H161: 60 | I161: 1
A162: 259 | B162: 252 | C162: Score for Head Contact (3msec accounting for peak) | H162: 70 | I162: 1
A163: 260 | B163: 252 | C163: Side Head Score | F163: =#REF! ->  | H163: 80 | I163: 1
A164: 261 | B164: 252 | C164: Head Side Resultant Acceleration | F164: =#REF! ->  | H164: 90 | I164: 1
A165: 262 | B165: 252 | C165: Frontal Chest Score | F165: =#REF! ->  | H165: 100 | I165: 1
A166: 263 | B166: 252 | C166: Chest Frontal Resultant Acceleration | F166: =#REF! ->  | H166: 110 | I166: 1
A167: 264 | B167: 252 | C167: Chest Frontal Vertical Acceleration | F167: 0 | H167: 120 | I167: 1
A168: 265 | B168: 252 | C168: Dynamic Tests Rating | H168: 130 | I168: 1
A169: 266 | B169: 251 | C169: P3 Dynamic Score | F169: =SUM(#REF!) ->  | G169: Database Reference'!$K$168 | H169: 20 | I169: 1
A170: 267 | B170: 266 | C170: Forward facing Head Score | F170: =#REF! ->  | H170: 10 | I170: 1
A171: 268 | B171: 266 | C171: Excursion Score | F171: =#REF! ->  | H171: 20 | I171: 1
A172: 269 | B172: 266 | C172: Hard contact Score (head contact not on car) | H172: 30 | I172: 1
A173: 270 | B173: 266 | C173: Rearward facing Head Score | F173: =#REF! ->  | H173: 40 | I173: 1
A174: 271 | B174: 266 | C174: Score if no contact with car nor head compressive load | F174: =#REF! ->  | H174: 50 | I174: 1
A175: 272 | B175: 266 | C175: Score for Neck Tension (Head Vertical Acceleration) | H175: 60 | I175: 1
A176: 273 | B176: 266 | C176: Score for Head Contact (3msec accounting for peak) | H176: 70 | I176: 1
A177: 274 | B177: 266 | C177: Side Head Score | F177: =#REF! ->  | H177: 80 | I177: 1
A178: 275 | B178: 266 | C178: Head Side Resultant Acceleration | F178: =#REF! ->  | H178: 90 | I178: 1
A179: 276 | B179: 266 | C179: Frontal Chest Score | F179: =#REF! ->  | H179: 100 | I179: 1
A180: 277 | B180: 266 | C180: Chest Frontal Resultant Acceleration | F180: =#REF! ->  | H180: 110 | I180: 1
A181: 278 | B181: 266 | C181: Chest Frontal Vertical Acceleration | F181: 0 | H181: 120 | I181: 1
A182: 279 | B182: 266 | C182: Dynamic Tests Rating | H182: 130 | I182: 1
A183: 280 | B183: 250 | C183: CRS Labelling Rating | H183: 20 | I183: 1
A184: 281 | B184: 280 | C184: P1.5 Labelling | G184: Database Reference'!$K$183 | H184: 10 | I184: 1
A185: 282 | B185: 281 | C185: Belt routes permanent marked and colour coded | H185: 10 | I185: 1
A186: 283 | B186: 281 | C186: Instructions visible and permanent on both sides of restraint | H186: 20 | I186: 1
A187: 284 | B187: 281 | C187: Advice visible on when to use as forward facing of two way seats | H187: 30 | I187: 1
A188: 285 | B188: 281 | C188: Alternative adult seat belt routes (ECE Reg 43.03 Supplement 3) | H188: 40 | I188: 1
A189: 286 | B189: 281 | C189: Advice on use of seat and components for all sizes of children | H189: 50 | I189: 1
A190: 287 | B190: 281 | C190: ISOFIX Instructions visible and permanent on both sides of restraint | H190: 60 | I190: 1
A191: 288 | B191: 281 | C191: Instructions on preparing seat for installation | H191: 70 | I191: 1
A192: 289 | B192: 281 | C192: Tell-tales Position function and interpretation explained | H192: 80 | I192: 1
A193: 290 | B193: 281 | C193: Position and use of additional tethers explained | H193: 90 | I193: 1
A194: 291 | B194: 281 | C194: Tell-tales must inform if there is only partial latching | H194: 100 | I194: =COUNTIF($A$2:$A$3487,A194) -> 1
A195: 292 | B195: 281 | C195: Use and adjustment of latches and tethers | H195: 110 | I195: 1
A196: 293 | B196: 281 | C196: Information on which vehicles the CRS can be used in | H196: 120 | I196: 1
A197: 294 | B197: 280 | C197: P3 Labelling | G197: Database Reference'!$K$196 | H197: 20 | I197: 1
A198: 295 | B198: 294 | C198: Belt routes permanent marked and colour coded | H198: 10 | I198: 1
A199: 296 | B199: 294 | C199: Instructions visible and permanent on both sides of restraint | H199: 20 | I199: 1
A200: 297 | B200: 294 | C200: Advice visible on when to use as forward facing of two way seats | H200: 30 | I200: 1
... 1072 more rows

Sheet Export (hidden)
A10: ValueStructure_Key | B10: Parent_Key | C10: ValueName | D10: Description | E10: Label | F10: XMLtag | G10: ValueFunction | H10: Sort | I10: ValueType
A11: 581 | B11: 697 | C11: POLE TEST PERFORMED | F11: Car input!O5 | G11: Database Reference'!F2 | H11: 50 | I11: booleanvalue
A12: 100 | B12: 611 | C12: UNROUNDED ADULT OCCUPANT SCORE | F12: Summary!$B$30 | G12: Database Reference'!F3 | H12: 10
A13: 101 | B13: 100 | C13: FRONTAL IMPACT SCORE | F13: Summary!$B$18 | G13: Database Reference'!F4 | H13: 10
A14: 102 | B14: 101 | C14: HEAD AND NECK BODY REGION SCORE | G14: Database Reference'!F5 | H14: 10
A15: 103 | B15: 102 | C15: DRIVER HEAD/NECK SCORE | F15: Summary!$B$7 | G15: Database Reference'!F6 | H15: 10
A16: 104 | B16: 103 | C16: DRIVER HEAD SCORE | F16: Calculations!$D$15 | G16: Database Reference'!F7 | H16: 10
A17: 105 | B17: 104 | C17: HIC36 | F17: Car Input'!$D$7 | G17: Database Reference'!F8 | H17: 10
A18: 106 | B18: 104 | C18: Resultant Acc. 3 msec exeedence | F18: Car Input'!$D$6 | G18: Database Reference'!F9 | H18: 20
A19: 107 | B19: 104 | C19: Honeycomb crush | F19: Car Input'!$D$10 | G19: Database Reference'!F10 | H19: 30
A20: 108 | B20: 104 | C20: HIC36 | D20: Honeycomb crush | F20: Car Input'!$D$11 | G20: Database Reference'!F11 | H20: 40
A21: 109 | B21: 104 | C21: Resultant peak Acc. | D21: Honeycomb crush | F21: Car Input'!$D$12 | G21: Database Reference'!F12 | H21: 50
A22: 110 | B22: 104 | C22: Resultant Acc. 3 msec exeedence | D22: Honeycomb crush | F22: Car Input'!$D$13 | G22: Database Reference'!F13 | H22: 60
A23: 111 | B23: 104 | C23: Displacement top end of steering column H (-1-0 points) | F23: Car Input'!$I$6 | G23: Database Reference'!F14 | H23: 70
A24: 112 | B24: 104 | C24: Displacement top end of steering column V (-1-0 points) | F24: Car Input'!$I$7 | G24: Database Reference'!F15 | H24: 80
A25: 113 | B25: 104 | C25: Displacement top end of steering column L (-1-0 points) | F25: Car Input'!$I$8 | G25: Database Reference'!F16 | H25: 90
A26: 114 | B26: 104 | C26: Unstable airbag or bottoming out(-1-0 points) | F26: Car Input'!$D$74 | G26: Database Reference'!F17 | H26: 100
A27: 115 | B27: 103 | C27: DRIVER NECK SCORE | F27: Calculations'!$D$25 | G27: Database Reference'!F18 | H27: 20
A28: 116 | B28: 115 | C28: Shear level exceeded - kN | F28: Car Input'!$D15 | G28: Database Reference'!F19 | H28: 10
A29: 117 | B29: 115 | C29: Dr duration of shear exceedence | F29: Car Input'!$D16 | G29: Database Reference'!F20 | H29: 20
A30: 118 | B30: 115 | C30: Dr Tension level exceeded - kN | F30: Car Input'!$D17 | G30: Database Reference'!F21 | H30: 30
A31: 119 | B31: 115 | C31: Dr duration of tension exceedence - ms | F31: Car Input'!$D18 | G31: Database Reference'!F22 | H31: 40
A32: 120 | B32: 115 | C32: Dr Extension My - Nm | F32: Car Input'!$D19 | G32: Database Reference'!F23 | H32: 50
A33: 121 | B33: 102 | C33: PASSENGER HEAD/NECK SCORE | F33: Passenger'!$B$13 | G33: Database Reference'!F24 | H33: 20
A34: 122 | B34: 121 | C34: PASSENGER HEAD SCORE | F34: Calculations'!$E$15 | G34: Database Reference'!F25 | H34: 10
A35: 123 | B35: 122 | C35: Pass HIC36 | F35: Calculations'!$E$4 | G35: Database Reference'!F26 | H35: 10
A36: 124 | B36: 122 | C36: Pass Resultant Acc. 3 msec exeedence | F36: Calculations'!$E$5 | G36: Database Reference'!F27 | H36: 20
A37: 125 | B37: 122 | C37: Pass Unstable airbag or bottoming out(-1-0 points) | F37: Car Input'!$E$74 | G37: Database Reference'!F28 | H37: 30
A38: 126 | B38: 121 | C38: PASSENGER NECK SCORE | F38: Calculations'!$E$25 | G38: Database Reference'!F29 | H38: 10
A39: 127 | B39: 126 | C39: Shear level exceeded - kN | F39: Car Input'!$E15 | G39: Database Reference'!F30 | H39: 10
A40: 128 | B40: 126 | C40: Pass duration of shear exceedence | F40: Car Input'!$E16 | G40: Database Reference'!F31 | H40: 20
A41: 129 | B41: 126 | C41: Tension level exceeded - kN | F41: Car Input'!$E17 | G41: Database Reference'!F32 | H41: 30
A42: 130 | B42: 126 | C42: Duration of tension exceedence | F42: Car Input'!$E18 | G42: Database Reference'!F33 | H42: 40
A43: 131 | B43: 126 | C43: Extension My - Nm | F43: Car Input'!$E19 | G43: Database Reference'!F34 | H43: 50
A44: 132 | B44: 101 | C44: CHEST SCORE | G44: Database Reference'!F35 | H44: 20
A45: 133 | B45: 132 | C45: DRIVER CHEST SCORE | D45: SumDrChestAssessment | F45: Calculations!$D$33 | G45: Database Reference'!F36 | H45: 10
A46: 134 | B46: 133 | C46: Compression | F46: Car Input'!$D$21 | G46: Database Reference'!F37 | H46: 10
A47: 135 | B47: 133 | C47: viscous criterion | F47: Car Input'!$D$22 | G47: Database Reference'!F38 | H47: 20
A48: 136 | B48: 133 | C48: A Pillar Displacement | F48: Car Input'!$I$25 | G48: Database Reference'!F39 | H48: 30
A49: 137 | B49: 133 | C49: Steering wheel contact (-1) | F49: Car Input'!$D$77 | G49: Database Reference'!F40 | H49: 40
A50: 138 | B50: 133 | C50: Unstable passenger compartment (-1) | F50: Car Input'!$D$78 | G50: Database Reference'!F41 | H50: 50
A51: 139 | B51: 132 | C51: PASSENGER CHEST SCORE | F51: Summary!$B$14 | G51: Database Reference'!F42 | H51: 20
A52: 140 | B52: 139 | C52: Compression | F52: Car Input'!$E$21 | G52: Database Reference'!F43 | H52: 10
A53: 141 | B53: 139 | C53: viscous criterion | F53: Car Input'!$E$22 | G53: Database Reference'!F44 | H53: 20
A54: 142 | B54: 101 | C54: KNEE/FEMUR/PELVIS BODY REGION SCORE | G54: Database Reference'!F45 | H54: 20
A55: 143 | B55: 142 | C55: DRIVER KNEE/FEMUR/PELVIS SCORE | F55: Summary!$B$9 | G55: Database Reference'!F46 | H55: 10
A56: 144 | B56: 143 | C56: DRIVER LEFT KNEE/FEMUR/PELVIS SCORE | F56: Calculations'!$D$44 | G56: Database Reference'!F47 | H56: 10
A57: 145 | B57: 144 | C57: Left Knee Slide - mm | F57: Car Input'!$D25 | G57: Database Reference'!F48 | H57: 10
A58: 146 | B58: 144 | C58: Left Femur Compression level exceeded - kN | F58: Car Input'!$D26 | G58: Database Reference'!F49 | H58: 20
A59: 147 | B59: 144 | C59: Duration of femur exceedence | F59: Car Input'!$D27 | G59: Database Reference'!F50 | H59: 30
A60: 148 | B60: 144 | C60: Left Knee Variable contact (-1) | F60: Car Input'!$D$80 | G60: Database Reference'!F51 | H60: 40
A61: 149 | B61: 144 | C61: Left Knee Concentrated loading (-1) | F61: Car Input'!$D$81 | G61: Database Reference'!F52 | H61: 50
A62: 150 | B62: 143 | C62: DRIVER RIGTH KNEE/FEMUR/PELVIS SCORE | F62: Calculations'!$D$49 | G62: Database Reference'!F53 | H62: 20
A63: 151 | B63: 150 | C63: Right Knee Slide - mm | F63: Car Input'!$D28 | G63: Database Reference'!F54 | H63: 10
A64: 152 | B64: 150 | C64: Right Femur Compression level exceeded - kN | F64: Car Input'!$D29 | G64: Database Reference'!F55 | H64: 20
A65: 153 | B65: 150 | C65: Duration of femur exceedence | F65: Car Input'!$D30 | G65: Database Reference'!F56 | H65: 30
A66: 154 | B66: 150 | C66: Right Variable contact (-1) | F66: Car Input'!$D$82 | G66: Database Reference'!F57 | H66: 40
A67: 155 | B67: 150 | C67: Right Concentrated loading (-1) | F67: Car Input'!$D$83 | G67: Database Reference'!F58 | H67: 50
A68: 156 | B68: 142 | C68: PASSENGER KNEE/FEMUR/PELVIS SCORE | F68: Summary!$B$15 | G68: Database Reference'!F59 | H68: 20
A69: 157 | B69: 156 | C69: PASSENGER LEFT KNEE/FEMUR/PELVIS SCORE | F69: Calculations'!$E$44 | G69: Database Reference'!F60 | H69: 10
A70: 158 | B70: 157 | C70: Pass Left Knee Slide - mm | F70: Car Input'!$E$25 | G70: Database Reference'!F61 | H70: 10
A71: 159 | B71: 157 | C71: Pass Left Femur Compression level exceeded - kN | F71: Car Input'!$E$26 | G71: Database Reference'!F62 | H71: 20
A72: 160 | B72: 157 | C72: Duration of femur exceedence | F72: Car Input'!$E$27 | G72: Database Reference'!F63 | H72: 30
A73: 161 | B73: 157 | C73: Left Knee Variable contact (-1) | F73: Car Input'!$E$80 | G73: Database Reference'!F64 | H73: 40
A74: 162 | B74: 157 | C74: Left Knee Concentrated loading (-1) | F74: Car Input'!$E$81 | G74: Database Reference'!F65 | H74: 50
A75: 163 | B75: 156 | C75: PASSENGER RIGHT KNEE/FEMUR/PELVIS SCORE | F75: Calculations'!$E$49 | G75: Database Reference'!F66 | H75: 20
A76: 164 | B76: 163 | C76: Right Knee Slide - mm | F76: Car Input'!$E28 | G76: Database Reference'!F67 | H76: 10
A77: 165 | B77: 163 | C77: Right Femur Compression level exceeded - kN | F77: Car Input'!$E29 | G77: Database Reference'!F68 | H77: 20
A78: 166 | B78: 163 | C78: Duration of femur exceedence | F78: Car Input'!$E30 | G78: Database Reference'!F69 | H78: 30
A79: 167 | B79: 163 | C79: Right Variable contact (-1) | F79: Car Input'!$E$82 | G79: Database Reference'!F70 | H79: 40
A80: 168 | B80: 163 | C80: Right Concentrated loading (-1) | F80: Car Input'!$E$83 | G80: Database Reference'!F71 | H80: 50
A81: 169 | B81: 101 | C81: LOWER LEG, FOOT AND ANKLE BODY REGION SCORE | G81: Database Reference'!F72 | H81: 30
A82: 170 | B82: 169 | C82: DRIVER LOWER LEG, FOOT AND ANKLE SCORE | F82: Summary!$B$10 | G82: Database Reference'!F73 | H82: 10
A83: 171 | B83: 170 | C83: DRIVER LEFT LOWER LEG SCORE | F83: Driver!$C$55 | G83: Database Reference'!F74 | H83: 10
A84: 172 | B84: 171 | C84: Left compression Fz - kN | F84: Car Input'!$D32 | G84: Database Reference'!F75 | H84: 10
A85: 173 | B85: 171 | C85: Left Upper Tibia Index | F85: Car Input'!$D33 | G85: Database Reference'!F76 | H85: 20
A86: 174 | B86: 171 | C86: Left Lower Tibia Index | F86: Car Input'!$D34 | G86: Database Reference'!F77 | H86: 30
A87: 175 | B87: 170 | C87: DRIVER RIGHT LOWER LEG SCORE | F87: Driver!$C$61 | G87: Database Reference'!F78 | H87: 20
A88: 176 | B88: 175 | C88: Right compression Fz - kN | F88: Car Input'!$D36 | G88: Database Reference'!F79 | H88: 10
A89: 177 | B89: 175 | C89: Right Upper Tibia Index | F89: Car Input'!$D37 | G89: Database Reference'!F80 | H89: 20
A90: 178 | B90: 175 | C90: Right Lower Tibia Index | F90: Car Input'!$D38 | G90: Database Reference'!F81 | H90: 30
A91: 179 | B91: 170 | C91: DRIVER FOOT AND ANKLE SCORE | F91: Driver!$C$67 | G91: Database Reference'!F82 | H91: 30
A92: 180 | B92: 179 | C92: Pedal horizontal displacement - mm | F92: Car Input'!$I$22 | G92: Database Reference'!F83 | H92: 10
A93: 181 | B93: 179 | C93: Footwell Rupture (-1) | F93: Car Input'!$D$85 | G93: Database Reference'!F84 | H93: 20
A94: 182 | B94: 179 | C94: Pedal Blocking (-1) | F94: Car Input'!$I$17 | G94: Database Reference'!F85 | H94: 30
A95: 183 | B95: 169 | C95: PASSENGER LOWER LEG SCORE | F95: Summary!$B$16 | G95: Database Reference'!F86 | H95: 20
A96: 184 | B96: 183 | C96: PASSENGER LEFT LOWER LEG SCORE | F96: Passenger!$C$51 | G96: Database Reference'!F87 | H96: 10
A97: 185 | B97: 184 | C97: Left compression Fz - kN | F97: Car Input'!$E32 | G97: Database Reference'!F88 | H97: 10
A98: 186 | B98: 184 | C98: Left Upper Tibia Index | F98: Car Input'!$E33 | G98: Database Reference'!F89 | H98: 20
A99: 187 | B99: 184 | C99: Left Lower Tibia Index | F99: Car Input'!$E34 | G99: Database Reference'!F90 | H99: 30
A100: 188 | B100: 183 | C100: PASSENGER RIGHT LOWER LEG SCORE | F100: Passenger!$C$56 | G100: Database Reference'!F91 | H100: 20
A101: 189 | B101: 188 | C101: Right compression Fz - kN | F101: Car Input'!$E36 | G101: Database Reference'!F92 | H101: 10
A102: 190 | B102: 188 | C102: Right Upper Tibia Index | F102: Car Input'!$E37 | G102: Database Reference'!F93 | H102: 20
A103: 191 | B103: 188 | C103: Right Lower Tibia Index | F103: Car Input'!$E38 | G103: Database Reference'!F94 | H103: 30
A104: 192 | B104: 101 | C104: DOOR OPENING IN FRONTAL IMPACT | D104: Modifier | F104: Car Input'!$E$87 | G104: Database Reference'!F95 | H104: 40
A105: 193 | B105: 740 | C105: SIDE IMPACT SCORE | F105: Side'!$D$46 | G105: Database Reference'!F96 | H105: 20
A106: 194 | B106: 193 | C106: HEAD BODY REGION SCORE | F106: Calculations'!$K$11 | G106: Database Reference'!F97 | H106: 10
A107: 195 | B107: 194 | C107: Peak resultant acceleration - g | F107: Car Input'!$E45 | G107: Database Reference'!F98 | H107: 10
A108: 196 | B108: 194 | C108: HIC36 | F108: Car Input'!$E46 | G108: Database Reference'!F99 | H108: 20
A109: 197 | B109: 194 | C109: Resultant Acc. 3 msec exceedence - g | F109: Car Input'!$E47 | G109: Database Reference'!F100 | H109: 30
A110: 198 | B110: 194 | C110: Incorrect airbag deployment (-1) | G110: Database Reference'!F101 | H110: 40
A111: 199 | B111: 193 | C111: CHEST BODY REGION SCORE | F111: Calculations'!$K$31 | G111: Database Reference'!F102 | H111: 20
A112: 200 | B112: 199 | C112: TOP RIB SCORE | F112: Calculations'!$K$17 | G112: Database Reference'!F103 | H112: 10
A113: 201 | B113: 200 | C113: Top rib Compression - mm | F113: Car Input'!$E$50 | G113: Database Reference'!F104 | H113: 10
A114: 202 | B114: 200 | C114: Top rib Viscous Criterion - m/s | F114: Car Input'!$E$51 | G114: Database Reference'!F105 | H114: 20
A115: 203 | B115: 199 | C115: MID RIB SCORE | F115: Calculations'!$K$22 | G115: Database Reference'!F106 | H115: 10
A116: 204 | B116: 203 | C116: Mid rib Compression - mm | F116: Car Input'!$E$52 | G116: Database Reference'!F107 | H116: 10
A117: 205 | B117: 203 | C117: Mid rib Viscous Criterion - m/s | F117: Car Input'!$E$53 | G117: Database Reference'!F108 | H117: 20
A118: 206 | B118: 199 | C118: BOTTOM RIB SCORE | F118: Calculations'!$K$27 | G118: Database Reference'!F109 | H118: 30
A119: 207 | B119: 206 | C119: Bottom rib Compression - mm | F119: Car Input'!$E$54 | G119: Database Reference'!F110 | H119: 10
A120: 208 | B120: 206 | C120: Bottom rib Viscous Criterion - m/s | F120: Car Input'!$E$55 | G120: Database Reference'!F111 | H120: 20
A121: 209 | B121: 199 | C121: T12 Modifier | F121: Side'!$D$23 | G121: Database Reference'!F112 | H121: 40
A122: 210 | B122: 199 | C122: Backplate Load Modifier | F122: Side'!$D$24 | G122: Database Reference'!F113 | H122: 50
A123: 211 | B123: 199 | C123: Incorrect airbag deployment | G123: Database Reference'!F114 | H123: 60
A124: 212 | B124: 193 | C124: ABDOMEN BODY REGION SCORE | F124: Calculations'!$K$41 | G124: Database Reference'!F115 | H124: 30
A125: 213 | B125: 212 | C125: Peak lateral force - kN | F125: Car Input'!$E58 | G125: Database Reference'!F116 | H125: 10
A126: 214 | B126: 212 | C126: Peak lateral force - kN | F126: Car Input'!$E59 | G126: Database Reference'!F117 | H126: 20
A127: 215 | B127: 212 | C127: Peak lateral force - kN | F127: Car Input'!$E60 | G127: Database Reference'!F118 | H127: 30
A128: 216 | B128: 212 | C128: Incorrect airbag deployment (-1) | G128: Database Reference'!F119 | H128: 40
A129: 217 | B129: 193 | C129: PELVIS BODY REGION SCORE | F129: Calculations'!$K$47 | G129: Database Reference'!F120 | H129: 40
A130: 218 | B130: 217 | C130: Pubic Symphysis force - kN | F130: Car Input'!$E$64 | G130: Database Reference'!F121 | H130: 10
A131: 219 | B131: 193 | C131: INCORRECT AIRBAG DEPLOYMENT | G131: Database Reference'!F122 | H131: 50
A132: 220 | B132: 193 | C132: DOORS OPENING IN SIDE IMPACT | F132: Car Input'!$E$88 | G132: Database Reference'!F123 | H132: 60
A133: 221 | B133: 741 | C133: POLE TEST SCORE | F133: Pole'!$D$42 | G133: Database Reference'!F124 | H133: 30
A134: 222 | B134: 221 | C134: HEAD BODY REGION SCORE | F134: Pole'!$D$42 | G134: Database Reference'!F125 | H134: 10
A135: 223 | B135: 222 | C135: Peak resultant acceleration - g | F135: Car Input'!$O7 | G135: Database Reference'!F126 | H135: 10
A136: 224 | B136: 222 | C136: HIC36 | F136: Car Input'!$O8 | G136: Database Reference'!F127 | H136: 20
A137: 225 | B137: 222 | C137: Resultant Acc. 3 msec exceedence - g | F137: Car Input'!$O9 | G137: Database Reference'!F128 | H137: 30
A138: 226 | B138: 222 | C138: Incorrect airbag deployment (-1) | G138: Database Reference'!F129 | H138: 40
A139: 227 | B139: 221 | C139: CHEST BODY REGION SCORE | F139: Pole'!$D$43 | G139: Database Reference'!F130 | H139: 20
A140: 228 | B140: 227 | C140: TOP RIB SCORE | F140: Calculations'!$Q$69 | G140: Database Reference'!F131 | H140: 10
A141: 229 | B141: 228 | C141: Top rib Compression - mm | F141: Car Input'!$O13 | G141: Database Reference'!F132 | H141: 10
A142: 230 | B142: 228 | C142: Top rib Viscous Criterion - m/s | F142: Car Input'!$O14 | G142: Database Reference'!F133 | H142: 20
A143: 231 | B143: 227 | C143: MID RIB SCORE | F143: Calculations'!$Q$74 | G143: Database Reference'!F134 | H143: 20
A144: 232 | B144: 231 | C144: Mid rib Compression - mm | F144: Car Input'!$O16 | G144: Database Reference'!F135 | H144: 10
A145: 233 | B145: 231 | C145: Mid rib Viscous Criterion - m/s | F145: Car Input'!$O17 | G145: Database Reference'!F136 | H145: 20
A146: 234 | B146: 227 | C146: BOTTOM RIB SCORE | F146: Calculations'!$Q$79 | G146: Database Reference'!F137 | H146: 30
A147: 235 | B147: 234 | C147: Bottom rib Compression - mm | F147: Car Input'!$O19 | G147: Database Reference'!F138 | H147: 10
A148: 236 | B148: 234 | C148: Bottom rib Viscous Criterion - m/s | F148: Car Input'!$O20 | G148: Database Reference'!F139 | H148: 20
A149: 237 | B149: 227 | C149: T12 MODIFIER | F149: Calculations'!$Q$81 | G149: Database Reference'!F140 | H149: 40
A150: 238 | B150: 227 | C150: BACKPLATE LOAD MODIFER | F150: Calculations'!$Q$82 | G150: Database Reference'!F141 | H150: 50
A151: 239 | B151: 227 | C151: INCORRECT AIRBAG DEPLOYMENT | G151: Database Reference'!F142 | H151: 60
A152: 240 | B152: 221 | C152: ABDOMEN BODY REGION SCORE | F152: Pole'!$D$44 | G152: Database Reference'!F143 | H152: 30
A153: 241 | B153: 240 | C153: Front Peak lateral force - kN | F153: Car Input'!$O21 | G153: Database Reference'!F144 | H153: 10
A154: 242 | B154: 240 | C154: Mid Peak lateral force - kN | F154: Car Input'!$O22 | G154: Database Reference'!F145 | H154: 20
A155: 243 | B155: 240 | C155: Rear Peak lateral force - kN | F155: Car Input'!$O23 | G155: Database Reference'!F146 | H155: 30
A156: 244 | B156: 240 | C156: Incorrect airbag deployment (-1) | G156: Database Reference'!F147 | H156: 40
A157: 245 | B157: 221 | C157: PELVIS BODY REGION SCORE | F157: Pole'!$D$45 | G157: Database Reference'!F148 | H157: 40
A158: 246 | B158: 245 | C158: Pubic Symphysis force - kN | F158: Car Input'!$O$27 | G158: Database Reference'!F149 | H158: 10
A159: 247 | B159: 221 | C159: INCORRECT AIRBAG DEPLOYMENT | F159: Car Input'!$D$75 | G159: Database Reference'!F150 | H159: 50
A160: 248 | B160: 221 | C160: DOORS OPENING IN POLE IMPACT | F160: Car Input'!$E$88 | G160: Database Reference'!F151 | H160: 60
A161: 249 | B161: 697 | C161: SBR POINTS | F161: Calculations'!$D$69 | G161: Database Reference'!F152 | H161: 60
A162: 250 | B162: 612 | C162: UNROUNDED CHILD PROTECTION SCORE | F162: Summary'!$G$14 | G162: Database Reference'!F153 | H162: 20
A163: 251 | B163: 250 | C163: CRS Dynamic Test Rating | G163: Database Reference'!F154 | H163: 10
A164: 252 | B164: 251 | C164: P1.5 Dynamic Score | F164: Child'!$F$39 | G164: Database Reference'!F155 | H164: 10
A165: 253 | B165: 252 | C165: Forward facing Head Score | G165: Database Reference'!F156 | H165: 10
A166: 254 | B166: 252 | C166: Excursion Score | G166: Database Reference'!F157 | H166: 20
A167: 255 | B167: 252 | C167: Hard contact Score (head contact not on car) | G167: Database Reference'!F158 | H167: 30
A168: 256 | B168: 252 | C168: Rearward facing Head Score | G168: Database Reference'!F159 | H168: 40
A169: 257 | B169: 252 | C169: Score if no contact with car nor head compressive load | G169: Database Reference'!F160 | H169: 50
A170: 258 | B170: 252 | C170: Score for Neck Tension (Head Vertical Acceleration) | G170: Database Reference'!F161 | H170: 60
A171: 259 | B171: 252 | C171: Score for Head Contact (3msec accounting for peak) | G171: Database Reference'!F162 | H171: 70
A172: 260 | B172: 252 | C172: Side Head Score | G172: Database Reference'!F163 | H172: 80
A173: 261 | B173: 252 | C173: Head Side Resultant Acceleration | G173: Database Reference'!F164 | H173: 90
A174: 262 | B174: 252 | C174: Frontal Chest Score | G174: Database Reference'!F165 | H174: 100
A175: 263 | B175: 252 | C175: Chest Frontal Resultant Acceleration | G175: Database Reference'!F166 | H175: 110
A176: 264 | B176: 252 | C176: Chest Frontal Vertical Acceleration | G176: Database Reference'!F167 | H176: 120
A177: 265 | B177: 252 | C177: Dynamic Tests Rating | G177: Database Reference'!F168 | H177: 130
A178: 266 | B178: 251 | C178: P3 Dynamic Score | F178: Child'!$I$39 | G178: Database Reference'!F169 | H178: 20
A179: 267 | B179: 266 | C179: Forward facing Head Score | G179: Database Reference'!F170 | H179: 10
A180: 268 | B180: 266 | C180: Excursion Score | G180: Database Reference'!F171 | H180: 20
A181: 269 | B181: 266 | C181: Hard contact Score (head contact not on car) | G181: Database Reference'!F172 | H181: 30
A182: 270 | B182: 266 | C182: Rearward facing Head Score | G182: Database Reference'!F173 | H182: 40
A183: 271 | B183: 266 | C183: Score if no contact with car nor head compressive load | G183: Database Reference'!F174 | H183: 50
A184: 272 | B184: 266 | C184: Score for Neck Tension (Head Vertical Acceleration) | G184: Database Reference'!F175 | H184: 60
A185: 273 | B185: 266 | C185: Score for Head Contact (3msec accounting for peak) | G185: Database Reference'!F176 | H185: 70
A186: 274 | B186: 266 | C186: Side Head Score | G186: Database Reference'!F177 | H186: 80
A187: 275 | B187: 266 | C187: Head Side Resultant Acceleration | G187: Database Reference'!F178 | H187: 90
A188: 276 | B188: 266 | C188: Frontal Chest Score | G188: Database Reference'!F179 | H188: 100
A189: 277 | B189: 266 | C189: Chest Frontal Resultant Acceleration | G189: Database Reference'!F180 | H189: 110
A190: 278 | B190: 266 | C190: Chest Frontal Vertical Acceleration | G190: Database Reference'!F181 | H190: 120
A191: 279 | B191: 266 | C191: Dynamic Tests Rating | G191: Database Reference'!F182 | H191: 130
A192: 280 | B192: 250 | C192: CRS Labelling Rating | G192: Database Reference'!F183 | H192: 20
A193: 281 | B193: 280 | C193: P1.5 Labelling | F193: Child'!$F$57 | G193: Database Reference'!F184 | H193: 10
A194: 282 | B194: 281 | C194: Belt routes permanent marked and colour coded | E194: P1_5BeltRoutes | G194: Database Reference'!F185 | H194: 10 | I194: nodestring
A195: 283 | B195: 281 | C195: Instructions visible and permanent on both sides of restraint | E195: P1_5Instructions | G195: Database Reference'!F186 | H195: 20 | I195: nodestring
A196: 284 | B196: 281 | C196: Advice visible on when to use as forward facing of two way seats | E196: P1_5Advice_Belt_Routes | G196: Database Reference'!F187 | H196: 30 | I196: nodestring
A197: 285 | B197: 281 | C197: Alternative adult seat belt routes (ECE Reg 43.03 Supplement 3) | E197: P1_5AlternativeRoutes | G197: Database Reference'!F188 | H197: 40 | I197: nodestring
A198: 286 | B198: 281 | C198: Advice on use of seat and components for all sizes of children | E198: P1_5Advice_Child_Size | G198: Database Reference'!F189 | H198: 50 | I198: nodestring
A199: 287 | B199: 281 | C199: ISOFIX Instructions visible and permanent on both sides of restraint | E199: P1_5ISOFIX_Both_Sides | G199: Database Reference'!F190 | H199: 60 | I199: nodestring
A200: 288 | B200: 281 | C200: Instructions on preparing seat for installation | E200: P1_5Install_Instructions | G200: Database Reference'!F191 | H200: 70 | I200: nodestring
A201: 289 | B201: 281 | C201: Tell-tales Position function and interpretation explained | E201: P1_5Tell_Tales | G201: Database Reference'!F192 | H201: 80 | I201: nodestring
A202: 290 | B202: 281 | C202: Position and use of additional tethers explained | E202: P1_5Add_Tethers | G202: Database Reference'!F193 | H202: 90 | I202: nodestring
A203: 291 | B203: 281 | C203: Tell-tales must inform if there is only partial latching | E203: P1_5Partial_Latch_Info | G203: Database Reference'!F194 | H203: 100 | I203: nodestring
A204: 292 | B204: 281 | C204: Use and adjustment of latches and tethers | E204: P1_5Adjust_Latches | G204: Database Reference'!F195 | H204: 110 | I204: nodestring
A205: 293 | B205: 281 | C205: Information on which vehicles the CRS can be used in | E205: P1_5Which_Cars | G205: Database Reference'!F196 | H205: 120 | I205: nodestring
A206: 294 | B206: 280 | C206: P3 Labelling | F206: Child'!$I$57 | G206: Database Reference'!F197 | H206: 20
A207: 295 | B207: 294 | C207: Belt routes permanent marked and colour coded | E207: P3BeltRoutes | G207: Database Reference'!F198 | H207: 10 | I207: nodestring
A208: 296 | B208: 294 | C208: Instructions visible and permanent on both sides of restraint | E208: P3Instructions | G208: Database Reference'!F199 | H208: 20 | I208: nodestring
A209: 297 | B209: 294 | C209: Advice visible on when to use as forward facing of two way seats | E209: P3Advice_Belt_Routes | G209: Database Reference'!F200 | H209: 30 | I209: nodestring
... 1072 more rows

Sheet Comments (hidden)
A1: Comments
A2: General
A3: Adult Occupant
A4: Child Occupant
A5: Pedestrian
A6: Safety Assist

Sheet ESC (hidden)
A1: ADAC Test reference | AA1: Thatcham test reference | AB1: =B1 -> 0
A2: Manufacturer | B2: Skoda | AA2: Manufacturer | AB2: =B2 -> Skoda
A3: Model | B3: Octavia 2013 | AA3: Model | AB3: Octavia 2013
A4: Variant | B4: TDI Sedan | AA4: Variant | AB4: TDI Sedan
A5: Engine | B5: diesel | AA5: Engine | AB5: diesel
A6: Transmission | B6: manual 5 speed | AA6: Transmission | AB6: manual 5 speed
A7: Stability control system name & acronym | AA7: Stability control system name & acronym | AB7: 0
A8: VIN | B8: TMBAG7NE1D0000396 | AA8: VIN | AB8: TMBAG7NE1D0000396
A9: Gross vehicle mass (kg) | B9: 1857 | AA9: Gross vehicle mass (kg) | AB9: 1857
A10: Mass as tested (kg) | B10: 1412 | AA10: Mass as tested (kg) | AB10: 1412
A11: SSF | B11: 1.38 | AA11: SSF | AB11: 1.38
A12: Outriggers | B12: Not required | AA12: Outriggers | AB12: Not required
A13: Front tyres | B13: Michelin Energy Saver 205/55 R16 91V | AA13: Front tyres | AB13: Michelin Energy Saver 205/55 R16 91V
A14: Rear tyres | B14: Michelin Energy Saver 205/55 R16 91V | AA14: Rear tyres | AB14: Michelin Energy Saver 205/55 R16 91V
A16: Date | B16: 2012-11-27 | AA16: Date | AB16: 2012-11-27
A17: Location | B17: Kaufbeuren | AA17: Location | AB17: Kaufbeuren
A18: Driver | B18: Andy | AA18: Driver | AB18: Andy
A19: Weather | B19: cloudy | AA19: Weather | AB19: cloudy
A20: Surface condition | B20: dry | AA20: Surface condition | AB20: dry
A21: Ambient temperature (°C) | B21: 7,5°C | AA21: Ambient temperature (°C) | AB21: 7,5°C
A22: Wind speed (m/s) | B22: 1 m/s | AA22: Wind speed (m/s) | AB22: 1 m/s
A24: ESC status | B24: ON | AA24: ESC status | AB24: ON
A25: A angle (°) | B25: 27.7 | AA25: A angle (°) | AB25: 27.7
A26: Gear selected | B26: 4 | AA26: Gear selected | AB26: 4
A27: Robot system | B27: Vehico CS1200 and OxTSRT3100 | AA27: Robot system | AB27: =MATCH(TRUE,ISBLANK(J29:J250),0)+27 -> 65
AA28: BOSValidRow | AB28: =MATCH(TRUE,D30:D250=5,0)+29 -> 44
A29: Test | B29: Data file | C29: Time | D29: A multiple | E29: 1st turn | F29: 1st turn peak angle (°) | G29: 2nd turn | H29: 2nd turn peak angle (°) | I29: Speed @BOS | J29: Lateral displacement @BOS+1.07s (dbl int lat acc) | K29: Lateral displacement @BOS+1.07s (GPS) | L29: Yaw velocity @COS+1.000s | M29: Yaw velocity @COS+1.750s | N29: Speed @BOS (km/h) | O29: Lateral displacement @BOS+1.07s (dbl int lat acc) (m) | P29: Lateral displacement @BOS+1.07s (GPS) (m) | Q29: 1st local peak yaw velocity (°/s) | R29: Yaw velocity @COS+1.000s (°/s) | S29: % of peak yaw velocity @COS+1.000s | T29: Yaw velocity @COS+1.750s (°/s) | U29: % of peak yaw velocity @COS+1.750s | AA29: COS+1.0 | AB29: =IF(OR(L30:INDIRECT("L"&AB27)="Fail"),"Fail","Pass") -> Pass
A30: 1 | B30: skod01.mme | C30: 12:05:00 | D30: 1.5 | E30: right | F30: 40.89546383 | G30: left | H30: -41.1125998 | I30: OK | J30: PASS | K30: PASS | L30: PASS | M30: PASS | N30: 78.26096361 | O30: 1.290815797 | P30: 1.280288676 | Q30: -11.56173952 | R30: 0.2582522148 | S30: 1.992198324 | T30: 0.3809201437 | U30: 2.938478078 | AA30: COS+1.75 | AB30: =IF(OR(M30:INDIRECT("M"&AB27)="Fail"),"Fail","Pass") -> Pass
A31: 2 | B31: skod02.mme | C31: 12:08:00 | D31: -1.5 | E31: left | F31: -40.92653584 | G31: right | H31: 41.12568159 | I31: OK | J31: PASS | K31: PASS | L31: PASS | M31: PASS | N31: 80.78468129 | O31: -1.270746776 | P31: 1.410833646 | Q31: 11.3789323 | R31: -0.3697421197 | S31: 2.884543806 | T31: -0.219574377 | U31: 1.713009894 | AA31: BOS+1.07 | AB31: =IF(OR(INDIRECT("J"&AB28):INDIRECT("J"&AB27)="Fail"),"Fail","Pass") -> Pass
A32: 3 | B32: skod03.mme | C32: 12:11:00 | D32: 2 | E32: right | F32: 54.89200534 | G32: left | H32: -55.11726428 | I32: OK | J32: PASS | K32: PASS | L32: PASS | M32: PASS | N32: 79.88374501 | O32: 1.671173755 | P32: 1.673402943 | Q32: -14.56642758 | R32: -0.09039712349 | S32: -0.5367600736 | T32: 0.09719042284 | U32: 0.5770973291 | AA32: COS100Row | AB32: =MATCH(TRUE,ABS(S30:INDIRECT("S"&AB27))=MAX(ABS(S30:INDIRECT("S"&AB27))),0)+29 -> 31
A33: 4 | B33: skod04.mme | C33: 12:14:00 | D33: -2 | E33: left | F33: -54.97902382 | G33: right | H33: 55.08235382 | I33: OK | J33: PASS | K33: PASS | L33: PASS | M33: PASS | N33: 80.604 | O33: -1.683292437 | P33: 1.682215784 | Q33: 15.02494972 | R33: -0.4002852474 | S33: 2.526555674 | T33: -0.2778784075 | U33: 1.753937403 | AA33: COS175Row | AB33: =MATCH(TRUE,ABS(U30:INDIRECT("U"&AB27))=MAX(ABS(U30:INDIRECT("U"&AB27))),0)+29 -> 30
A34: 5 | B34: skod05.mme | C34: 12:17:00 | D34: 2.5 | E34: right | F34: 68.93302592 | G34: left | H34: -69.11999845 | I34: OK | J34: PASS | K34: PASS | L34: PASS | M34: PASS | N34: 80.39730584 | O34: 2.093494374 | P34: 1.992508387 | Q34: -18.78501007 | R34: 0.2238628747 | S34: 1.11341296 | T34: 0.134587602 | U34: 0.6693900476 | AA34: BOS107Row | AB34: =MATCH(TRUE,ABS(INDIRECT("O"&AB28):INDIRECT("O"&AB27))=MIN(ABS(INDIRECT("O"&AB28):INDIRECT("O"&AB27))),0)+AB28-1 -> 64
A35: 6 | B35: skod06.mme | C35: 12:20:00 | D35: -2.5 | E35: left | F35: -69.06063851 | G35: right | H35: 69.0952443 | I35: OK | J35: PASS | K35: PASS | L35: PASS | M35: PASS | N35: 80.496 | O35: -2.09538953 | P35: 2.068302247 | Q35: 19.46513948 | R35: -0.4166893889 | S35: -2.140695623 | T35: -0.27633638 | U35: -1.419647571 | AA35: COS100SAngle | AB35: =INDIRECT("F"&$AB$32) -> -40.92653584
A36: 7 | B36: skod07.mme | C36: 12:23:00 | D36: 3 | E36: right | F36: 83.1050138 | G36: left | H36: -83.12255057 | I36: OK | J36: PASS | K36: PASS | L36: PASS | M36: PASS | N36: 80.49578704 | O36: 2.415914167 | P36: 2.358850038 | Q36: -23.04983484 | R36: 0.07530711482 | S36: 0.3154932974 | T36: 0.1045871088 | U36: 0.4381595538 | AA36: COS100Turn | AB36: =INDIRECT("G"&$AB$32) -> right
A37: 8 | B37: skod08.mme | C37: 12:26:00 | D37: -3 | E37: left | F37: -83.04018505 | G37: right | H37: 83.11067504 | I37: OK | J37: PASS | K37: PASS | L37: PASS | M37: PASS | N37: 80.19376222 | O37: -2.485530311 | P37: 2.474451102 | Q37: 22.15368948 | R37: -0.1324735957 | S37: 0.5282174754 | T37: -0.457952511 | U37: 1.826013086 | AA37: COS100PkYawVel | AB37: =INDIRECT("Q"&$AB$32) -> 11.3789323
A38: 9 | B38: skod09.mme | C38: 12:29:00 | D38: 3.5 | E38: right | F38: 96.02676179 | G38: left | H38: -96.16338138 | I38: OK | J38: PASS | K38: PASS | L38: PASS | M38: PASS | N38: 79.9575451 | O38: 2.631710853 | P38: 2.552231962 | Q38: -27.37022915 | R38: 0.05038479948 | S38: -0.1840861442 | T38: 0.1370722968 | U38: -0.5008079986 | AA38: COS100_100YawVel | AB38: =INDIRECT("R"&$AB$32) -> -0.3697421197
A39: 10 | B39: skod10.mme | C39: 12:32:00 | D39: -3.5 | E39: left | F39: -96.09895662 | G39: right | H39: 96.12070878 | I39: OK | J39: PASS | K39: PASS | L39: PASS | M39: PASS | N39: 80.676 | O39: -2.7181379 | P39: 2.699935059 | Q39: 27.34534951 | R39: -0.3772509092 | S39: -1.379579767 | T39: -0.1222176685 | U39: -0.4469413288 | AA39: COS100_175YawVel | AB39: =INDIRECT("T"&$AB$32) -> -0.219574377
A40: 11 | B40: skod11.mme | C40: 12:35:00 | D40: 4 | E40: right | F40: 110.2587904 | G40: left | H40: -110.2107321 | I40: OK | J40: PASS | K40: PASS | L40: PASS | M40: PASS | N40: 81.108 | O40: 2.828042196 | P40: 2.876217445 | Q40: -36.18483998 | R40: 0.7225164869 | S40: -1.996738102 | T40: 0.2403321752 | U40: -0.6641791848 | AA40: COS100_BOSValid | AB40: =INDIRECT("K"&$AB$32) -> PASS
A41: 12 | B41: skod12.mme | C41: 12:38:00 | D41: -4 | E41: left | F41: -110.0090731 | G41: right | H41: 110.1808572 | I41: OK | J41: PASS | K41: PASS | L41: PASS | M41: PASS | N41: 80.68149431 | O41: -2.892650008 | P41: 3.026647754 | Q41: 34.87280441 | R41: -0.626473519 | S41: -1.796452937 | T41: -0.2277597591 | U41: -0.6531156957 | AA41: COS100_LatDisp | AB41: =INDIRECT("O"&$AB$32) -> -1.270746776
A42: 13 | B42: skod13.mme | C42: 12:41:00 | D42: 4.5 | E42: right | F42: 124.2424006 | G42: left | H42: -124.2063706 | I42: OK | J42: PASS | K42: PASS | L42: PASS | M42: PASS | N42: 79.74470146 | O42: 2.955139848 | P42: 2.848267891 | Q42: -40.81601161 | R42: 0.07920783623 | S42: -0.194060696 | T42: 0.3814445513 | U42: -0.9345463611 | AA42: COS100_YRR | AB42: =INDIRECT("S"&$AB$32) -> 2.884543806
A43: 14 | B43: skod14.mme | C43: 12:44:00 | D43: -4.5 | E43: left | F43: -124.2596601 | G43: right | H43: 124.2134363 | I43: OK | J43: PASS | K43: PASS | L43: PASS | M43: PASS | N43: 81.34411633 | O43: -3.151027067 | P43: 3.080764906 | Q43: 43.21023183 | R43: -0.6520453326 | S43: -1.509006791 | T43: -0.1440675863 | U43: -0.3334108155 | AA43: COS175SAngle | AB43: =INDIRECT("F"&$AB$33) -> 40.89546383
A44: 15 | B44: skod15.mme | C44: 12:47:00 | D44: 5 | E44: right | F44: 138.205609 | G44: left | H44: -138.2269782 | I44: OK | J44: PASS | K44: PASS | L44: PASS | M44: PASS | N44: 79.74 | O44: 3.316522011 | P44: 3.030284197 | Q44: -45.53699512 | R44: 0.815958583 | S44: -1.791858643 | T44: -0.06220137814 | U44: 0.1365952628 | AA44: COS175Turn | AB44: =INDIRECT("G"&$AB$33) -> left
A45: 16 | B45: skod16.mme | C45: 12:50:00 | D45: -5 | E45: left | F45: -138.2500895 | G45: right | H45: 138.1984272 | I45: OK | J45: PASS | K45: PASS | L45: PASS | M45: PASS | N45: 80.43829918 | O45: -3.231920888 | P45: 3.131784336 | Q45: 46.01061097 | R45: -0.6789732068 | S45: -1.475688309 | T45: -0.1331096424 | U45: -0.2893020534 | AA45: COS175PkYawVel | AB45: =INDIRECT("Q"&$AB$33) -> -11.56173952
A46: 17 | B46: skod17.mme | C46: 12:53:00 | D46: 5.5 | E46: right | F46: 152.3833543 | G46: left | H46: -152.2434305 | I46: OK | J46: PASS | K46: PASS | L46: PASS | M46: PASS | N46: 80.85435712 | O46: 3.265680396 | P46: 3.198676918 | Q46: -45.39206007 | R46: 0.9379719902 | S46: -2.066378985 | T46: 0.3230862333 | U46: -0.7117681656 | AA46: COS175_100YawVel | AB46: =INDIRECT("R"&$AB$33) -> 0.2582522148
A47: 18 | B47: skod18.mme | C47: 12:56:00 | D47: -5.5 | E47: left | F47: -152.3424336 | G47: right | H47: 152.2805731 | I47: OK | J47: PASS | K47: PASS | L47: PASS | M47: PASS | N47: 79.812 | O47: -3.295592893 | P47: 2.957158295 | Q47: 48.79486131 | R47: -0.5953138616 | S47: -1.220033925 | T47: -0.274174737 | U47: -0.5618926454 | AA47: COS175_175YawVel | AB47: =INDIRECT("T"&$AB$33) -> 0.3809201437
A48: 19 | B48: skod19.mme | C48: 12:59:00 | D48: 6 | E48: right | F48: 166.4303911 | G48: left | H48: -166.291121 | I48: OK | J48: PASS | K48: PASS | L48: PASS | M48: PASS | N48: 80.1681684 | O48: 3.309438195 | P48: 3.057616522 | Q48: -46.8900763 | R48: 0.4091552659 | S48: -0.87258392 | T48: 0.4934089824 | U48: -1.052267391 | AA48: COS175_BOSValid | AB48: =INDIRECT("K"&$AB$33) -> PASS
A49: 20 | B49: skod20.mme | C49: 13:02:00 | D49: -6 | E49: left | F49: -166.2020533 | G49: right | H49: 166.3669507 | I49: OK | J49: PASS | K49: PASS | L49: PASS | M49: PASS | N49: 80.06206508 | O49: -3.226729982 | P49: 3.233454576 | Q49: 46.16999799 | R49: -0.7482437591 | S49: -1.620627662 | T49: -0.1803312218 | U49: -0.3905809608 | AA49: COS175_LatDisp | AB49: =INDIRECT("O"&$AB$33) -> 1.290815797
A50: 21 | B50: skod21.mme | C50: 13:05:00 | D50: 6.5 | E50: right | F50: 180.4500509 | G50: left | H50: -180.4247971 | I50: OK | J50: PASS | K50: PASS | L50: PASS | M50: PASS | N50: 79.2 | O50: 3.407408265 | P50: 3.21826172 | Q50: -42.81055748 | R50: 0.7425470627 | S50: -1.734495196 | T50: 0.1857673092 | U50: -0.4339287319 | AA50: COS175_YRR | AB50: =INDIRECT("U"&$AB$33) -> 2.938478078
A51: 22 | B51: skod22.mme | C51: 13:08:00 | D51: -6.5 | E51: left | F51: -180.3865763 | G51: right | H51: 180.4854074 | I51: OK | J51: PASS | K51: PASS | L51: PASS | M51: PASS | N51: 81.09864939 | O51: -3.251732529 | P51: 3.077392124 | Q51: 45.0028094 | R51: -0.8090739062 | S51: -1.797829773 | T51: -0.241610294 | U51: -0.5368782467 | AA51: BOS107SAngle | AB51: =INDIRECT("F"&$AB$34) -> 278.5336756
A52: 23 | B52: skod23.mme | C52: 13:11:00 | D52: 7 | E52: right | F52: 193.4542882 | G52: left | H52: -193.377301 | I52: OK | J52: PASS | K52: PASS | L52: PASS | M52: PASS | N52: 79.704 | O52: 3.33948896 | P52: 3.144164733 | Q52: -48.62834001 | R52: 0.3950848848 | S52: -0.8124580949 | T52: 0.3689159706 | U52: -0.758643973 | AA52: BOS107Turn | AB52: =INDIRECT("G"&$AB$34) -> left
A53: 24 | B53: skod24.mme | C53: 13:14:00 | D53: -7 | E53: left | F53: -193.440591 | G53: right | H53: 193.4087967 | I53: OK | J53: PASS | K53: PASS | L53: PASS | M53: PASS | N53: 80.80357856 | O53: -3.39442691 | P53: 3.258437881 | Q53: 48.09354917 | R53: -0.658624661 | S53: -1.369465703 | T53: -0.313665885 | U53: -0.6521994955 | AA53: BOS107PkYawVel | AB53: =INDIRECT("Q"&$AB$34) -> -47.87479317
A54: 25 | B54: skod25.mme | C54: 13:17:00 | D54: 7.5 | E54: right | F54: 207.6647126 | G54: left | H54: -207.4055393 | I54: OK | J54: PASS | K54: PASS | L54: PASS | M54: PASS | N54: 79.53990353 | O54: 3.313285915 | P54: 3.070310239 | Q54: -50.87160531 | R54: 0.1112472133 | S54: -0.218682333 | T54: -0.05793078672 | U54: 0.1138764668 | AA54: BOS107_100YawVel | AB54: =INDIRECT("R"&$AB$34) -> 1.138703547
A55: 26 | B55: skod26.mme | C55: 13:20:00 | D55: -7.5 | E55: left | F55: -207.4553033 | G55: right | H55: 207.4418621 | I55: OK | J55: PASS | K55: PASS | L55: PASS | M55: PASS | N55: 81.684 | O55: -3.436975987 | P55: 3.148785817 | Q55: 52.57895746 | R55: 0.7979159581 | S55: 1.517557587 | T55: -0.3916828827 | U55: -0.7449422765 | AA55: BOS107_175YawVel | AB55: =INDIRECT("T"&$AB$34) -> 0.4430824221
A56: 27 | B56: skod27.mme | C56: 13:23:00 | D56: 8 | E56: right | F56: 221.359254 | G56: left | H56: -221.4702189 | I56: OK | J56: PASS | K56: PASS | L56: PASS | M56: PASS | N56: 80.01211508 | O56: 3.172793718 | P56: 2.975532422 | Q56: -50.94429822 | R56: 0.8457352377 | S56: -1.660117554 | T56: 0.2971511011 | U56: -0.5832862783 | AA56: BOS107_BOSValid | AB56: =INDIRECT("K"&$AB$34) -> PASS
A57: 28 | B57: skod28.mme | C57: 13:26:00 | D57: -8 | E57: left | F57: -221.4109508 | G57: right | H57: 221.6927436 | I57: OK | J57: PASS | K57: PASS | L57: PASS | M57: PASS | N57: 80.99271115 | O57: -3.237219683 | P57: 3.049332092 | Q57: 47.9246207 | R57: -0.6206060722 | S57: -1.29496293 | T57: -0.4175069319 | U57: -0.871174202 | AA57: BOS107_LatDisp | AB57: =INDIRECT("O"&$AB$34) -> 3.011562996
A58: 29 | B58: skod29.mme | C58: 13:29:00 | D58: 8.5 | E58: right | F58: 235.6735198 | G58: left | H58: -235.5464086 | I58: OK | J58: PASS | K58: PASS | L58: PASS | M58: PASS | N58: 79.55575847 | O58: 3.398956478 | P58: 2.980568553 | Q58: -50.46827248 | R58: 0.9609106927 | S58: -1.903989666 | T58: 0.4896552784 | U58: -0.970223973
A59: 30 | B59: skod30.mme | C59: 13:32:00 | D59: -8.5 | E59: left | F59: -235.861424 | G59: right | H59: 235.4473692 | I59: OK | J59: PASS | K59: PASS | L59: PASS | M59: PASS | N59: 80.42044351 | O59: -3.289343306 | P59: 3.178021377 | Q59: 50.8853303 | R59: -0.9301517778 | S59: -1.827936995 | T59: -0.4043955905 | U59: -0.7947193977
A60: 31 | B60: skod31.mme | C60: 13:35:00 | D60: 9 | E60: right | F60: 249.8019696 | G60: left | H60: -249.8091264 | I60: OK | J60: PASS | K60: PASS | L60: PASS | M60: PASS | N60: 78.98031339 | O60: 3.294436834 | P60: 2.425786042 | Q60: -45.23095519 | R60: 0.9453424402 | S60: -2.090034217 | T60: 0.3369216499 | U60: -0.7448917418
A61: 32 | B61: skod32.mme | C61: 13:38:00 | D61: -9 | E61: left | F61: -249.8526695 | G61: right | H61: 249.5027667 | I61: OK | J61: PASS | K61: PASS | L61: PASS | M61: PASS | N61: 80.35862272 | O61: -3.329804073 | P61: 3.222242097 | Q61: 56.1157794 | R61: -0.458689836 | S61: -0.817399029 | T61: -0.4381320342 | U61: -0.7807644104
A62: 33 | B62: skod33.mme | C62: 13:41:00 | D62: 9.5 | E62: right | F62: 264.1064516 | G62: left | H62: -263.8692866 | I62: OK | J62: PASS | K62: PASS | L62: PASS | M62: PASS | N62: 79.33341177 | O62: 3.232299272 | P62: 3.200833508 | Q62: -44.96785603 | R62: 0.9317815981 | S62: -2.072105901 | T62: 0.2821925748 | U62: -0.6275428711
A63: 34 | B63: skod34.mme | C63: 13:44:00 | D63: -9.5 | E63: left | F63: -264.6227876 | G63: right | H63: 263.7534834 | I63: OK | J63: PASS | K63: PASS | L63: PASS | M63: PASS | N63: 80.29992108 | O63: -3.236631601 | P63: 3.1329537 | Q63: 49.36626874 | R63: -0.7900910405 | S63: -1.600467405 | T63: -0.3168443348 | U63: -0.6418235425
A64: 35 | B64: skod35.mme | C64: 13:47:00 | D64: 10 | E64: right | F64: 278.5336756 | G64: left | H64: -278.1715003 | I64: OK | J64: PASS | K64: PASS | L64: PASS | M64: PASS | N64: 80.35959611 | O64: 3.011562996 | P64: 3.036610691 | Q64: -47.87479317 | R64: 1.138703547 | S64: -2.378503324 | T64: 0.4430824221 | U64: -0.92550253
A65: 36 | B65: skod36.mme | C65: 13:50:00 | D65: -10 | E65: left | F65: -278.9208514 | G65: right | H65: 277.6658316 | I65: OK | J65: PASS | K65: PASS | L65: PASS | M65: PASS | N65: 80.29246576 | O65: -3.267745412 | P65: 3.157978004 | Q65: 50.80179875 | R65: -0.6827693425 | S65: -1.34398655 | T65: -0.1988193895 | U65: -0.3913628934
